Organisation Name,Organisation Code,Unique Ref No,Effective Date,Directorate where expenditure incurred,Supplier Name ,Payment Date,Net amount,Purpose of Spend,"Procurement Classification
(Higher Level)",Procurement Classification (Lower Level),CAPITAL / REVENUE
Walsall Council,http://opendatacommunities.org/id/metropolitan-district-council/walsall ,WC130-1,30.09.2021,"ECONOMY, ENVIRONMENT & COMMUNITIES",247 CARS (WILLENHALL) LIMITED,07/09/2021,374.22,6313-Grants to Other Orgs,SUPPLIES & SERVICES,GRANTS (EXP) & SUBSCRIPTIONS,REVENUE
Walsall Council,http://opendatacommunities.org/id/metropolitan-district-council/walsall ,WC130-2,30.09.2021,"ECONOMY, ENVIRONMENT & COMMUNITIES",247 CARS (WILLENHALL) LIMITED,07/09/2021,750.00,6313-Grants to Other Orgs,SUPPLIES & SERVICES,GRANTS (EXP) & SUBSCRIPTIONS,REVENUE
Walsall Council,http://opendatacommunities.org/id/metropolitan-district-council/walsall ,WC130-3,30.09.2021,"ECONOMY, ENVIRONMENT & COMMUNITIES",247 CARS (WILLENHALL) LIMITED,07/09/2021,750.00,6313-Grants to Other Orgs,SUPPLIES & SERVICES,GRANTS (EXP) & SUBSCRIPTIONS,REVENUE
Walsall Council,http://opendatacommunities.org/id/metropolitan-district-council/walsall ,WC130-4,30.09.2021,RESOURCES AND TRANSFORMATION,3 SPIRIT UK TRAINING & CONSULTANCY,27/09/2021,700.00,6625-Consultant Fees,SUPPLIES & SERVICES,SERVICES,REVENUE
Walsall Council,http://opendatacommunities.org/id/metropolitan-district-council/walsall ,WC130-5,30.09.2021,RESOURCES AND TRANSFORMATION,4 SIGHT EYECARE CENTRE 002,07/09/2021,450.00,6625-Eye Tests,DIRECT EMPLOYEES,EMPLOYEE ALLOWANCES & EXPENSES,REVENUE
Walsall Council,http://opendatacommunities.org/id/metropolitan-district-council/walsall ,WC130-6,30.09.2021,ADULT SOCIAL CARE,5 CARE SERVICES LTD,22/09/2021,"1,743.84",6541-Domiciliary Care,THIRD PARTY PAYMENTS,PRIVATE CONTRACTOR,REVENUE
Walsall Council,http://opendatacommunities.org/id/metropolitan-district-council/walsall ,WC130-7,30.09.2021,ADULT SOCIAL CARE,5 CARE SERVICES LTD,22/09/2021,981.40,6541-Domiciliary Care,THIRD PARTY PAYMENTS,PRIVATE CONTRACTOR,REVENUE
Walsall Council,http://opendatacommunities.org/id/metropolitan-district-council/walsall ,WC130-8,30.09.2021,ADULT SOCIAL CARE,5 CARE SERVICES LTD,22/09/2021,"1,121.04",6541-Domiciliary Care,THIRD PARTY PAYMENTS,PRIVATE CONTRACTOR,REVENUE
Walsall Council,http://opendatacommunities.org/id/metropolitan-district-council/walsall ,WC130-9,30.09.2021,ADULT SOCIAL CARE,5 CARE SERVICES LTD,22/09/2021,"1,051.05",6541-Domiciliary Care,THIRD PARTY PAYMENTS,PRIVATE CONTRACTOR,REVENUE
Walsall Council,http://opendatacommunities.org/id/metropolitan-district-council/walsall ,WC130-10,30.09.2021,ADULT SOCIAL CARE,5 CARE SERVICES LTD,22/09/2021,"1,541.54",6541-Domiciliary Care,THIRD PARTY PAYMENTS,PRIVATE CONTRACTOR,REVENUE
Walsall Council,http://opendatacommunities.org/id/metropolitan-district-council/walsall ,WC130-11,30.09.2021,ADULT SOCIAL CARE,5 CARE SERVICES LTD,22/09/2021,"1,401.39",6541-Domiciliary Care,THIRD PARTY PAYMENTS,PRIVATE CONTRACTOR,REVENUE
Walsall Council,http://opendatacommunities.org/id/metropolitan-district-council/walsall ,WC130-12,30.09.2021,ADULT SOCIAL CARE,5 CARE SERVICES LTD,22/09/2021,910.91,6541-Domiciliary Care,THIRD PARTY PAYMENTS,PRIVATE CONTRACTOR,REVENUE
Walsall Council,http://opendatacommunities.org/id/metropolitan-district-council/walsall ,WC130-13,30.09.2021,ADULT SOCIAL CARE,5 CARE SERVICES LTD,22/09/2021,630.63,6541-Domiciliary Care,THIRD PARTY PAYMENTS,PRIVATE CONTRACTOR,REVENUE
Walsall Council,http://opendatacommunities.org/id/metropolitan-district-council/walsall ,WC130-14,30.09.2021,ADULT SOCIAL CARE,5 CARE SERVICES LTD,22/09/2021,303.77,6541-Domiciliary Care,THIRD PARTY PAYMENTS,PRIVATE CONTRACTOR,REVENUE
Walsall Council,http://opendatacommunities.org/id/metropolitan-district-council/walsall ,WC130-15,30.09.2021,ADULT SOCIAL CARE,5 CARE SERVICES LTD,28/09/2021,490.49,6541-Domiciliary Care,THIRD PARTY PAYMENTS,PRIVATE CONTRACTOR,REVENUE
Walsall Council,http://opendatacommunities.org/id/metropolitan-district-council/walsall ,WC130-16,30.09.2021,ADULT SOCIAL CARE,5 CARE SERVICES LTD,28/09/2021,591.66,6541-Domiciliary Care,THIRD PARTY PAYMENTS,PRIVATE CONTRACTOR,REVENUE
Walsall Council,http://opendatacommunities.org/id/metropolitan-district-council/walsall ,WC130-17,30.09.2021,ADULT SOCIAL CARE,5 CARE SERVICES LTD,28/09/2021,654.01,6541-Domiciliary Care,THIRD PARTY PAYMENTS,PRIVATE CONTRACTOR,REVENUE
Walsall Council,http://opendatacommunities.org/id/metropolitan-district-council/walsall ,WC130-18,30.09.2021,ADULT SOCIAL CARE,5 CARE SERVICES LTD,28/09/2021,268.68,6541-Domiciliary Care,THIRD PARTY PAYMENTS,PRIVATE CONTRACTOR,REVENUE
Walsall Council,http://opendatacommunities.org/id/metropolitan-district-council/walsall ,WC130-19,30.09.2021,ADULT SOCIAL CARE,5 CARE SERVICES LTD,28/09/2021,490.49,6541-Domiciliary Care,THIRD PARTY PAYMENTS,PRIVATE CONTRACTOR,REVENUE
Walsall Council,http://opendatacommunities.org/id/metropolitan-district-council/walsall ,WC130-20,30.09.2021,ADULT SOCIAL CARE,5 CARE SERVICES LTD,28/09/2021,544.95,6541-Domiciliary Care,THIRD PARTY PAYMENTS,PRIVATE CONTRACTOR,REVENUE
Walsall Council,http://opendatacommunities.org/id/metropolitan-district-council/walsall ,WC130-21,30.09.2021,ADULT SOCIAL CARE,5 CARE SERVICES LTD,28/09/2021,"1,307.88",6541-Domiciliary Care,THIRD PARTY PAYMENTS,PRIVATE CONTRACTOR,REVENUE
Walsall Council,http://opendatacommunities.org/id/metropolitan-district-council/walsall ,WC130-22,30.09.2021,ADULT SOCIAL CARE,5 CARE SERVICES LTD,28/09/2021,311.40,6541-Domiciliary Care,THIRD PARTY PAYMENTS,PRIVATE CONTRACTOR,REVENUE
Walsall Council,http://opendatacommunities.org/id/metropolitan-district-council/walsall ,WC130-23,30.09.2021,ADULT SOCIAL CARE,5 CARE SERVICES LTD,28/09/2021,654.01,6541-Domiciliary Care,THIRD PARTY PAYMENTS,PRIVATE CONTRACTOR,REVENUE
Walsall Council,http://opendatacommunities.org/id/metropolitan-district-council/walsall ,WC130-24,30.09.2021,ADULT SOCIAL CARE,5 CARE SERVICES LTD,28/09/2021,326.97,6541-Domiciliary Care,THIRD PARTY PAYMENTS,PRIVATE CONTRACTOR,REVENUE
Walsall Council,http://opendatacommunities.org/id/metropolitan-district-council/walsall ,WC130-25,30.09.2021,ADULT SOCIAL CARE,5 CARE SERVICES LTD,28/09/2021,303.72,6541-Domiciliary Care,THIRD PARTY PAYMENTS,PRIVATE CONTRACTOR,REVENUE
Walsall Council,http://opendatacommunities.org/id/metropolitan-district-council/walsall ,WC130-26,30.09.2021,ADULT SOCIAL CARE,5 CARE SERVICES LTD,28/09/2021,327.04,6541-Domiciliary Care,THIRD PARTY PAYMENTS,PRIVATE CONTRACTOR,REVENUE
Walsall Council,http://opendatacommunities.org/id/metropolitan-district-council/walsall ,WC130-27,30.09.2021,ADULT SOCIAL CARE,5 CARE SERVICES LTD,28/09/2021,599.48,6541-Domiciliary Care,THIRD PARTY PAYMENTS,PRIVATE CONTRACTOR,REVENUE
Walsall Council,http://opendatacommunities.org/id/metropolitan-district-council/walsall ,WC130-28,30.09.2021,ADULT SOCIAL CARE,5 CARE SERVICES LTD,28/09/2021,705.84,6541-Domiciliary Care,THIRD PARTY PAYMENTS,PRIVATE CONTRACTOR,REVENUE
Walsall Council,http://opendatacommunities.org/id/metropolitan-district-council/walsall ,WC130-29,30.09.2021,ADULT SOCIAL CARE,5 CARE SERVICES LTD,28/09/2021,490.49,6541-Domiciliary Care,THIRD PARTY PAYMENTS,PRIVATE CONTRACTOR,REVENUE
Walsall Council,http://opendatacommunities.org/id/metropolitan-district-council/walsall ,WC130-30,30.09.2021,ADULT SOCIAL CARE,5 CARE SERVICES LTD,28/09/2021,544.95,6541-Domiciliary Care,THIRD PARTY PAYMENTS,PRIVATE CONTRACTOR,REVENUE
Walsall Council,http://opendatacommunities.org/id/metropolitan-district-council/walsall ,WC130-31,30.09.2021,ADULT SOCIAL CARE,5 CARE SERVICES LTD,28/09/2021,"1,198.89",6541-Domiciliary Care,THIRD PARTY PAYMENTS,PRIVATE CONTRACTOR,REVENUE
Walsall Council,http://opendatacommunities.org/id/metropolitan-district-council/walsall ,WC130-32,30.09.2021,ADULT SOCIAL CARE,5 CARE SERVICES LTD,28/09/2021,560.52,6541-Domiciliary Care,THIRD PARTY PAYMENTS,PRIVATE CONTRACTOR,REVENUE
Walsall Council,http://opendatacommunities.org/id/metropolitan-district-council/walsall ,WC130-33,30.09.2021,ADULT SOCIAL CARE,5 CARE SERVICES LTD,28/09/2021,311.40,6541-Domiciliary Care,THIRD PARTY PAYMENTS,PRIVATE CONTRACTOR,REVENUE
Walsall Council,http://opendatacommunities.org/id/metropolitan-district-council/walsall ,WC130-34,30.09.2021,ADULT SOCIAL CARE,5 CARE SERVICES LTD,28/09/2021,326.97,6541-Domiciliary Care,THIRD PARTY PAYMENTS,PRIVATE CONTRACTOR,REVENUE
Walsall Council,http://opendatacommunities.org/id/metropolitan-district-council/walsall ,WC130-35,30.09.2021,ADULT SOCIAL CARE,5 CARE SERVICES LTD,28/09/2021,490.49,6541-Domiciliary Care,THIRD PARTY PAYMENTS,PRIVATE CONTRACTOR,REVENUE
Walsall Council,http://opendatacommunities.org/id/metropolitan-district-council/walsall ,WC130-36,30.09.2021,ADULT SOCIAL CARE,5 CARE SERVICES LTD,28/09/2021,552.77,6541-Domiciliary Care,THIRD PARTY PAYMENTS,PRIVATE CONTRACTOR,REVENUE
Walsall Council,http://opendatacommunities.org/id/metropolitan-district-council/walsall ,WC130-37,30.09.2021,ADULT SOCIAL CARE,5 CARE SERVICES LTD,28/09/2021,490.49,6541-Domiciliary Care,THIRD PARTY PAYMENTS,PRIVATE CONTRACTOR,REVENUE
Walsall Council,http://opendatacommunities.org/id/metropolitan-district-council/walsall ,WC130-38,30.09.2021,ADULT SOCIAL CARE,5 CARE SERVICES LTD,28/09/2021,591.66,6541-Domiciliary Care,THIRD PARTY PAYMENTS,PRIVATE CONTRACTOR,REVENUE
Walsall Council,http://opendatacommunities.org/id/metropolitan-district-council/walsall ,WC130-39,30.09.2021,ADULT SOCIAL CARE,5 CARE SERVICES LTD,28/09/2021,268.68,6541-Domiciliary Care,THIRD PARTY PAYMENTS,PRIVATE CONTRACTOR,REVENUE
Walsall Council,http://opendatacommunities.org/id/metropolitan-district-council/walsall ,WC130-40,30.09.2021,ADULT SOCIAL CARE,5 CARE SERVICES LTD,28/09/2021,490.49,6541-Domiciliary Care,THIRD PARTY PAYMENTS,PRIVATE CONTRACTOR,REVENUE
Walsall Council,http://opendatacommunities.org/id/metropolitan-district-council/walsall ,WC130-41,30.09.2021,ADULT SOCIAL CARE,5 CARE SERVICES LTD,28/09/2021,544.95,6541-Domiciliary Care,THIRD PARTY PAYMENTS,PRIVATE CONTRACTOR,REVENUE
Walsall Council,http://opendatacommunities.org/id/metropolitan-district-council/walsall ,WC130-42,30.09.2021,ADULT SOCIAL CARE,5 CARE SERVICES LTD,28/09/2021,654.01,6541-Domiciliary Care,THIRD PARTY PAYMENTS,PRIVATE CONTRACTOR,REVENUE
Walsall Council,http://opendatacommunities.org/id/metropolitan-district-council/walsall ,WC130-43,30.09.2021,ADULT SOCIAL CARE,5 CARE SERVICES LTD,28/09/2021,"1,027.62",6541-Domiciliary Care,THIRD PARTY PAYMENTS,PRIVATE CONTRACTOR,REVENUE
Walsall Council,http://opendatacommunities.org/id/metropolitan-district-council/walsall ,WC130-44,30.09.2021,ADULT SOCIAL CARE,5 CARE SERVICES LTD,28/09/2021,311.40,6541-Domiciliary Care,THIRD PARTY PAYMENTS,PRIVATE CONTRACTOR,REVENUE
Walsall Council,http://opendatacommunities.org/id/metropolitan-district-council/walsall ,WC130-45,30.09.2021,ADULT SOCIAL CARE,5 CARE SERVICES LTD,28/09/2021,654.01,6541-Domiciliary Care,THIRD PARTY PAYMENTS,PRIVATE CONTRACTOR,REVENUE
Walsall Council,http://opendatacommunities.org/id/metropolitan-district-council/walsall ,WC130-46,30.09.2021,ADULT SOCIAL CARE,5 CARE SERVICES LTD,28/09/2021,326.97,6541-Domiciliary Care,THIRD PARTY PAYMENTS,PRIVATE CONTRACTOR,REVENUE
Walsall Council,http://opendatacommunities.org/id/metropolitan-district-council/walsall ,WC130-47,30.09.2021,ADULT SOCIAL CARE,5 CARE SERVICES LTD,28/09/2021,327.04,6541-Domiciliary Care,THIRD PARTY PAYMENTS,PRIVATE CONTRACTOR,REVENUE
Walsall Council,http://opendatacommunities.org/id/metropolitan-district-council/walsall ,WC130-48,30.09.2021,ADULT SOCIAL CARE,5 CARE SERVICES LTD,28/09/2021,"1,198.89",6541-Domiciliary Care,THIRD PARTY PAYMENTS,PRIVATE CONTRACTOR,REVENUE
Walsall Council,http://opendatacommunities.org/id/metropolitan-district-council/walsall ,WC130-49,30.09.2021,ADULT SOCIAL CARE,5 CARE SERVICES LTD,28/09/2021,560.52,6541-Domiciliary Care,THIRD PARTY PAYMENTS,PRIVATE CONTRACTOR,REVENUE
Walsall Council,http://opendatacommunities.org/id/metropolitan-district-council/walsall ,WC130-50,30.09.2021,ADULT SOCIAL CARE,5 CARE SERVICES LTD,28/09/2021,599.48,6541-Domiciliary Care,THIRD PARTY PAYMENTS,PRIVATE CONTRACTOR,REVENUE
Walsall Council,http://opendatacommunities.org/id/metropolitan-district-council/walsall ,WC130-51,30.09.2021,ADULT SOCIAL CARE,5 CARE SERVICES LTD,28/09/2021,705.84,6541-Domiciliary Care,THIRD PARTY PAYMENTS,PRIVATE CONTRACTOR,REVENUE
Walsall Council,http://opendatacommunities.org/id/metropolitan-district-council/walsall ,WC130-52,30.09.2021,ADULT SOCIAL CARE,5 CARE SERVICES LTD,28/09/2021,435.96,6541-Domiciliary Care,THIRD PARTY PAYMENTS,PRIVATE CONTRACTOR,REVENUE
Walsall Council,http://opendatacommunities.org/id/metropolitan-district-council/walsall ,WC130-53,30.09.2021,ADULT SOCIAL CARE,5 CARE SERVICES LTD,28/09/2021,326.97,6541-Domiciliary Care,THIRD PARTY PAYMENTS,PRIVATE CONTRACTOR,REVENUE
Walsall Council,http://opendatacommunities.org/id/metropolitan-district-council/walsall ,WC130-54,30.09.2021,ADULT SOCIAL CARE,5 CARE SERVICES LTD,28/09/2021,303.72,6541-Domiciliary Care,THIRD PARTY PAYMENTS,PRIVATE CONTRACTOR,REVENUE
Walsall Council,http://opendatacommunities.org/id/metropolitan-district-council/walsall ,WC130-55,30.09.2021,ADULT SOCIAL CARE,5 CARE SERVICES LTD,28/09/2021,490.49,6541-Domiciliary Care,THIRD PARTY PAYMENTS,PRIVATE CONTRACTOR,REVENUE
Walsall Council,http://opendatacommunities.org/id/metropolitan-district-council/walsall ,WC130-56,30.09.2021,ADULT SOCIAL CARE,5 CARE SERVICES LTD,28/09/2021,544.95,6541-Domiciliary Care,THIRD PARTY PAYMENTS,PRIVATE CONTRACTOR,REVENUE
Walsall Council,http://opendatacommunities.org/id/metropolitan-district-council/walsall ,WC130-57,30.09.2021,ADULT SOCIAL CARE,5 CARE SERVICES LTD,28/09/2021,490.49,6541-Domiciliary Care,THIRD PARTY PAYMENTS,PRIVATE CONTRACTOR,REVENUE
Walsall Council,http://opendatacommunities.org/id/metropolitan-district-council/walsall ,WC130-58,30.09.2021,CHILDRENS,5 CARE SERVICES LTD,22/09/2021,"1,148.40",6223-Landline Phones,SUPPLIES & SERVICES,COMMUNICATIONS & COMPUTING,REVENUE
Walsall Council,http://opendatacommunities.org/id/metropolitan-district-council/walsall ,WC130-59,30.09.2021,CHILDRENS,5 CARE SERVICES LTD,23/09/2021,"1,148.40",6223-Landline Phones,SUPPLIES & SERVICES,COMMUNICATIONS & COMPUTING,REVENUE
Walsall Council,http://opendatacommunities.org/id/metropolitan-district-council/walsall ,WC130-60,30.09.2021,CHILDRENS,5 CARE SERVICES LTD,09/09/2021,255.20,6220-Professional Fees & Services,SUPPLIES & SERVICES,SERVICES,REVENUE
Walsall Council,http://opendatacommunities.org/id/metropolitan-district-council/walsall ,WC130-61,30.09.2021,CHILDRENS,5 CARE SERVICES LTD,21/09/2021,-255.20,6220-Professional Fees & Services,SUPPLIES & SERVICES,SERVICES,REVENUE
Walsall Council,http://opendatacommunities.org/id/metropolitan-district-council/walsall ,WC130-62,30.09.2021,CHILDRENS,5 CARE SERVICES LTD,21/09/2021,255.20,6220-Professional Fees & Services,SUPPLIES & SERVICES,SERVICES,REVENUE
Walsall Council,http://opendatacommunities.org/id/metropolitan-district-council/walsall ,WC130-63,30.09.2021,ADULT SOCIAL CARE,5 CARE SERVICES LTD,01/09/2021,"27,248.52",6541-Domiciliary Care,THIRD PARTY PAYMENTS,PRIVATE CONTRACTOR,REVENUE
Walsall Council,http://opendatacommunities.org/id/metropolitan-district-council/walsall ,WC130-64,30.09.2021,ADULT SOCIAL CARE,5 CARE SERVICES LTD,09/09/2021,"26,997.87",6541-Domiciliary Care,THIRD PARTY PAYMENTS,PRIVATE CONTRACTOR,REVENUE
Walsall Council,http://opendatacommunities.org/id/metropolitan-district-council/walsall ,WC130-65,30.09.2021,ADULT SOCIAL CARE,5 CARE SERVICES LTD,23/09/2021,"2,489.48",6550-ASC Rapid Testing Fund Round 3 (30%),TRANSFER PAYMENTS,COVID TRANSFER PAYMENT,REVENUE
Walsall Council,http://opendatacommunities.org/id/metropolitan-district-council/walsall ,WC130-66,30.09.2021,ADULT SOCIAL CARE,5 CARE SERVICES LTD,03/09/2021,"8,840.26",6550-ASC Infection Control Fund Round 4 (30% Grants),THIRD PARTY PAYMENTS,COVID THIRD PARTY PAYMENTS,REVENUE
Walsall Council,http://opendatacommunities.org/id/metropolitan-district-council/walsall ,WC130-67,30.09.2021,"ECONOMY, ENVIRONMENT & COMMUNITIES",A ASHTON,03/09/2021,270.00,6410-Materials,SUPPLIES & SERVICES,EQUIPMENT FURNITURE & MATERIALS,REVENUE
Walsall Council,http://opendatacommunities.org/id/metropolitan-district-council/walsall ,WC130-68,30.09.2021,"ECONOMY, ENVIRONMENT & COMMUNITIES",A D T FIRE AND SECURITY PLC,08/09/2021,"1,001.59",6410-Materials,SUPPLIES & SERVICES,EQUIPMENT FURNITURE & MATERIALS,REVENUE
Walsall Council,http://opendatacommunities.org/id/metropolitan-district-council/walsall ,WC130-69,30.09.2021,"ECONOMY, ENVIRONMENT & COMMUNITIES",A F BLAKEMORE & SON LTD,06/09/2021,401.70,6413-Food & Drink Supplies,SUPPLIES & SERVICES,CATERING,REVENUE
Walsall Council,http://opendatacommunities.org/id/metropolitan-district-council/walsall ,WC130-70,30.09.2021,"ECONOMY, ENVIRONMENT & COMMUNITIES",A F BLAKEMORE & SON LTD,06/09/2021,262.30,6413-Food & Drink Supplies,SUPPLIES & SERVICES,CATERING,REVENUE
Walsall Council,http://opendatacommunities.org/id/metropolitan-district-council/walsall ,WC130-71,30.09.2021,"ECONOMY, ENVIRONMENT & COMMUNITIES",A F BLAKEMORE & SON LTD,23/09/2021,270.81,6413-Food & Drink Supplies,SUPPLIES & SERVICES,CATERING,REVENUE
Walsall Council,http://opendatacommunities.org/id/metropolitan-district-council/walsall ,WC130-72,30.09.2021,"ECONOMY, ENVIRONMENT & COMMUNITIES",A F BLAKEMORE & SON LTD,23/09/2021,323.49,6413-Food & Drink Supplies,SUPPLIES & SERVICES,CATERING,REVENUE
Walsall Council,http://opendatacommunities.org/id/metropolitan-district-council/walsall ,WC130-73,30.09.2021,"ECONOMY, ENVIRONMENT & COMMUNITIES",A F BLAKEMORE & SON LTD,23/09/2021,-323.49,6413-Food & Drink Supplies,SUPPLIES & SERVICES,CATERING,REVENUE
Walsall Council,http://opendatacommunities.org/id/metropolitan-district-council/walsall ,WC130-74,30.09.2021,"ECONOMY, ENVIRONMENT & COMMUNITIES",A F BLAKEMORE & SON LTD,23/09/2021,-270.81,6413-Food & Drink Supplies,SUPPLIES & SERVICES,CATERING,REVENUE
Walsall Council,http://opendatacommunities.org/id/metropolitan-district-council/walsall ,WC130-75,30.09.2021,"ECONOMY, ENVIRONMENT & COMMUNITIES",A F BLAKEMORE & SON LTD,23/09/2021,270.81,6413-Food & Drink Supplies,SUPPLIES & SERVICES,CATERING,REVENUE
Walsall Council,http://opendatacommunities.org/id/metropolitan-district-council/walsall ,WC130-76,30.09.2021,"ECONOMY, ENVIRONMENT & COMMUNITIES",A F BLAKEMORE & SON LTD,23/09/2021,323.49,6413-Food & Drink Supplies,SUPPLIES & SERVICES,CATERING,REVENUE
Walsall Council,http://opendatacommunities.org/id/metropolitan-district-council/walsall ,WC130-77,30.09.2021,"ECONOMY, ENVIRONMENT & COMMUNITIES",A F BLAKEMORE & SON LTD,23/09/2021,444.21,6413-Food & Drink Supplies,SUPPLIES & SERVICES,CATERING,REVENUE
Walsall Council,http://opendatacommunities.org/id/metropolitan-district-council/walsall ,WC130-78,30.09.2021,"ECONOMY, ENVIRONMENT & COMMUNITIES",A F BLAKEMORE & SON LTD,23/09/2021,581.41,6413-Food & Drink Supplies,SUPPLIES & SERVICES,CATERING,REVENUE
Walsall Council,http://opendatacommunities.org/id/metropolitan-district-council/walsall ,WC130-79,30.09.2021,"ECONOMY, ENVIRONMENT & COMMUNITIES",AAINA COMMUNITY HUB,07/09/2021,980.10,6313-Grants to Other Orgs,SUPPLIES & SERVICES,GRANTS (EXP) & SUBSCRIPTIONS,REVENUE
Walsall Council,http://opendatacommunities.org/id/metropolitan-district-council/walsall ,WC130-80,30.09.2021,"ECONOMY, ENVIRONMENT & COMMUNITIES",AAINA COMMUNITY HUB,23/09/2021,965.25,6313-Grants to Other Orgs,SUPPLIES & SERVICES,GRANTS (EXP) & SUBSCRIPTIONS,REVENUE
Walsall Council,http://opendatacommunities.org/id/metropolitan-district-council/walsall ,WC130-81,30.09.2021,"ECONOMY, ENVIRONMENT & COMMUNITIES",AAINA COMMUNITY HUB,23/09/2021,"1,654.25",6313-Grants to Other Orgs,SUPPLIES & SERVICES,GRANTS (EXP) & SUBSCRIPTIONS,REVENUE
Walsall Council,http://opendatacommunities.org/id/metropolitan-district-council/walsall ,WC130-82,30.09.2021,ADULT SOCIAL CARE,ABBEY COURT NURSING & RESIDEN,28/09/2021,"2,571.08",6541-Residential EMI,THIRD PARTY PAYMENTS,PRIVATE CONTRACTOR,REVENUE
Walsall Council,http://opendatacommunities.org/id/metropolitan-district-council/walsall ,WC130-83,30.09.2021,ADULT SOCIAL CARE,ABBEY COURT NURSING & RESIDEN,28/09/2021,"2,331.08",6541-Residential EMI,THIRD PARTY PAYMENTS,PRIVATE CONTRACTOR,REVENUE
Walsall Council,http://opendatacommunities.org/id/metropolitan-district-council/walsall ,WC130-84,30.09.2021,ADULT SOCIAL CARE,ABBEY COURT NURSING & RESIDEN,28/09/2021,"2,064.44",6541-Residential,THIRD PARTY PAYMENTS,PRIVATE CONTRACTOR,REVENUE
Walsall Council,http://opendatacommunities.org/id/metropolitan-district-council/walsall ,WC130-85,30.09.2021,ADULT SOCIAL CARE,ABBEY HEALTHCARE HOMES LTD,28/09/2021,"3,551.56",6541-Residential,THIRD PARTY PAYMENTS,PRIVATE CONTRACTOR,REVENUE
Walsall Council,http://opendatacommunities.org/id/metropolitan-district-council/walsall ,WC130-86,30.09.2021,ADULT SOCIAL CARE,ABBEY HEALTHCARE HOMES LTD,28/09/2021,"2,396.36",6541-Residential,THIRD PARTY PAYMENTS,PRIVATE CONTRACTOR,REVENUE
Walsall Council,http://opendatacommunities.org/id/metropolitan-district-council/walsall ,WC130-87,30.09.2021,ADULT SOCIAL CARE,ABBEY HEALTHCARE HOMES LTD,28/09/2021,"3,133.76",6541-Residential,THIRD PARTY PAYMENTS,PRIVATE CONTRACTOR,REVENUE
Walsall Council,http://opendatacommunities.org/id/metropolitan-district-council/walsall ,WC130-88,30.09.2021,ADULT SOCIAL CARE,ABBEY HEALTHCARE HOMES LTD,28/09/2021,"3,133.76",6541-Residential,THIRD PARTY PAYMENTS,PRIVATE CONTRACTOR,REVENUE
Walsall Council,http://opendatacommunities.org/id/metropolitan-district-council/walsall ,WC130-89,30.09.2021,CHILDRENS,ABC DAY NURSERY (WILLENHALL) LIMITED,03/09/2021,"17,860.50",1184-Other-Grants to Other Orgs,SUPPLIES & SERVICES,GRANTS (EXP) & SUBSCRIPTIONS,REVENUE
Walsall Council,http://opendatacommunities.org/id/metropolitan-district-council/walsall ,WC130-90,30.09.2021,CHILDRENS,ABC DAY NURSERY (WILLENHALL) LIMITED,03/09/2021,"12,209.40",1184-Other-Grants to Other Orgs,SUPPLIES & SERVICES,GRANTS (EXP) & SUBSCRIPTIONS,REVENUE
Walsall Council,http://opendatacommunities.org/id/metropolitan-district-council/walsall ,WC130-91,30.09.2021,"ECONOMY, ENVIRONMENT & COMMUNITIES",ABEL ALARM CO LTD,14/09/2021,987.05,6413-Repair & Maintenance of Furniture & Equipment,SUPPLIES & SERVICES,EQUIPMENT FURNITURE & MATERIALS,REVENUE
Walsall Council,http://opendatacommunities.org/id/metropolitan-district-council/walsall ,WC130-92,30.09.2021,"ECONOMY, ENVIRONMENT & COMMUNITIES",ABEL ALARM CO LTD,14/09/2021,"1,055.45",6413-Repair & Maintenance of Furniture & Equipment,SUPPLIES & SERVICES,EQUIPMENT FURNITURE & MATERIALS,REVENUE
Walsall Council,http://opendatacommunities.org/id/metropolitan-district-council/walsall ,WC130-93,30.09.2021,ADULT SOCIAL CARE,REDACTED,08/09/2021,"2,665.60",6541-Direct Payment,THIRD PARTY PAYMENTS,PRIVATE CONTRACTOR,REVENUE
Walsall Council,http://opendatacommunities.org/id/metropolitan-district-council/walsall ,WC130-94,30.09.2021,"ECONOMY, ENVIRONMENT & COMMUNITIES",ABLE INVESTIGATIONS & ENFORCEMENTS LTD,02/09/2021,"1,410.00",6440-Professional Fees & Services,SUPPLIES & SERVICES,SERVICES,REVENUE
Walsall Council,http://opendatacommunities.org/id/metropolitan-district-council/walsall ,WC130-95,30.09.2021,"ECONOMY, ENVIRONMENT & COMMUNITIES",ABLE INVESTIGATIONS & ENFORCEMENTS LTD,02/09/2021,320.00,6440-Professional Fees & Services,SUPPLIES & SERVICES,SERVICES,REVENUE
Walsall Council,http://opendatacommunities.org/id/metropolitan-district-council/walsall ,WC130-96,30.09.2021,"ECONOMY, ENVIRONMENT & COMMUNITIES",ABLE INVESTIGATIONS & ENFORCEMENTS LTD,29/09/2021,320.00,6440-Professional Fees & Services,SUPPLIES & SERVICES,SERVICES,REVENUE
Walsall Council,http://opendatacommunities.org/id/metropolitan-district-council/walsall ,WC130-97,30.09.2021,CHILDRENS,ABU BAKR NURSERY,03/09/2021,"9,355.50",1184-Other-Grants to Other Orgs,SUPPLIES & SERVICES,GRANTS (EXP) & SUBSCRIPTIONS,REVENUE
Walsall Council,http://opendatacommunities.org/id/metropolitan-district-council/walsall ,WC130-98,30.09.2021,CHILDRENS,ABU BAKR NURSERY,03/09/2021,"46,683.00",1184-Other-Grants to Other Orgs,SUPPLIES & SERVICES,GRANTS (EXP) & SUBSCRIPTIONS,REVENUE
Walsall Council,http://opendatacommunities.org/id/metropolitan-district-council/walsall ,WC130-99,30.09.2021,"ECONOMY, ENVIRONMENT & COMMUNITIES",AC OPTICS LTD,13/09/2021,996.82,6313-Grants to Other Orgs,SUPPLIES & SERVICES,GRANTS (EXP) & SUBSCRIPTIONS,REVENUE
Walsall Council,http://opendatacommunities.org/id/metropolitan-district-council/walsall ,WC130-100,30.09.2021,"ECONOMY, ENVIRONMENT & COMMUNITIES",AC OPTICS LTD,23/09/2021,996.82,6313-Grants to Other Orgs,SUPPLIES & SERVICES,GRANTS (EXP) & SUBSCRIPTIONS,REVENUE
Walsall Council,http://opendatacommunities.org/id/metropolitan-district-council/walsall ,WC130-101,30.09.2021,"ECONOMY, ENVIRONMENT & COMMUNITIES",AC OPTICS LTD,23/09/2021,996.82,6313-Grants to Other Orgs,SUPPLIES & SERVICES,GRANTS (EXP) & SUBSCRIPTIONS,REVENUE
Walsall Council,http://opendatacommunities.org/id/metropolitan-district-council/walsall ,WC130-102,30.09.2021,"ECONOMY, ENVIRONMENT & COMMUNITIES",AC OPTICS LTD,07/09/2021,710.45,6313-Grants to Other Orgs,SUPPLIES & SERVICES,GRANTS (EXP) & SUBSCRIPTIONS,REVENUE
Walsall Council,http://opendatacommunities.org/id/metropolitan-district-council/walsall ,WC130-103,30.09.2021,"ECONOMY, ENVIRONMENT & COMMUNITIES",AC OPTICS LTD,23/09/2021,710.66,6313-Grants to Other Orgs,SUPPLIES & SERVICES,GRANTS (EXP) & SUBSCRIPTIONS,REVENUE
Walsall Council,http://opendatacommunities.org/id/metropolitan-district-council/walsall ,WC130-104,30.09.2021,CHILDRENS,ACCALIA CARE SERVICES LTD,07/09/2021,"19,980.00",6223-External Residential Care-Oth Agency Provision,THIRD PARTY PAYMENTS,PRIVATE CONTRACTOR,REVENUE
Walsall Council,http://opendatacommunities.org/id/metropolitan-district-council/walsall ,WC130-105,30.09.2021,RESOURCES AND TRANSFORMATION,ACCESS CONTROL SOLUTIONS (UK) LTD,29/09/2021,980.00,6310-Repair & Maintenance of Furniture & Equipment,SUPPLIES & SERVICES,EQUIPMENT FURNITURE & MATERIALS,REVENUE
Walsall Council,http://opendatacommunities.org/id/metropolitan-district-council/walsall ,WC130-106,30.09.2021,RESOURCES AND TRANSFORMATION,ACCESS CONTROL SOLUTIONS (UK) LTD,29/09/2021,"2,298.00",6310-Repair & Maintenance of Furniture & Equipment,SUPPLIES & SERVICES,EQUIPMENT FURNITURE & MATERIALS,REVENUE
Walsall Council,http://opendatacommunities.org/id/metropolitan-district-council/walsall ,WC130-107,30.09.2021,RESOURCES AND TRANSFORMATION CAPITAL,ACCESS SYSTEMS (UK) LTD,30/09/2021,500.00,7300-Consultants Fees,CAPITAL,"NEW CONSTRUCTION,CONVERSION & RENOVATION",CAPITAL
Walsall Council,http://opendatacommunities.org/id/metropolitan-district-council/walsall ,WC130-108,30.09.2021,CHILDRENS,ACCOMPANIED CARE,07/09/2021,"3,761.67",6223-Accommodation and Related Costs-Assistance to S/S Clients,TRANSFER PAYMENTS,ADULT SOCIAL SERVICES CLIENT,REVENUE
Walsall Council,http://opendatacommunities.org/id/metropolitan-district-council/walsall ,WC130-109,30.09.2021,ADULT SOCIAL CARE,ACCOMPLISH GROUP LTD,28/09/2021,"7,881.48",6541-Residential,THIRD PARTY PAYMENTS,PRIVATE CONTRACTOR,REVENUE
Walsall Council,http://opendatacommunities.org/id/metropolitan-district-council/walsall ,WC130-110,30.09.2021,ADULT SOCIAL CARE,ACCORD HOUSING ASSOCIATION LIMITED - HOBS MEADOW,28/09/2021,"4,706.24",6541-Residential,THIRD PARTY PAYMENTS,PRIVATE CONTRACTOR,REVENUE
Walsall Council,http://opendatacommunities.org/id/metropolitan-district-council/walsall ,WC130-111,30.09.2021,ADULT SOCIAL CARE,ACCORD HOUSING ASSOCIATION LIMITED - HOBS MEADOW,28/09/2021,"4,706.24",6541-Residential,THIRD PARTY PAYMENTS,PRIVATE CONTRACTOR,REVENUE
Walsall Council,http://opendatacommunities.org/id/metropolitan-district-council/walsall ,WC130-112,30.09.2021,ADULT SOCIAL CARE,ACCORD HOUSING ASSOCIATION LIMITED - HOBS MEADOW,28/09/2021,"4,706.24",6541-Residential,THIRD PARTY PAYMENTS,PRIVATE CONTRACTOR,REVENUE
Walsall Council,http://opendatacommunities.org/id/metropolitan-district-council/walsall ,WC130-113,30.09.2021,ADULT SOCIAL CARE,ACCORD HOUSING ASSOCIATION LIMITED - HOBS MEADOW,28/09/2021,"4,706.24",6541-Residential,THIRD PARTY PAYMENTS,PRIVATE CONTRACTOR,REVENUE
Walsall Council,http://opendatacommunities.org/id/metropolitan-district-council/walsall ,WC130-114,30.09.2021,ADULT SOCIAL CARE,ACE CARE AGENCY,13/09/2021,"3,618.00",6550-Professional Fees & Services,SUPPLIES & SERVICES,SERVICES,REVENUE
Walsall Council,http://opendatacommunities.org/id/metropolitan-district-council/walsall ,WC130-115,30.09.2021,ADULT SOCIAL CARE,ACE CARE AGENCY,13/09/2021,"1,760.00",6550-Professional Fees & Services,SUPPLIES & SERVICES,SERVICES,REVENUE
Walsall Council,http://opendatacommunities.org/id/metropolitan-district-council/walsall ,WC130-116,30.09.2021,ADULT SOCIAL CARE,ACE CARE AGENCY,03/09/2021,517.40,6550-ASC Infection Control Fund Round 4 (30% Grants),THIRD PARTY PAYMENTS,COVID THIRD PARTY PAYMENTS,REVENUE
Walsall Council,http://opendatacommunities.org/id/metropolitan-district-council/walsall ,WC130-117,30.09.2021,ADULT SOCIAL CARE,ACEPAY LTD (COTTAGE NUR HOME),03/09/2021,"6,066.06",6550-ASC Rapid Testing Fund Round 3 (70%),TRANSFER PAYMENTS,COVID TRANSFER PAYMENT,REVENUE
Walsall Council,http://opendatacommunities.org/id/metropolitan-district-council/walsall ,WC130-118,30.09.2021,ADULT SOCIAL CARE,ACEPAY LTD (COTTAGE NUR HOME),28/09/2021,"2,419.96",6541-Nursing,THIRD PARTY PAYMENTS,PRIVATE CONTRACTOR,REVENUE
Walsall Council,http://opendatacommunities.org/id/metropolitan-district-council/walsall ,WC130-119,30.09.2021,ADULT SOCIAL CARE,ACEPAY LTD (COTTAGE NUR HOME),28/09/2021,"2,419.96",6541-Nursing,THIRD PARTY PAYMENTS,PRIVATE CONTRACTOR,REVENUE
Walsall Council,http://opendatacommunities.org/id/metropolitan-district-council/walsall ,WC130-120,30.09.2021,ADULT SOCIAL CARE,ACEPAY LTD (COTTAGE NUR HOME),28/09/2021,"2,419.96",6541-Nursing,THIRD PARTY PAYMENTS,PRIVATE CONTRACTOR,REVENUE
Walsall Council,http://opendatacommunities.org/id/metropolitan-district-council/walsall ,WC130-121,30.09.2021,ADULT SOCIAL CARE,ACEPAY LTD (COTTAGE NUR HOME),28/09/2021,"2,419.96",6541-Nursing,THIRD PARTY PAYMENTS,PRIVATE CONTRACTOR,REVENUE
Walsall Council,http://opendatacommunities.org/id/metropolitan-district-council/walsall ,WC130-122,30.09.2021,ADULT SOCIAL CARE,ACEPAY LTD (COTTAGE NUR HOME),28/09/2021,"2,331.08",6541-Residential EMI,THIRD PARTY PAYMENTS,PRIVATE CONTRACTOR,REVENUE
Walsall Council,http://opendatacommunities.org/id/metropolitan-district-council/walsall ,WC130-123,30.09.2021,ADULT SOCIAL CARE,ACEPAY LTD (COTTAGE NUR HOME),28/09/2021,"1,209.98",6541-Nursing,THIRD PARTY PAYMENTS,PRIVATE CONTRACTOR,REVENUE
Walsall Council,http://opendatacommunities.org/id/metropolitan-district-council/walsall ,WC130-124,30.09.2021,ADULT SOCIAL CARE,ACEPAY LTD (COTTAGE NUR HOME),28/09/2021,"2,419.96",6541-Nursing,THIRD PARTY PAYMENTS,PRIVATE CONTRACTOR,REVENUE
Walsall Council,http://opendatacommunities.org/id/metropolitan-district-council/walsall ,WC130-125,30.09.2021,ADULT SOCIAL CARE,ACEPAY LTD (COTTAGE NUR HOME),28/09/2021,"2,419.96",6541-Nursing,THIRD PARTY PAYMENTS,PRIVATE CONTRACTOR,REVENUE
Walsall Council,http://opendatacommunities.org/id/metropolitan-district-council/walsall ,WC130-126,30.09.2021,ADULT SOCIAL CARE,ACEPAY LTD (COTTAGE NUR HOME),28/09/2021,"2,419.96",6541-Nursing,THIRD PARTY PAYMENTS,PRIVATE CONTRACTOR,REVENUE
Walsall Council,http://opendatacommunities.org/id/metropolitan-district-council/walsall ,WC130-127,30.09.2021,ADULT SOCIAL CARE,ACEPAY LTD (COTTAGE NUR HOME),28/09/2021,"2,419.96",6541-Nursing,THIRD PARTY PAYMENTS,PRIVATE CONTRACTOR,REVENUE
Walsall Council,http://opendatacommunities.org/id/metropolitan-district-council/walsall ,WC130-128,30.09.2021,ADULT SOCIAL CARE,ACEPAY LTD (COTTAGE NUR HOME),28/09/2021,"2,619.96",6541-Nursing,THIRD PARTY PAYMENTS,PRIVATE CONTRACTOR,REVENUE
Walsall Council,http://opendatacommunities.org/id/metropolitan-district-council/walsall ,WC130-129,30.09.2021,ADULT SOCIAL CARE,ACEPAY LTD (COTTAGE NUR HOME),28/09/2021,"2,419.96",6541-Nursing,THIRD PARTY PAYMENTS,PRIVATE CONTRACTOR,REVENUE
Walsall Council,http://opendatacommunities.org/id/metropolitan-district-council/walsall ,WC130-130,30.09.2021,ADULT SOCIAL CARE,ACEPAY LTD (COTTAGE NUR HOME),28/09/2021,"2,419.96",6541-Nursing,THIRD PARTY PAYMENTS,PRIVATE CONTRACTOR,REVENUE
Walsall Council,http://opendatacommunities.org/id/metropolitan-district-council/walsall ,WC130-131,30.09.2021,ADULT SOCIAL CARE,ACEPAY LTD (COTTAGE NUR HOME),28/09/2021,"2,722.96",6541-Nursing EMI,THIRD PARTY PAYMENTS,PRIVATE CONTRACTOR,REVENUE
Walsall Council,http://opendatacommunities.org/id/metropolitan-district-council/walsall ,WC130-132,30.09.2021,ADULT SOCIAL CARE,ACEPAY LTD (COTTAGE NUR HOME),03/09/2021,"5,961.12",6550-ASC Infection Control Fund Round 4 (30% Grants),THIRD PARTY PAYMENTS,COVID THIRD PARTY PAYMENTS,REVENUE
Walsall Council,http://opendatacommunities.org/id/metropolitan-district-council/walsall ,WC130-133,30.09.2021,CHILDRENS,ACIRE CARE LTD,16/09/2021,"8,322.17",6223-Accommodation and Related Costs-Assistance to S/S Clients,TRANSFER PAYMENTS,ADULT SOCIAL SERVICES CLIENT,REVENUE
Walsall Council,http://opendatacommunities.org/id/metropolitan-district-council/walsall ,WC130-134,30.09.2021,CHILDRENS,ACORN CARE & EDUCATION LTD (SALES),07/09/2021,"18,800.00",6223-External Residential Care-Oth Agency Provision,THIRD PARTY PAYMENTS,PRIVATE CONTRACTOR,REVENUE
Walsall Council,http://opendatacommunities.org/id/metropolitan-district-council/walsall ,WC130-135,30.09.2021,CHILDRENS,ACORN CARE & EDUCATION LTD (SALES),07/09/2021,"14,000.00",6223-External Residential Care-Oth Agency Provision,THIRD PARTY PAYMENTS,PRIVATE CONTRACTOR,REVENUE
Walsall Council,http://opendatacommunities.org/id/metropolitan-district-council/walsall ,WC130-136,30.09.2021,CHILDRENS,ACORN CARE & EDUCATION LTD (SALES),22/09/2021,"8,474.06",1220-Professional Fees & Services,SUPPLIES & SERVICES,SERVICES,REVENUE
Walsall Council,http://opendatacommunities.org/id/metropolitan-district-council/walsall ,WC130-137,30.09.2021,CHILDRENS,ACORN CARE & EDUCATION LTD (SALES),15/09/2021,"7,302.06",1220-Professional Fees & Services,SUPPLIES & SERVICES,SERVICES,REVENUE
Walsall Council,http://opendatacommunities.org/id/metropolitan-district-council/walsall ,WC130-138,30.09.2021,CHILDRENS,ACORN CARE & EDUCATION LTD (SALES),22/09/2021,"-17,302.00",1220-Professional Fees & Services,SUPPLIES & SERVICES,SERVICES,REVENUE
Walsall Council,http://opendatacommunities.org/id/metropolitan-district-council/walsall ,WC130-139,30.09.2021,CHILDRENS,ACORN CARE & EDUCATION LTD (SALES),22/09/2021,"-2,421.16",1220-Top Up Funding -Grants to Schools,SUPPLIES & SERVICES,GRANTS (EXP) & SUBSCRIPTIONS,REVENUE
Walsall Council,http://opendatacommunities.org/id/metropolitan-district-council/walsall ,WC130-140,30.09.2021,CHILDRENS,ACORN CARE & EDUCATION LTD (SALES),27/09/2021,"1,051.75",1265-Catch Up Grant Schools,TRANSFER PAYMENTS,COVID TRANSFER PAYMENT,REVENUE
Walsall Council,http://opendatacommunities.org/id/metropolitan-district-council/walsall ,WC130-141,30.09.2021,CHILDRENS,ACORN CARE & EDUCATION LTD (SALES),27/09/2021,321.02,1265-Catch Up Grant Schools,TRANSFER PAYMENTS,COVID TRANSFER PAYMENT,REVENUE
Walsall Council,http://opendatacommunities.org/id/metropolitan-district-council/walsall ,WC130-142,30.09.2021,CHILDRENS,ACORN FOSTERING SERVICES LTD,07/09/2021,"3,223.80",6223-Independent Foster Care-Oth Agency Provision,THIRD PARTY PAYMENTS,PRIVATE CONTRACTOR,REVENUE
Walsall Council,http://opendatacommunities.org/id/metropolitan-district-council/walsall ,WC130-143,30.09.2021,CHILDRENS,ACORN FOSTERING SERVICES LTD,07/09/2021,345.41,6223-Independent Foster Care-Oth Agency Provision,THIRD PARTY PAYMENTS,PRIVATE CONTRACTOR,REVENUE
Walsall Council,http://opendatacommunities.org/id/metropolitan-district-council/walsall ,WC130-144,30.09.2021,CHILDRENS,ACORN FOSTERING SERVICES LTD,07/09/2021,"3,223.80",6223-Independent Foster Care-Oth Agency Provision,THIRD PARTY PAYMENTS,PRIVATE CONTRACTOR,REVENUE
Walsall Council,http://opendatacommunities.org/id/metropolitan-district-council/walsall ,WC130-145,30.09.2021,CHILDRENS,ACORNS CHILDRENS HOSPICE TRUST,15/09/2021,"1,700.00",6220-Professional Fees & Services,SUPPLIES & SERVICES,SERVICES,REVENUE
Walsall Council,http://opendatacommunities.org/id/metropolitan-district-council/walsall ,WC130-146,30.09.2021,CHILDRENS,ACPAS LIMITED,23/09/2021,358.80,6220-School Only Payments - Catering,THIRD PARTY PAYMENTS,INDEPENDENT UNIT WITHIN COUNCIL,REVENUE
Walsall Council,http://opendatacommunities.org/id/metropolitan-district-council/walsall ,WC130-147,30.09.2021,"ECONOMY, ENVIRONMENT & COMMUNITIES",ACTIVE GYM LIMITED,16/09/2021,"4,187.50",6413-Events & Visual Arts,SUPPLIES & SERVICES,SERVICES,REVENUE
Walsall Council,http://opendatacommunities.org/id/metropolitan-district-council/walsall ,WC130-148,30.09.2021,ADULT SOCIAL CARE,REDACTED,08/09/2021,988.60,6541-Direct Payment,THIRD PARTY PAYMENTS,PRIVATE CONTRACTOR,REVENUE
Walsall Council,http://opendatacommunities.org/id/metropolitan-district-council/walsall ,WC130-149,30.09.2021,"ECONOMY, ENVIRONMENT & COMMUNITIES",ADI UK LTD,13/09/2021,"4,550.00",6410-Materials,SUPPLIES & SERVICES,EQUIPMENT FURNITURE & MATERIALS,REVENUE
Walsall Council,http://opendatacommunities.org/id/metropolitan-district-council/walsall ,WC130-150,30.09.2021,CHILDRENS,REDACTED,23/09/2021,363.24,6223-Residents Orders,TRANSFER PAYMENTS,CHILDREN SOCIAL SERVICES CLIENT,REVENUE
Walsall Council,http://opendatacommunities.org/id/metropolitan-district-council/walsall ,WC130-151,30.09.2021,CHILDRENS,REDACTED,23/09/2021,298.79,6223-Residents Orders,TRANSFER PAYMENTS,CHILDREN SOCIAL SERVICES CLIENT,REVENUE
Walsall Council,http://opendatacommunities.org/id/metropolitan-district-council/walsall ,WC130-152,30.09.2021,ADULT SOCIAL CARE,REDACTED,08/09/2021,"2,604.00",6541-Direct Payment,THIRD PARTY PAYMENTS,PRIVATE CONTRACTOR,REVENUE
Walsall Council,http://opendatacommunities.org/id/metropolitan-district-council/walsall ,WC130-153,30.09.2021,ADULT SOCIAL CARE,ADVANCE HEALTH CARE (UK) LTD,23/09/2021,"2,107.84",6541-Domiciliary Care,THIRD PARTY PAYMENTS,PRIVATE CONTRACTOR,REVENUE
Walsall Council,http://opendatacommunities.org/id/metropolitan-district-council/walsall ,WC130-154,30.09.2021,ADULT SOCIAL CARE,ADVANCE HEALTH CARE (UK) LTD,23/09/2021,"2,549.13",6541-Domiciliary Care,THIRD PARTY PAYMENTS,PRIVATE CONTRACTOR,REVENUE
Walsall Council,http://opendatacommunities.org/id/metropolitan-district-council/walsall ,WC130-155,30.09.2021,ADULT SOCIAL CARE,ADVANCE HEALTH CARE (UK) LTD,23/09/2021,965.84,6541-Domiciliary Care,THIRD PARTY PAYMENTS,PRIVATE CONTRACTOR,REVENUE
Walsall Council,http://opendatacommunities.org/id/metropolitan-district-council/walsall ,WC130-156,30.09.2021,ADULT SOCIAL CARE,ADVANCE HEALTH CARE (UK) LTD,23/09/2021,763.00,6541-Domiciliary Care,THIRD PARTY PAYMENTS,PRIVATE CONTRACTOR,REVENUE
Walsall Council,http://opendatacommunities.org/id/metropolitan-district-council/walsall ,WC130-157,30.09.2021,ADULT SOCIAL CARE,ADVANCE HEALTH CARE (UK) LTD,23/09/2021,726.88,6541-Domiciliary Care,THIRD PARTY PAYMENTS,PRIVATE CONTRACTOR,REVENUE
Walsall Council,http://opendatacommunities.org/id/metropolitan-district-council/walsall ,WC130-158,30.09.2021,ADULT SOCIAL CARE,ADVANCE HEALTH CARE (UK) LTD,23/09/2021,"2,761.92",6541-Domiciliary Care,THIRD PARTY PAYMENTS,PRIVATE CONTRACTOR,REVENUE
Walsall Council,http://opendatacommunities.org/id/metropolitan-district-council/walsall ,WC130-159,30.09.2021,ADULT SOCIAL CARE,ADVANCE HEALTH CARE (UK) LTD,23/09/2021,716.64,6541-Domiciliary Care,THIRD PARTY PAYMENTS,PRIVATE CONTRACTOR,REVENUE
Walsall Council,http://opendatacommunities.org/id/metropolitan-district-council/walsall ,WC130-160,30.09.2021,ADULT SOCIAL CARE,ADVANCE HEALTH CARE (UK) LTD,23/09/2021,825.28,6541-Domiciliary Care,THIRD PARTY PAYMENTS,PRIVATE CONTRACTOR,REVENUE
Walsall Council,http://opendatacommunities.org/id/metropolitan-district-council/walsall ,WC130-161,30.09.2021,ADULT SOCIAL CARE,ADVANCE HEALTH CARE (UK) LTD,23/09/2021,472.36,6541-Domiciliary Care,THIRD PARTY PAYMENTS,PRIVATE CONTRACTOR,REVENUE
Walsall Council,http://opendatacommunities.org/id/metropolitan-district-council/walsall ,WC130-162,30.09.2021,ADULT SOCIAL CARE,ADVANCE HEALTH CARE (UK) LTD,23/09/2021,825.28,6541-Domiciliary Care,THIRD PARTY PAYMENTS,PRIVATE CONTRACTOR,REVENUE
Walsall Council,http://opendatacommunities.org/id/metropolitan-district-council/walsall ,WC130-163,30.09.2021,ADULT SOCIAL CARE,ADVANCE HEALTH CARE (UK) LTD,30/09/2021,"-58,902.48",6554-Carers One off Payment,TRANSFER PAYMENTS,ADULT SOCIAL SERVICES CLIENT,REVENUE
Walsall Council,http://opendatacommunities.org/id/metropolitan-district-council/walsall ,WC130-164,30.09.2021,ADULT SOCIAL CARE,ADVANCE HEALTH CARE (UK) LTD,30/09/2021,"-55,989.72",6554-Carers One off Payment,TRANSFER PAYMENTS,ADULT SOCIAL SERVICES CLIENT,REVENUE
Walsall Council,http://opendatacommunities.org/id/metropolitan-district-council/walsall ,WC130-165,30.09.2021,ADULT SOCIAL CARE,ADVANCE HEALTH CARE (UK) LTD,30/09/2021,"-2,265.48",6554-Carers One off Payment,TRANSFER PAYMENTS,ADULT SOCIAL SERVICES CLIENT,REVENUE
Walsall Council,http://opendatacommunities.org/id/metropolitan-district-council/walsall ,WC130-166,30.09.2021,ADULT SOCIAL CARE,ADVANCE HEALTH CARE (UK) LTD,30/09/2021,"2,265.48",6554-Carers One off Payment,TRANSFER PAYMENTS,ADULT SOCIAL SERVICES CLIENT,REVENUE
Walsall Council,http://opendatacommunities.org/id/metropolitan-district-council/walsall ,WC130-167,30.09.2021,ADULT SOCIAL CARE,ADVANCE HEALTH CARE (UK) LTD,30/09/2021,"2,912.76",6554-Carers One off Payment,TRANSFER PAYMENTS,ADULT SOCIAL SERVICES CLIENT,REVENUE
Walsall Council,http://opendatacommunities.org/id/metropolitan-district-council/walsall ,WC130-168,30.09.2021,ADULT SOCIAL CARE,ADVANCE HEALTH CARE (UK) LTD,30/09/2021,"55,989.72",6554-Carers One off Payment,TRANSFER PAYMENTS,ADULT SOCIAL SERVICES CLIENT,REVENUE
Walsall Council,http://opendatacommunities.org/id/metropolitan-district-council/walsall ,WC130-169,30.09.2021,ADULT SOCIAL CARE,ADVANCE HEALTH CARE (UK) LTD,30/09/2021,"58,902.48",6554-Carers One off Payment,TRANSFER PAYMENTS,ADULT SOCIAL SERVICES CLIENT,REVENUE
Walsall Council,http://opendatacommunities.org/id/metropolitan-district-council/walsall ,WC130-170,30.09.2021,ADULT SOCIAL CARE,ADVANCE HEALTH CARE (UK) LTD,08/09/2021,"9,061.92",6554-Carers One off Payment,TRANSFER PAYMENTS,ADULT SOCIAL SERVICES CLIENT,REVENUE
Walsall Council,http://opendatacommunities.org/id/metropolitan-district-council/walsall ,WC130-171,30.09.2021,ADULT SOCIAL CARE,ADVANCE HEALTH CARE (UK) LTD,07/09/2021,"-9,061.92",6554-Carers One off Payment,TRANSFER PAYMENTS,ADULT SOCIAL SERVICES CLIENT,REVENUE
Walsall Council,http://opendatacommunities.org/id/metropolitan-district-council/walsall ,WC130-172,30.09.2021,ADULT SOCIAL CARE,ADVANCE HEALTH CARE (UK) LTD,07/09/2021,"9,061.92",6554-Carers One off Payment,TRANSFER PAYMENTS,ADULT SOCIAL SERVICES CLIENT,REVENUE
Walsall Council,http://opendatacommunities.org/id/metropolitan-district-council/walsall ,WC130-173,30.09.2021,ADULT SOCIAL CARE,ADVANCE HEALTH CARE (UK) LTD,22/09/2021,840.84,6541-Domiciliary Care,THIRD PARTY PAYMENTS,PRIVATE CONTRACTOR,REVENUE
Walsall Council,http://opendatacommunities.org/id/metropolitan-district-council/walsall ,WC130-174,30.09.2021,ADULT SOCIAL CARE,ADVANCE HEALTH CARE (UK) LTD,22/09/2021,665.95,6541-Domiciliary Care,THIRD PARTY PAYMENTS,PRIVATE CONTRACTOR,REVENUE
Walsall Council,http://opendatacommunities.org/id/metropolitan-district-council/walsall ,WC130-175,30.09.2021,ADULT SOCIAL CARE,ADVANCE HEALTH CARE (UK) LTD,22/09/2021,"1,409.09",6541-Domiciliary Care,THIRD PARTY PAYMENTS,PRIVATE CONTRACTOR,REVENUE
Walsall Council,http://opendatacommunities.org/id/metropolitan-district-council/walsall ,WC130-176,30.09.2021,ADULT SOCIAL CARE,ADVANCE HEALTH CARE (UK) LTD,22/09/2021,"1,961.96",6541-Domiciliary Care,THIRD PARTY PAYMENTS,PRIVATE CONTRACTOR,REVENUE
Walsall Council,http://opendatacommunities.org/id/metropolitan-district-council/walsall ,WC130-177,30.09.2021,ADULT SOCIAL CARE,ADVANCE HEALTH CARE (UK) LTD,22/09/2021,856.46,6541-Domiciliary Care,THIRD PARTY PAYMENTS,PRIVATE CONTRACTOR,REVENUE
Walsall Council,http://opendatacommunities.org/id/metropolitan-district-council/walsall ,WC130-178,30.09.2021,ADULT SOCIAL CARE,ADVANCE HEALTH CARE (UK) LTD,22/09/2021,"1,961.96",6541-Domiciliary Care,THIRD PARTY PAYMENTS,PRIVATE CONTRACTOR,REVENUE
Walsall Council,http://opendatacommunities.org/id/metropolitan-district-council/walsall ,WC130-179,30.09.2021,ADULT SOCIAL CARE,ADVANCE HEALTH CARE (UK) LTD,22/09/2021,"1,985.31",6541-Domiciliary Care,THIRD PARTY PAYMENTS,PRIVATE CONTRACTOR,REVENUE
Walsall Council,http://opendatacommunities.org/id/metropolitan-district-council/walsall ,WC130-180,30.09.2021,ADULT SOCIAL CARE,ADVANCE HEALTH CARE (UK) LTD,22/09/2021,428.34,6541-Domiciliary Care,THIRD PARTY PAYMENTS,PRIVATE CONTRACTOR,REVENUE
Walsall Council,http://opendatacommunities.org/id/metropolitan-district-council/walsall ,WC130-181,30.09.2021,ADULT SOCIAL CARE,ADVANCE HEALTH CARE (UK) LTD,22/09/2021,"1,191.19",6541-Domiciliary Care,THIRD PARTY PAYMENTS,PRIVATE CONTRACTOR,REVENUE
Walsall Council,http://opendatacommunities.org/id/metropolitan-district-council/walsall ,WC130-182,30.09.2021,ADULT SOCIAL CARE,ADVANCE HEALTH CARE (UK) LTD,22/09/2021,"1,471.47",6541-Domiciliary Care,THIRD PARTY PAYMENTS,PRIVATE CONTRACTOR,REVENUE
Walsall Council,http://opendatacommunities.org/id/metropolitan-district-council/walsall ,WC130-183,30.09.2021,ADULT SOCIAL CARE,ADVANCE HEALTH CARE (UK) LTD,22/09/2021,"1,961.96",6541-Domiciliary Care,THIRD PARTY PAYMENTS,PRIVATE CONTRACTOR,REVENUE
Walsall Council,http://opendatacommunities.org/id/metropolitan-district-council/walsall ,WC130-184,30.09.2021,ADULT SOCIAL CARE,ADVANCE HEALTH CARE (UK) LTD,22/09/2021,"1,237.90",6541-Domiciliary Care,THIRD PARTY PAYMENTS,PRIVATE CONTRACTOR,REVENUE
Walsall Council,http://opendatacommunities.org/id/metropolitan-district-council/walsall ,WC130-185,30.09.2021,ADULT SOCIAL CARE,ADVANCE HEALTH CARE (UK) LTD,22/09/2021,871.98,6541-Domiciliary Care,THIRD PARTY PAYMENTS,PRIVATE CONTRACTOR,REVENUE
Walsall Council,http://opendatacommunities.org/id/metropolitan-district-council/walsall ,WC130-186,30.09.2021,ADULT SOCIAL CARE,ADVANCE HEALTH CARE (UK) LTD,22/09/2021,350.35,6541-Domiciliary Care,THIRD PARTY PAYMENTS,PRIVATE CONTRACTOR,REVENUE
Walsall Council,http://opendatacommunities.org/id/metropolitan-district-council/walsall ,WC130-187,30.09.2021,ADULT SOCIAL CARE,ADVANCE HEALTH CARE (UK) LTD,22/09/2021,447.81,6541-Domiciliary Care,THIRD PARTY PAYMENTS,PRIVATE CONTRACTOR,REVENUE
Walsall Council,http://opendatacommunities.org/id/metropolitan-district-council/walsall ,WC130-188,30.09.2021,ADULT SOCIAL CARE,ADVANCE HEALTH CARE (UK) LTD,22/09/2021,980.98,6541-Domiciliary Care,THIRD PARTY PAYMENTS,PRIVATE CONTRACTOR,REVENUE
Walsall Council,http://opendatacommunities.org/id/metropolitan-district-council/walsall ,WC130-189,30.09.2021,ADULT SOCIAL CARE,ADVANCE HEALTH CARE (UK) LTD,22/09/2021,560.56,6541-Domiciliary Care,THIRD PARTY PAYMENTS,PRIVATE CONTRACTOR,REVENUE
Walsall Council,http://opendatacommunities.org/id/metropolitan-district-council/walsall ,WC130-190,30.09.2021,ADULT SOCIAL CARE,ADVANCE HEALTH CARE (UK) LTD,22/09/2021,436.24,6541-Domiciliary Care,THIRD PARTY PAYMENTS,PRIVATE CONTRACTOR,REVENUE
Walsall Council,http://opendatacommunities.org/id/metropolitan-district-council/walsall ,WC130-191,30.09.2021,ADULT SOCIAL CARE,ADVANCE HEALTH CARE (UK) LTD,22/09/2021,315.45,6541-Domiciliary Care,THIRD PARTY PAYMENTS,PRIVATE CONTRACTOR,REVENUE
Walsall Council,http://opendatacommunities.org/id/metropolitan-district-council/walsall ,WC130-192,30.09.2021,ADULT SOCIAL CARE,ADVANCE HEALTH CARE (UK) LTD,22/09/2021,280.28,6541-Domiciliary Care,THIRD PARTY PAYMENTS,PRIVATE CONTRACTOR,REVENUE
Walsall Council,http://opendatacommunities.org/id/metropolitan-district-council/walsall ,WC130-193,30.09.2021,ADULT SOCIAL CARE,ADVANCE HEALTH CARE (UK) LTD,28/09/2021,490.49,6541-Domiciliary Care,THIRD PARTY PAYMENTS,PRIVATE CONTRACTOR,REVENUE
Walsall Council,http://opendatacommunities.org/id/metropolitan-district-council/walsall ,WC130-194,30.09.2021,ADULT SOCIAL CARE,ADVANCE HEALTH CARE (UK) LTD,28/09/2021,352.92,6541-Domiciliary Care,THIRD PARTY PAYMENTS,PRIVATE CONTRACTOR,REVENUE
Walsall Council,http://opendatacommunities.org/id/metropolitan-district-council/walsall ,WC130-195,30.09.2021,ADULT SOCIAL CARE,ADVANCE HEALTH CARE (UK) LTD,28/09/2021,708.47,6541-Domiciliary Care,THIRD PARTY PAYMENTS,PRIVATE CONTRACTOR,REVENUE
Walsall Council,http://opendatacommunities.org/id/metropolitan-district-council/walsall ,WC130-196,30.09.2021,ADULT SOCIAL CARE,ADVANCE HEALTH CARE (UK) LTD,28/09/2021,763.00,6541-Domiciliary Care,THIRD PARTY PAYMENTS,PRIVATE CONTRACTOR,REVENUE
Walsall Council,http://opendatacommunities.org/id/metropolitan-district-council/walsall ,WC130-197,30.09.2021,ADULT SOCIAL CARE,ADVANCE HEALTH CARE (UK) LTD,28/09/2021,435.96,6541-Domiciliary Care,THIRD PARTY PAYMENTS,PRIVATE CONTRACTOR,REVENUE
Walsall Council,http://opendatacommunities.org/id/metropolitan-district-council/walsall ,WC130-198,30.09.2021,ADULT SOCIAL CARE,ADVANCE HEALTH CARE (UK) LTD,28/09/2021,537.20,6541-Domiciliary Care,THIRD PARTY PAYMENTS,PRIVATE CONTRACTOR,REVENUE
Walsall Council,http://opendatacommunities.org/id/metropolitan-district-council/walsall ,WC130-199,30.09.2021,ADULT SOCIAL CARE,ADVANCE HEALTH CARE (UK) LTD,28/09/2021,490.49,6541-Domiciliary Care,THIRD PARTY PAYMENTS,PRIVATE CONTRACTOR,REVENUE
Walsall Council,http://opendatacommunities.org/id/metropolitan-district-council/walsall ,WC130-200,30.09.2021,ADULT SOCIAL CARE,ADVANCE HEALTH CARE (UK) LTD,28/09/2021,435.96,6541-Domiciliary Care,THIRD PARTY PAYMENTS,PRIVATE CONTRACTOR,REVENUE
Walsall Council,http://opendatacommunities.org/id/metropolitan-district-council/walsall ,WC130-201,30.09.2021,ADULT SOCIAL CARE,ADVANCE HEALTH CARE (UK) LTD,28/09/2021,544.95,6541-Domiciliary Care,THIRD PARTY PAYMENTS,PRIVATE CONTRACTOR,REVENUE
Walsall Council,http://opendatacommunities.org/id/metropolitan-district-council/walsall ,WC130-202,30.09.2021,ADULT SOCIAL CARE,ADVANCE HEALTH CARE (UK) LTD,28/09/2021,435.96,6541-Domiciliary Care,THIRD PARTY PAYMENTS,PRIVATE CONTRACTOR,REVENUE
Walsall Council,http://opendatacommunities.org/id/metropolitan-district-council/walsall ,WC130-203,30.09.2021,ADULT SOCIAL CARE,ADVANCE HEALTH CARE (UK) LTD,28/09/2021,980.91,6541-Domiciliary Care,THIRD PARTY PAYMENTS,PRIVATE CONTRACTOR,REVENUE
Walsall Council,http://opendatacommunities.org/id/metropolitan-district-council/walsall ,WC130-204,30.09.2021,ADULT SOCIAL CARE,ADVANCE HEALTH CARE (UK) LTD,28/09/2021,490.49,6541-Domiciliary Care,THIRD PARTY PAYMENTS,PRIVATE CONTRACTOR,REVENUE
Walsall Council,http://opendatacommunities.org/id/metropolitan-district-council/walsall ,WC130-205,30.09.2021,ADULT SOCIAL CARE,ADVANCE HEALTH CARE (UK) LTD,28/09/2021,454.16,6541-Domiciliary Care,THIRD PARTY PAYMENTS,PRIVATE CONTRACTOR,REVENUE
Walsall Council,http://opendatacommunities.org/id/metropolitan-district-council/walsall ,WC130-206,30.09.2021,ADULT SOCIAL CARE,ADVANCE HEALTH CARE (UK) LTD,28/09/2021,435.96,6541-Domiciliary Care,THIRD PARTY PAYMENTS,PRIVATE CONTRACTOR,REVENUE
Walsall Council,http://opendatacommunities.org/id/metropolitan-district-council/walsall ,WC130-207,30.09.2021,ADULT SOCIAL CARE,ADVANCE HEALTH CARE (UK) LTD,28/09/2021,326.97,6541-Domiciliary Care,THIRD PARTY PAYMENTS,PRIVATE CONTRACTOR,REVENUE
Walsall Council,http://opendatacommunities.org/id/metropolitan-district-council/walsall ,WC130-208,30.09.2021,ADULT SOCIAL CARE,ADVANCE HEALTH CARE (UK) LTD,28/09/2021,454.16,6541-Domiciliary Care,THIRD PARTY PAYMENTS,PRIVATE CONTRACTOR,REVENUE
Walsall Council,http://opendatacommunities.org/id/metropolitan-district-council/walsall ,WC130-209,30.09.2021,ADULT SOCIAL CARE,ADVANCE HEALTH CARE (UK) LTD,28/09/2021,490.49,6541-Domiciliary Care,THIRD PARTY PAYMENTS,PRIVATE CONTRACTOR,REVENUE
Walsall Council,http://opendatacommunities.org/id/metropolitan-district-council/walsall ,WC130-210,30.09.2021,ADULT SOCIAL CARE,ADVANCE HEALTH CARE (UK) LTD,28/09/2021,833.03,6541-Domiciliary Care,THIRD PARTY PAYMENTS,PRIVATE CONTRACTOR,REVENUE
Walsall Council,http://opendatacommunities.org/id/metropolitan-district-council/walsall ,WC130-211,30.09.2021,ADULT SOCIAL CARE,ADVANCE HEALTH CARE (UK) LTD,28/09/2021,490.49,6541-Domiciliary Care,THIRD PARTY PAYMENTS,PRIVATE CONTRACTOR,REVENUE
Walsall Council,http://opendatacommunities.org/id/metropolitan-district-council/walsall ,WC130-212,30.09.2021,ADULT SOCIAL CARE,ADVANCE HEALTH CARE (UK) LTD,28/09/2021,490.49,6541-Domiciliary Care,THIRD PARTY PAYMENTS,PRIVATE CONTRACTOR,REVENUE
Walsall Council,http://opendatacommunities.org/id/metropolitan-district-council/walsall ,WC130-213,30.09.2021,ADULT SOCIAL CARE,ADVANCE HEALTH CARE (UK) LTD,28/09/2021,490.49,6541-Domiciliary Care,THIRD PARTY PAYMENTS,PRIVATE CONTRACTOR,REVENUE
Walsall Council,http://opendatacommunities.org/id/metropolitan-district-council/walsall ,WC130-214,30.09.2021,ADULT SOCIAL CARE,ADVANCE HEALTH CARE (UK) LTD,28/09/2021,544.95,6541-Domiciliary Care,THIRD PARTY PAYMENTS,PRIVATE CONTRACTOR,REVENUE
Walsall Council,http://opendatacommunities.org/id/metropolitan-district-council/walsall ,WC130-215,30.09.2021,ADULT SOCIAL CARE,ADVANCE HEALTH CARE (UK) LTD,28/09/2021,435.96,6541-Domiciliary Care,THIRD PARTY PAYMENTS,PRIVATE CONTRACTOR,REVENUE
Walsall Council,http://opendatacommunities.org/id/metropolitan-district-council/walsall ,WC130-216,30.09.2021,ADULT SOCIAL CARE,ADVANCE HEALTH CARE (UK) LTD,28/09/2021,490.49,6541-Domiciliary Care,THIRD PARTY PAYMENTS,PRIVATE CONTRACTOR,REVENUE
Walsall Council,http://opendatacommunities.org/id/metropolitan-district-council/walsall ,WC130-217,30.09.2021,ADULT SOCIAL CARE,ADVANCE HEALTH CARE (UK) LTD,28/09/2021,871.92,6541-Domiciliary Care,THIRD PARTY PAYMENTS,PRIVATE CONTRACTOR,REVENUE
Walsall Council,http://opendatacommunities.org/id/metropolitan-district-council/walsall ,WC130-218,30.09.2021,ADULT SOCIAL CARE,ADVANCE HEALTH CARE (UK) LTD,28/09/2021,326.97,6541-Domiciliary Care,THIRD PARTY PAYMENTS,PRIVATE CONTRACTOR,REVENUE
Walsall Council,http://opendatacommunities.org/id/metropolitan-district-council/walsall ,WC130-219,30.09.2021,ADULT SOCIAL CARE,ADVANCE HEALTH CARE (UK) LTD,28/09/2021,381.50,6541-Domiciliary Care,THIRD PARTY PAYMENTS,PRIVATE CONTRACTOR,REVENUE
Walsall Council,http://opendatacommunities.org/id/metropolitan-district-council/walsall ,WC130-220,30.09.2021,ADULT SOCIAL CARE,ADVANCE HEALTH CARE (UK) LTD,28/09/2021,490.49,6541-Domiciliary Care,THIRD PARTY PAYMENTS,PRIVATE CONTRACTOR,REVENUE
Walsall Council,http://opendatacommunities.org/id/metropolitan-district-council/walsall ,WC130-221,30.09.2021,ADULT SOCIAL CARE,ADVANCE HEALTH CARE (UK) LTD,28/09/2021,506.06,6541-Domiciliary Care,THIRD PARTY PAYMENTS,PRIVATE CONTRACTOR,REVENUE
Walsall Council,http://opendatacommunities.org/id/metropolitan-district-council/walsall ,WC130-222,30.09.2021,ADULT SOCIAL CARE,ADVANCE HEALTH CARE (UK) LTD,28/09/2021,435.96,6541-Domiciliary Care,THIRD PARTY PAYMENTS,PRIVATE CONTRACTOR,REVENUE
Walsall Council,http://opendatacommunities.org/id/metropolitan-district-council/walsall ,WC130-223,30.09.2021,ADULT SOCIAL CARE,ADVANCE HEALTH CARE (UK) LTD,28/09/2021,363.30,6541-Domiciliary Care,THIRD PARTY PAYMENTS,PRIVATE CONTRACTOR,REVENUE
Walsall Council,http://opendatacommunities.org/id/metropolitan-district-council/walsall ,WC130-224,30.09.2021,ADULT SOCIAL CARE,ADVANCE HEALTH CARE (UK) LTD,28/09/2021,490.49,6541-Domiciliary Care,THIRD PARTY PAYMENTS,PRIVATE CONTRACTOR,REVENUE
Walsall Council,http://opendatacommunities.org/id/metropolitan-district-council/walsall ,WC130-225,30.09.2021,ADULT SOCIAL CARE,ADVANCE HEALTH CARE (UK) LTD,28/09/2021,435.96,6541-Domiciliary Care,THIRD PARTY PAYMENTS,PRIVATE CONTRACTOR,REVENUE
Walsall Council,http://opendatacommunities.org/id/metropolitan-district-council/walsall ,WC130-226,30.09.2021,ADULT SOCIAL CARE,ADVANCE HEALTH CARE (UK) LTD,28/09/2021,490.49,6541-Domiciliary Care,THIRD PARTY PAYMENTS,PRIVATE CONTRACTOR,REVENUE
Walsall Council,http://opendatacommunities.org/id/metropolitan-district-council/walsall ,WC130-227,30.09.2021,ADULT SOCIAL CARE,ADVANCE HEALTH CARE (UK) LTD,28/09/2021,490.49,6541-Domiciliary Care,THIRD PARTY PAYMENTS,PRIVATE CONTRACTOR,REVENUE
Walsall Council,http://opendatacommunities.org/id/metropolitan-district-council/walsall ,WC130-228,30.09.2021,ADULT SOCIAL CARE,ADVANCE HEALTH CARE (UK) LTD,28/09/2021,490.49,6541-Domiciliary Care,THIRD PARTY PAYMENTS,PRIVATE CONTRACTOR,REVENUE
Walsall Council,http://opendatacommunities.org/id/metropolitan-district-council/walsall ,WC130-229,30.09.2021,ADULT SOCIAL CARE,ADVANCE HEALTH CARE (UK) LTD,28/09/2021,490.49,6541-Domiciliary Care,THIRD PARTY PAYMENTS,PRIVATE CONTRACTOR,REVENUE
Walsall Council,http://opendatacommunities.org/id/metropolitan-district-council/walsall ,WC130-230,30.09.2021,ADULT SOCIAL CARE,ADVANCE HEALTH CARE (UK) LTD,28/09/2021,654.01,6541-Domiciliary Care,THIRD PARTY PAYMENTS,PRIVATE CONTRACTOR,REVENUE
Walsall Council,http://opendatacommunities.org/id/metropolitan-district-council/walsall ,WC130-231,30.09.2021,ADULT SOCIAL CARE,ADVANCE HEALTH CARE (UK) LTD,28/09/2021,256.93,6541-Domiciliary Care,THIRD PARTY PAYMENTS,PRIVATE CONTRACTOR,REVENUE
Walsall Council,http://opendatacommunities.org/id/metropolitan-district-council/walsall ,WC130-232,30.09.2021,ADULT SOCIAL CARE,ADVANCE HEALTH CARE (UK) LTD,28/09/2021,490.49,6541-Domiciliary Care,THIRD PARTY PAYMENTS,PRIVATE CONTRACTOR,REVENUE
Walsall Council,http://opendatacommunities.org/id/metropolitan-district-council/walsall ,WC130-233,30.09.2021,ADULT SOCIAL CARE,ADVANCE HEALTH CARE (UK) LTD,28/09/2021,490.49,6541-Domiciliary Care,THIRD PARTY PAYMENTS,PRIVATE CONTRACTOR,REVENUE
Walsall Council,http://opendatacommunities.org/id/metropolitan-district-council/walsall ,WC130-234,30.09.2021,ADULT SOCIAL CARE,ADVANCE HEALTH CARE (UK) LTD,28/09/2021,435.96,6541-Domiciliary Care,THIRD PARTY PAYMENTS,PRIVATE CONTRACTOR,REVENUE
Walsall Council,http://opendatacommunities.org/id/metropolitan-district-council/walsall ,WC130-235,30.09.2021,ADULT SOCIAL CARE,ADVANCE HEALTH CARE (UK) LTD,28/09/2021,435.96,6541-Domiciliary Care,THIRD PARTY PAYMENTS,PRIVATE CONTRACTOR,REVENUE
Walsall Council,http://opendatacommunities.org/id/metropolitan-district-council/walsall ,WC130-236,30.09.2021,ADULT SOCIAL CARE,ADVANCE HEALTH CARE (UK) LTD,28/09/2021,635.81,6541-Domiciliary Care,THIRD PARTY PAYMENTS,PRIVATE CONTRACTOR,REVENUE
Walsall Council,http://opendatacommunities.org/id/metropolitan-district-council/walsall ,WC130-237,30.09.2021,ADULT SOCIAL CARE,ADVANCE HEALTH CARE (UK) LTD,28/09/2021,490.49,6541-Domiciliary Care,THIRD PARTY PAYMENTS,PRIVATE CONTRACTOR,REVENUE
Walsall Council,http://opendatacommunities.org/id/metropolitan-district-council/walsall ,WC130-238,30.09.2021,ADULT SOCIAL CARE,ADVANCE HEALTH CARE (UK) LTD,28/09/2021,454.16,6541-Domiciliary Care,THIRD PARTY PAYMENTS,PRIVATE CONTRACTOR,REVENUE
Walsall Council,http://opendatacommunities.org/id/metropolitan-district-council/walsall ,WC130-239,30.09.2021,ADULT SOCIAL CARE,ADVANCE HEALTH CARE (UK) LTD,28/09/2021,490.49,6541-Domiciliary Care,THIRD PARTY PAYMENTS,PRIVATE CONTRACTOR,REVENUE
Walsall Council,http://opendatacommunities.org/id/metropolitan-district-council/walsall ,WC130-240,30.09.2021,ADULT SOCIAL CARE,ADVANCE HEALTH CARE (UK) LTD,28/09/2021,435.96,6541-Domiciliary Care,THIRD PARTY PAYMENTS,PRIVATE CONTRACTOR,REVENUE
Walsall Council,http://opendatacommunities.org/id/metropolitan-district-council/walsall ,WC130-241,30.09.2021,ADULT SOCIAL CARE,ADVANCE HEALTH CARE (UK) LTD,28/09/2021,490.49,6541-Domiciliary Care,THIRD PARTY PAYMENTS,PRIVATE CONTRACTOR,REVENUE
Walsall Council,http://opendatacommunities.org/id/metropolitan-district-council/walsall ,WC130-242,30.09.2021,ADULT SOCIAL CARE,ADVANCE HEALTH CARE (UK) LTD,28/09/2021,454.16,6541-Domiciliary Care,THIRD PARTY PAYMENTS,PRIVATE CONTRACTOR,REVENUE
Walsall Council,http://opendatacommunities.org/id/metropolitan-district-council/walsall ,WC130-243,30.09.2021,ADULT SOCIAL CARE,ADVANCE HEALTH CARE (UK) LTD,28/09/2021,435.96,6541-Domiciliary Care,THIRD PARTY PAYMENTS,PRIVATE CONTRACTOR,REVENUE
Walsall Council,http://opendatacommunities.org/id/metropolitan-district-council/walsall ,WC130-244,30.09.2021,ADULT SOCIAL CARE,ADVANCE HEALTH CARE (UK) LTD,28/09/2021,326.97,6541-Domiciliary Care,THIRD PARTY PAYMENTS,PRIVATE CONTRACTOR,REVENUE
Walsall Council,http://opendatacommunities.org/id/metropolitan-district-council/walsall ,WC130-245,30.09.2021,ADULT SOCIAL CARE,ADVANCE HEALTH CARE (UK) LTD,28/09/2021,537.20,6541-Domiciliary Care,THIRD PARTY PAYMENTS,PRIVATE CONTRACTOR,REVENUE
Walsall Council,http://opendatacommunities.org/id/metropolitan-district-council/walsall ,WC130-246,30.09.2021,ADULT SOCIAL CARE,ADVANCE HEALTH CARE (UK) LTD,28/09/2021,368.49,6541-Domiciliary Care,THIRD PARTY PAYMENTS,PRIVATE CONTRACTOR,REVENUE
Walsall Council,http://opendatacommunities.org/id/metropolitan-district-council/walsall ,WC130-247,30.09.2021,ADULT SOCIAL CARE,ADVANCE HEALTH CARE (UK) LTD,28/09/2021,708.47,6541-Domiciliary Care,THIRD PARTY PAYMENTS,PRIVATE CONTRACTOR,REVENUE
Walsall Council,http://opendatacommunities.org/id/metropolitan-district-council/walsall ,WC130-248,30.09.2021,ADULT SOCIAL CARE,ADVANCE HEALTH CARE (UK) LTD,28/09/2021,454.16,6541-Domiciliary Care,THIRD PARTY PAYMENTS,PRIVATE CONTRACTOR,REVENUE
Walsall Council,http://opendatacommunities.org/id/metropolitan-district-council/walsall ,WC130-249,30.09.2021,ADULT SOCIAL CARE,ADVANCE HEALTH CARE (UK) LTD,28/09/2021,490.49,6541-Domiciliary Care,THIRD PARTY PAYMENTS,PRIVATE CONTRACTOR,REVENUE
Walsall Council,http://opendatacommunities.org/id/metropolitan-district-council/walsall ,WC130-250,30.09.2021,ADULT SOCIAL CARE,ADVANCE HEALTH CARE (UK) LTD,28/09/2021,435.96,6541-Domiciliary Care,THIRD PARTY PAYMENTS,PRIVATE CONTRACTOR,REVENUE
Walsall Council,http://opendatacommunities.org/id/metropolitan-district-council/walsall ,WC130-251,30.09.2021,ADULT SOCIAL CARE,ADVANCE HEALTH CARE (UK) LTD,28/09/2021,544.95,6541-Domiciliary Care,THIRD PARTY PAYMENTS,PRIVATE CONTRACTOR,REVENUE
Walsall Council,http://opendatacommunities.org/id/metropolitan-district-council/walsall ,WC130-252,30.09.2021,ADULT SOCIAL CARE,ADVANCE HEALTH CARE (UK) LTD,28/09/2021,435.96,6541-Domiciliary Care,THIRD PARTY PAYMENTS,PRIVATE CONTRACTOR,REVENUE
Walsall Council,http://opendatacommunities.org/id/metropolitan-district-council/walsall ,WC130-253,30.09.2021,ADULT SOCIAL CARE,ADVANCE HEALTH CARE (UK) LTD,28/09/2021,700.65,6541-Domiciliary Care,THIRD PARTY PAYMENTS,PRIVATE CONTRACTOR,REVENUE
Walsall Council,http://opendatacommunities.org/id/metropolitan-district-council/walsall ,WC130-254,30.09.2021,ADULT SOCIAL CARE,ADVANCE HEALTH CARE (UK) LTD,28/09/2021,490.49,6541-Domiciliary Care,THIRD PARTY PAYMENTS,PRIVATE CONTRACTOR,REVENUE
Walsall Council,http://opendatacommunities.org/id/metropolitan-district-council/walsall ,WC130-255,30.09.2021,ADULT SOCIAL CARE,ADVANCE HEALTH CARE (UK) LTD,28/09/2021,871.92,6541-Domiciliary Care,THIRD PARTY PAYMENTS,PRIVATE CONTRACTOR,REVENUE
Walsall Council,http://opendatacommunities.org/id/metropolitan-district-council/walsall ,WC130-256,30.09.2021,ADULT SOCIAL CARE,ADVANCE HEALTH CARE (UK) LTD,28/09/2021,326.97,6541-Domiciliary Care,THIRD PARTY PAYMENTS,PRIVATE CONTRACTOR,REVENUE
Walsall Council,http://opendatacommunities.org/id/metropolitan-district-council/walsall ,WC130-257,30.09.2021,ADULT SOCIAL CARE,ADVANCE HEALTH CARE (UK) LTD,28/09/2021,381.50,6541-Domiciliary Care,THIRD PARTY PAYMENTS,PRIVATE CONTRACTOR,REVENUE
Walsall Council,http://opendatacommunities.org/id/metropolitan-district-council/walsall ,WC130-258,30.09.2021,ADULT SOCIAL CARE,ADVANCE HEALTH CARE (UK) LTD,28/09/2021,506.06,6541-Domiciliary Care,THIRD PARTY PAYMENTS,PRIVATE CONTRACTOR,REVENUE
Walsall Council,http://opendatacommunities.org/id/metropolitan-district-council/walsall ,WC130-259,30.09.2021,ADULT SOCIAL CARE,ADVANCE HEALTH CARE (UK) LTD,28/09/2021,435.96,6541-Domiciliary Care,THIRD PARTY PAYMENTS,PRIVATE CONTRACTOR,REVENUE
Walsall Council,http://opendatacommunities.org/id/metropolitan-district-council/walsall ,WC130-260,30.09.2021,ADULT SOCIAL CARE,ADVANCE HEALTH CARE (UK) LTD,28/09/2021,363.30,6541-Domiciliary Care,THIRD PARTY PAYMENTS,PRIVATE CONTRACTOR,REVENUE
Walsall Council,http://opendatacommunities.org/id/metropolitan-district-council/walsall ,WC130-261,30.09.2021,ADULT SOCIAL CARE,ADVANCE HEALTH CARE (UK) LTD,28/09/2021,490.49,6541-Domiciliary Care,THIRD PARTY PAYMENTS,PRIVATE CONTRACTOR,REVENUE
Walsall Council,http://opendatacommunities.org/id/metropolitan-district-council/walsall ,WC130-262,30.09.2021,ADULT SOCIAL CARE,ADVANCE HEALTH CARE (UK) LTD,28/09/2021,490.49,6541-Domiciliary Care,THIRD PARTY PAYMENTS,PRIVATE CONTRACTOR,REVENUE
Walsall Council,http://opendatacommunities.org/id/metropolitan-district-council/walsall ,WC130-263,30.09.2021,ADULT SOCIAL CARE,ADVANCE HEALTH CARE (UK) LTD,28/09/2021,490.49,6541-Domiciliary Care,THIRD PARTY PAYMENTS,PRIVATE CONTRACTOR,REVENUE
Walsall Council,http://opendatacommunities.org/id/metropolitan-district-council/walsall ,WC130-264,30.09.2021,ADULT SOCIAL CARE,ADVANCE HEALTH CARE (UK) LTD,28/09/2021,490.49,6541-Domiciliary Care,THIRD PARTY PAYMENTS,PRIVATE CONTRACTOR,REVENUE
Walsall Council,http://opendatacommunities.org/id/metropolitan-district-council/walsall ,WC130-265,30.09.2021,ADULT SOCIAL CARE,ADVANCE HEALTH CARE (UK) LTD,28/09/2021,490.49,6541-Domiciliary Care,THIRD PARTY PAYMENTS,PRIVATE CONTRACTOR,REVENUE
Walsall Council,http://opendatacommunities.org/id/metropolitan-district-council/walsall ,WC130-266,30.09.2021,ADULT SOCIAL CARE,ADVANCE HEALTH CARE (UK) LTD,28/09/2021,490.49,6541-Domiciliary Care,THIRD PARTY PAYMENTS,PRIVATE CONTRACTOR,REVENUE
Walsall Council,http://opendatacommunities.org/id/metropolitan-district-council/walsall ,WC130-267,30.09.2021,ADULT SOCIAL CARE,ADVANCE HEALTH CARE (UK) LTD,28/09/2021,654.01,6541-Domiciliary Care,THIRD PARTY PAYMENTS,PRIVATE CONTRACTOR,REVENUE
Walsall Council,http://opendatacommunities.org/id/metropolitan-district-council/walsall ,WC130-268,30.09.2021,ADULT SOCIAL CARE,ADVANCE HEALTH CARE (UK) LTD,28/09/2021,490.49,6541-Domiciliary Care,THIRD PARTY PAYMENTS,PRIVATE CONTRACTOR,REVENUE
Walsall Council,http://opendatacommunities.org/id/metropolitan-district-council/walsall ,WC130-269,30.09.2021,ADULT SOCIAL CARE,ADVANCE HEALTH CARE (UK) LTD,28/09/2021,833.03,6541-Domiciliary Care,THIRD PARTY PAYMENTS,PRIVATE CONTRACTOR,REVENUE
Walsall Council,http://opendatacommunities.org/id/metropolitan-district-council/walsall ,WC130-270,30.09.2021,ADULT SOCIAL CARE,ADVANCE HEALTH CARE (UK) LTD,28/09/2021,490.49,6541-Domiciliary Care,THIRD PARTY PAYMENTS,PRIVATE CONTRACTOR,REVENUE
Walsall Council,http://opendatacommunities.org/id/metropolitan-district-council/walsall ,WC130-271,30.09.2021,ADULT SOCIAL CARE,ADVANCE HEALTH CARE (UK) LTD,28/09/2021,490.49,6541-Domiciliary Care,THIRD PARTY PAYMENTS,PRIVATE CONTRACTOR,REVENUE
Walsall Council,http://opendatacommunities.org/id/metropolitan-district-council/walsall ,WC130-272,30.09.2021,ADULT SOCIAL CARE,ADVANCE HEALTH CARE (UK) LTD,28/09/2021,490.49,6541-Domiciliary Care,THIRD PARTY PAYMENTS,PRIVATE CONTRACTOR,REVENUE
Walsall Council,http://opendatacommunities.org/id/metropolitan-district-council/walsall ,WC130-273,30.09.2021,ADULT SOCIAL CARE,ADVANCE HEALTH CARE (UK) LTD,28/09/2021,544.95,6541-Domiciliary Care,THIRD PARTY PAYMENTS,PRIVATE CONTRACTOR,REVENUE
Walsall Council,http://opendatacommunities.org/id/metropolitan-district-council/walsall ,WC130-274,30.09.2021,ADULT SOCIAL CARE,ADVANCE HEALTH CARE (UK) LTD,28/09/2021,435.96,6541-Domiciliary Care,THIRD PARTY PAYMENTS,PRIVATE CONTRACTOR,REVENUE
Walsall Council,http://opendatacommunities.org/id/metropolitan-district-council/walsall ,WC130-275,30.09.2021,ADULT SOCIAL CARE,ADVANCE HEALTH CARE (UK) LTD,28/09/2021,256.93,6541-Domiciliary Care,THIRD PARTY PAYMENTS,PRIVATE CONTRACTOR,REVENUE
Walsall Council,http://opendatacommunities.org/id/metropolitan-district-council/walsall ,WC130-276,30.09.2021,ADULT SOCIAL CARE,ADVANCE HEALTH CARE (UK) LTD,28/09/2021,311.40,6541-Domiciliary Care,THIRD PARTY PAYMENTS,PRIVATE CONTRACTOR,REVENUE
Walsall Council,http://opendatacommunities.org/id/metropolitan-district-council/walsall ,WC130-277,30.09.2021,ADULT SOCIAL CARE,ADVANCE HEALTH CARE (UK) LTD,28/09/2021,490.49,6541-Domiciliary Care,THIRD PARTY PAYMENTS,PRIVATE CONTRACTOR,REVENUE
Walsall Council,http://opendatacommunities.org/id/metropolitan-district-council/walsall ,WC130-278,30.09.2021,ADULT SOCIAL CARE,ADVANCE HEALTH CARE (UK) LTD,28/09/2021,490.49,6541-Domiciliary Care,THIRD PARTY PAYMENTS,PRIVATE CONTRACTOR,REVENUE
Walsall Council,http://opendatacommunities.org/id/metropolitan-district-council/walsall ,WC130-279,30.09.2021,ADULT SOCIAL CARE,ADVANCE HEALTH CARE (UK) LTD,28/09/2021,435.96,6541-Domiciliary Care,THIRD PARTY PAYMENTS,PRIVATE CONTRACTOR,REVENUE
Walsall Council,http://opendatacommunities.org/id/metropolitan-district-council/walsall ,WC130-280,30.09.2021,ADULT SOCIAL CARE,ADVANCE HEALTH CARE (UK) LTD,28/09/2021,490.49,6541-Domiciliary Care,THIRD PARTY PAYMENTS,PRIVATE CONTRACTOR,REVENUE
Walsall Council,http://opendatacommunities.org/id/metropolitan-district-council/walsall ,WC130-281,30.09.2021,ADULT SOCIAL CARE,ADVANCE HEALTH CARE (UK) LTD,28/09/2021,435.96,6541-Domiciliary Care,THIRD PARTY PAYMENTS,PRIVATE CONTRACTOR,REVENUE
Walsall Council,http://opendatacommunities.org/id/metropolitan-district-council/walsall ,WC130-282,30.09.2021,ADULT SOCIAL CARE,ADVANCE HEALTH CARE (UK) LTD,28/09/2021,435.96,6541-Domiciliary Care,THIRD PARTY PAYMENTS,PRIVATE CONTRACTOR,REVENUE
Walsall Council,http://opendatacommunities.org/id/metropolitan-district-council/walsall ,WC130-283,30.09.2021,ADULT SOCIAL CARE,ADVANCE HEALTH CARE (UK) LTD,28/09/2021,635.81,6541-Domiciliary Care,THIRD PARTY PAYMENTS,PRIVATE CONTRACTOR,REVENUE
Walsall Council,http://opendatacommunities.org/id/metropolitan-district-council/walsall ,WC130-284,30.09.2021,ADULT SOCIAL CARE,ADVANCE HEALTH CARE (UK) LTD,28/09/2021,490.49,6541-Domiciliary Care,THIRD PARTY PAYMENTS,PRIVATE CONTRACTOR,REVENUE
Walsall Council,http://opendatacommunities.org/id/metropolitan-district-council/walsall ,WC130-285,30.09.2021,ADULT SOCIAL CARE,ADVANCE HEALTH CARE (UK) LTD,28/09/2021,454.16,6541-Domiciliary Care,THIRD PARTY PAYMENTS,PRIVATE CONTRACTOR,REVENUE
Walsall Council,http://opendatacommunities.org/id/metropolitan-district-council/walsall ,WC130-286,30.09.2021,ADULT SOCIAL CARE,ADVANCE HEALTH CARE (UK) LTD,23/09/2021,"2,107.84",6541-Domiciliary Care,THIRD PARTY PAYMENTS,PRIVATE CONTRACTOR,REVENUE
Walsall Council,http://opendatacommunities.org/id/metropolitan-district-council/walsall ,WC130-287,30.09.2021,ADULT SOCIAL CARE,ADVANCE HEALTH CARE (UK) LTD,09/09/2021,"2,541.35",6541-Domiciliary Care,THIRD PARTY PAYMENTS,PRIVATE CONTRACTOR,REVENUE
Walsall Council,http://opendatacommunities.org/id/metropolitan-district-council/walsall ,WC130-288,30.09.2021,ADULT SOCIAL CARE,ADVANCE HEALTH CARE (UK) LTD,09/09/2021,965.84,6541-Domiciliary Care,THIRD PARTY PAYMENTS,PRIVATE CONTRACTOR,REVENUE
Walsall Council,http://opendatacommunities.org/id/metropolitan-district-council/walsall ,WC130-289,30.09.2021,ADULT SOCIAL CARE,ADVANCE HEALTH CARE (UK) LTD,09/09/2021,763.00,6541-Domiciliary Care,THIRD PARTY PAYMENTS,PRIVATE CONTRACTOR,REVENUE
Walsall Council,http://opendatacommunities.org/id/metropolitan-district-council/walsall ,WC130-290,30.09.2021,ADULT SOCIAL CARE,ADVANCE HEALTH CARE (UK) LTD,09/09/2021,726.88,6541-Domiciliary Care,THIRD PARTY PAYMENTS,PRIVATE CONTRACTOR,REVENUE
Walsall Council,http://opendatacommunities.org/id/metropolitan-district-council/walsall ,WC130-291,30.09.2021,ADULT SOCIAL CARE,ADVANCE HEALTH CARE (UK) LTD,23/09/2021,"2,761.92",6541-Domiciliary Care,THIRD PARTY PAYMENTS,PRIVATE CONTRACTOR,REVENUE
Walsall Council,http://opendatacommunities.org/id/metropolitan-district-council/walsall ,WC130-292,30.09.2021,ADULT SOCIAL CARE,ADVANCE HEALTH CARE (UK) LTD,09/09/2021,716.64,6541-Domiciliary Care,THIRD PARTY PAYMENTS,PRIVATE CONTRACTOR,REVENUE
Walsall Council,http://opendatacommunities.org/id/metropolitan-district-council/walsall ,WC130-293,30.09.2021,ADULT SOCIAL CARE,ADVANCE HEALTH CARE (UK) LTD,09/09/2021,"1,173.21",6541-Domiciliary Care,THIRD PARTY PAYMENTS,PRIVATE CONTRACTOR,REVENUE
Walsall Council,http://opendatacommunities.org/id/metropolitan-district-council/walsall ,WC130-294,30.09.2021,ADULT SOCIAL CARE,ADVANCE HEALTH CARE (UK) LTD,09/09/2021,825.28,6541-Domiciliary Care,THIRD PARTY PAYMENTS,PRIVATE CONTRACTOR,REVENUE
Walsall Council,http://opendatacommunities.org/id/metropolitan-district-council/walsall ,WC130-295,30.09.2021,ADULT SOCIAL CARE,ADVANCE HEALTH CARE (UK) LTD,09/09/2021,472.36,6541-Domiciliary Care,THIRD PARTY PAYMENTS,PRIVATE CONTRACTOR,REVENUE
Walsall Council,http://opendatacommunities.org/id/metropolitan-district-council/walsall ,WC130-296,30.09.2021,ADULT SOCIAL CARE,ADVANCE HEALTH CARE (UK) LTD,09/09/2021,825.28,6541-Domiciliary Care,THIRD PARTY PAYMENTS,PRIVATE CONTRACTOR,REVENUE
Walsall Council,http://opendatacommunities.org/id/metropolitan-district-council/walsall ,WC130-297,30.09.2021,ADULT SOCIAL CARE,ADVANCE PHARMA LTD T/A PLECK PHARMACY,17/09/2021,260.00,6420-Contribution to PCT,THIRD PARTY PAYMENTS,HEALTH AUTHORITIES,REVENUE
Walsall Council,http://opendatacommunities.org/id/metropolitan-district-council/walsall ,WC130-298,30.09.2021,CHILDRENS CAPITAL,ADVANCED CONTRACTS (MIDLANDS) LTD,23/09/2021,"5,245.00",7155-Site Works Contractors,CAPITAL,"NEW CONSTRUCTION,CONVERSION & RENOVATION",CAPITAL
Walsall Council,http://opendatacommunities.org/id/metropolitan-district-council/walsall ,WC130-299,30.09.2021,CHILDRENS,ADVENTURELAND DAY NURSERY,03/09/2021,"9,355.50",1184-Other-Grants to Other Orgs,SUPPLIES & SERVICES,GRANTS (EXP) & SUBSCRIPTIONS,REVENUE
Walsall Council,http://opendatacommunities.org/id/metropolitan-district-council/walsall ,WC130-300,30.09.2021,CHILDRENS,ADVENTURELAND DAY NURSERY,03/09/2021,"13,645.80",1184-Other-Grants to Other Orgs,SUPPLIES & SERVICES,GRANTS (EXP) & SUBSCRIPTIONS,REVENUE
Walsall Council,http://opendatacommunities.org/id/metropolitan-district-council/walsall ,WC130-301,30.09.2021,CHILDRENS,ADVENTURELAND DAY NURSERY,01/09/2021,"3,895.92",1220-Top Up Funding -Grants to Schools,SUPPLIES & SERVICES,GRANTS (EXP) & SUBSCRIPTIONS,REVENUE
Walsall Council,http://opendatacommunities.org/id/metropolitan-district-council/walsall ,WC130-302,30.09.2021,ADULT SOCIAL CARE,ADVINIA CARE HOMES LTD - HAMMERWICH HALL CARE HOME,28/09/2021,"2,331.08",6541-Residential EMI,THIRD PARTY PAYMENTS,PRIVATE CONTRACTOR,REVENUE
Walsall Council,http://opendatacommunities.org/id/metropolitan-district-council/walsall ,WC130-303,30.09.2021,ADULT SOCIAL CARE,ADVINIA CARE HOMES LTD - HAMMERWICH HALL CARE HOME,28/09/2021,"2,064.44",6541-Residential,THIRD PARTY PAYMENTS,PRIVATE CONTRACTOR,REVENUE
Walsall Council,http://opendatacommunities.org/id/metropolitan-district-council/walsall ,WC130-304,30.09.2021,"ECONOMY, ENVIRONMENT & COMMUNITIES",AFGHAN COMMUNITY & WELFARE CENTRE,30/09/2021,"2,288.33",6430-Consultant Fees,SUPPLIES & SERVICES,SERVICES,REVENUE
Walsall Council,http://opendatacommunities.org/id/metropolitan-district-council/walsall ,WC130-305,30.09.2021,CHILDRENS,REDACTED,23/09/2021,546.76,6223-Foster Carers Maintenance Allowance,TRANSFER PAYMENTS,CHILDREN SOCIAL SERVICES CLIENT,REVENUE
Walsall Council,http://opendatacommunities.org/id/metropolitan-district-council/walsall ,WC130-306,30.09.2021,CHILDRENS,REDACTED,23/09/2021,546.76,6223-Foster Carers Maintenance Allowance,TRANSFER PAYMENTS,CHILDREN SOCIAL SERVICES CLIENT,REVENUE
Walsall Council,http://opendatacommunities.org/id/metropolitan-district-council/walsall ,WC130-307,30.09.2021,"ECONOMY, ENVIRONMENT & COMMUNITIES",AGILE APPLICATIONS LIMITED,10/09/2021,"36,000.00",6411-Computer Equipment,SUPPLIES & SERVICES,COMMUNICATIONS & COMPUTING,REVENUE
Walsall Council,http://opendatacommunities.org/id/metropolitan-district-council/walsall ,WC130-308,30.09.2021,RESOURCES AND TRANSFORMATION,AGILISYS LTD,08/09/2021,"95,000.00",6623-Computer Equipment,SUPPLIES & SERVICES,COMMUNICATIONS & COMPUTING,REVENUE
Walsall Council,http://opendatacommunities.org/id/metropolitan-district-council/walsall ,WC130-309,30.09.2021,RESOURCES AND TRANSFORMATION CAPITAL,AGILISYS LTD,15/09/2021,"9,465.00",7300-Consultants Fees,CAPITAL,"NEW CONSTRUCTION,CONVERSION & RENOVATION",CAPITAL
Walsall Council,http://opendatacommunities.org/id/metropolitan-district-council/walsall ,WC130-310,30.09.2021,ADULT SOCIAL CARE,REDACTED,08/09/2021,"3,100.80",6541-Direct Payment,THIRD PARTY PAYMENTS,PRIVATE CONTRACTOR,REVENUE
Walsall Council,http://opendatacommunities.org/id/metropolitan-district-council/walsall ,WC130-311,30.09.2021,ECONOMY & ENVIRONMENT CAPITAL,AIR MONITORS LIMITED,28/09/2021,"6,200.00",7200-Site Works Contractors,CAPITAL,"NEW CONSTRUCTION,CONVERSION & RENOVATION",CAPITAL
Walsall Council,http://opendatacommunities.org/id/metropolitan-district-council/walsall ,WC130-312,30.09.2021,CHILDRENS,ALAN SAVILL T/A INSPIRED TRAINERS,29/09/2021,900.00,6211-External Training,INDIRECT EMPLOYEES,EXTERNAL TRAINING,REVENUE
Walsall Council,http://opendatacommunities.org/id/metropolitan-district-council/walsall ,WC130-313,30.09.2021,CHILDRENS,ALASDAIR CANT & ASSOCIATES LIMITED,17/09/2021,"12,274.75",6220-Professional Fees & Services,SUPPLIES & SERVICES,SERVICES,REVENUE
Walsall Council,http://opendatacommunities.org/id/metropolitan-district-council/walsall ,WC130-314,30.09.2021,RESOURCES AND TRANSFORMATION,ALASDAIR CANT & ASSOCIATES LIMITED,29/09/2021,"2,605.50",6625-Consultant Fees,SUPPLIES & SERVICES,SERVICES,REVENUE
Walsall Council,http://opendatacommunities.org/id/metropolitan-district-council/walsall ,WC130-315,30.09.2021,"ECONOMY, ENVIRONMENT & COMMUNITIES",ALCIUM SOFTWARE,09/09/2021,"10,367.00",6313-Professional Fees & Services,SUPPLIES & SERVICES,SERVICES,REVENUE
Walsall Council,http://opendatacommunities.org/id/metropolitan-district-council/walsall ,WC130-316,30.09.2021,ADULT SOCIAL CARE,REDACTED,08/09/2021,"1,850.40",6541-Direct Payment,THIRD PARTY PAYMENTS,PRIVATE CONTRACTOR,REVENUE
Walsall Council,http://opendatacommunities.org/id/metropolitan-district-council/walsall ,WC130-317,30.09.2021,ADULT SOCIAL CARE,ALEXANDRA HOUSE CARE SERVICES LTD T/A STONEBRIDGE NURSING HOME,28/09/2021,"7,434.72",6541-Residential,THIRD PARTY PAYMENTS,PRIVATE CONTRACTOR,REVENUE
Walsall Council,http://opendatacommunities.org/id/metropolitan-district-council/walsall ,WC130-318,30.09.2021,CHILDRENS CAPITAL,ALFRED BAGNALL & SONS (MIDLANDS) LTD,28/09/2021,"4,039.00",7155-Site Works Contractors,CAPITAL,"NEW CONSTRUCTION,CONVERSION & RENOVATION",CAPITAL
Walsall Council,http://opendatacommunities.org/id/metropolitan-district-council/walsall ,WC130-319,30.09.2021,CHILDRENS CAPITAL,ALFRED BAGNALL & SONS (MIDLANDS) LTD,28/09/2021,710.00,7155-Site Works Contractors,CAPITAL,"NEW CONSTRUCTION,CONVERSION & RENOVATION",CAPITAL
Walsall Council,http://opendatacommunities.org/id/metropolitan-district-council/walsall ,WC130-320,30.09.2021,ADULT SOCIAL CARE,REDACTED,08/09/2021,"1,196.80",6541-Direct Payment,THIRD PARTY PAYMENTS,PRIVATE CONTRACTOR,REVENUE
Walsall Council,http://opendatacommunities.org/id/metropolitan-district-council/walsall ,WC130-321,30.09.2021,CHILDRENS,REDACTED,23/09/2021,320.36,6223-Special Guardianship Orders,TRANSFER PAYMENTS,CHILDREN SOCIAL SERVICES CLIENT,REVENUE
Walsall Council,http://opendatacommunities.org/id/metropolitan-district-council/walsall ,WC130-322,30.09.2021,CHILDRENS,ALL SAINTS NATIONAL ACADEMY #1,01/09/2021,"6,448.86",1220-Top Up Funding -Grants to Schools,SUPPLIES & SERVICES,GRANTS (EXP) & SUBSCRIPTIONS,REVENUE
Walsall Council,http://opendatacommunities.org/id/metropolitan-district-council/walsall ,WC130-323,30.09.2021,CHILDRENS,ALLIANCE CARE LTD,16/09/2021,"1,635.90",6222-Professional Services-Priv Contractor & Other Agencies,THIRD PARTY PAYMENTS,PRIVATE CONTRACTOR,REVENUE
Walsall Council,http://opendatacommunities.org/id/metropolitan-district-council/walsall ,WC130-324,30.09.2021,CHILDRENS,ALLIANCE CARE LTD,16/09/2021,"1,651.48",6222-Professional Services-Priv Contractor & Other Agencies,THIRD PARTY PAYMENTS,PRIVATE CONTRACTOR,REVENUE
Walsall Council,http://opendatacommunities.org/id/metropolitan-district-council/walsall ,WC130-325,30.09.2021,RESOURCES AND TRANSFORMATION,ALLIED PUBLICITY SERVICES (MANCHESTER) LIMITED T/A APS GROUP,27/09/2021,"-1,523.26",6312-External Printing Services,SUPPLIES & SERVICES,PRINTING STATIONERY & GENERAL OFFICE,REVENUE
Walsall Council,http://opendatacommunities.org/id/metropolitan-district-council/walsall ,WC130-326,30.09.2021,RESOURCES AND TRANSFORMATION,ALLIED PUBLICITY SERVICES (MANCHESTER) LIMITED T/A APS GROUP,27/09/2021,"1,523.26",6312-External Printing Services,SUPPLIES & SERVICES,PRINTING STATIONERY & GENERAL OFFICE,REVENUE
Walsall Council,http://opendatacommunities.org/id/metropolitan-district-council/walsall ,WC130-327,30.09.2021,RESOURCES AND TRANSFORMATION,ALLIED PUBLICITY SERVICES (MANCHESTER) LIMITED T/A APS GROUP,23/09/2021,"2,007.92",6312-External Printing Services,SUPPLIES & SERVICES,PRINTING STATIONERY & GENERAL OFFICE,REVENUE
Walsall Council,http://opendatacommunities.org/id/metropolitan-district-council/walsall ,WC130-328,30.09.2021,ADULT SOCIAL CARE,ALMA COURT,28/09/2021,"3,626.96",6541-Nursing EMI,THIRD PARTY PAYMENTS,PRIVATE CONTRACTOR,REVENUE
Walsall Council,http://opendatacommunities.org/id/metropolitan-district-council/walsall ,WC130-329,30.09.2021,ADULT SOCIAL CARE,ALMA COURT,28/09/2021,"3,826.96",6541-Nursing EMI,THIRD PARTY PAYMENTS,PRIVATE CONTRACTOR,REVENUE
Walsall Council,http://opendatacommunities.org/id/metropolitan-district-council/walsall ,WC130-330,30.09.2021,ADULT SOCIAL CARE,ALMA COURT,28/09/2021,"4,764.88",6541-Nursing EMI,THIRD PARTY PAYMENTS,PRIVATE CONTRACTOR,REVENUE
Walsall Council,http://opendatacommunities.org/id/metropolitan-district-council/walsall ,WC130-331,30.09.2021,ADULT SOCIAL CARE,ALMA COURT,28/09/2021,"6,619.12",6541-Residential,THIRD PARTY PAYMENTS,PRIVATE CONTRACTOR,REVENUE
Walsall Council,http://opendatacommunities.org/id/metropolitan-district-council/walsall ,WC130-332,30.09.2021,ADULT SOCIAL CARE,ALMA COURT,28/09/2021,"4,200.00",6541-Nursing EMI,THIRD PARTY PAYMENTS,PRIVATE CONTRACTOR,REVENUE
Walsall Council,http://opendatacommunities.org/id/metropolitan-district-council/walsall ,WC130-333,30.09.2021,CHILDRENS,ALMOZENE NURSERY & CHILDRENS CENTRE,03/09/2021,"4,252.50",1184-Other-Grants to Other Orgs,SUPPLIES & SERVICES,GRANTS (EXP) & SUBSCRIPTIONS,REVENUE
Walsall Council,http://opendatacommunities.org/id/metropolitan-district-council/walsall ,WC130-334,30.09.2021,CHILDRENS,ALMOZENE NURSERY & CHILDRENS CENTRE,03/09/2021,"19,391.40",1184-Other-Grants to Other Orgs,SUPPLIES & SERVICES,GRANTS (EXP) & SUBSCRIPTIONS,REVENUE
Walsall Council,http://opendatacommunities.org/id/metropolitan-district-council/walsall ,WC130-335,30.09.2021,"ECONOMY, ENVIRONMENT & COMMUNITIES",ALMOZENE NURSERY & CHILDRENS CENTRE,07/09/2021,784.55,6313-Grants to Other Orgs,SUPPLIES & SERVICES,GRANTS (EXP) & SUBSCRIPTIONS,REVENUE
Walsall Council,http://opendatacommunities.org/id/metropolitan-district-council/walsall ,WC130-336,30.09.2021,"ECONOMY, ENVIRONMENT & COMMUNITIES",ALMOZENE NURSERY & CHILDRENS CENTRE,13/09/2021,996.85,6313-Grants to Other Orgs,SUPPLIES & SERVICES,GRANTS (EXP) & SUBSCRIPTIONS,REVENUE
Walsall Council,http://opendatacommunities.org/id/metropolitan-district-council/walsall ,WC130-337,30.09.2021,"ECONOMY, ENVIRONMENT & COMMUNITIES",ALMOZENE NURSERY & CHILDRENS CENTRE,23/09/2021,500.00,6313-Grants to Other Orgs,SUPPLIES & SERVICES,GRANTS (EXP) & SUBSCRIPTIONS,REVENUE
Walsall Council,http://opendatacommunities.org/id/metropolitan-district-council/walsall ,WC130-338,30.09.2021,ADULT SOCIAL CARE,ALPHA HEALTH CARE LTD,28/09/2021,"2,722.96",6541-Nursing EMI,THIRD PARTY PAYMENTS,PRIVATE CONTRACTOR,REVENUE
Walsall Council,http://opendatacommunities.org/id/metropolitan-district-council/walsall ,WC130-339,30.09.2021,ADULT SOCIAL CARE,ALPHA HEALTH CARE LTD,28/09/2021,"2,961.72",6541-Nursing,THIRD PARTY PAYMENTS,PRIVATE CONTRACTOR,REVENUE
Walsall Council,http://opendatacommunities.org/id/metropolitan-district-council/walsall ,WC130-340,30.09.2021,ADULT SOCIAL CARE,ALPHA HEALTH CARE LTD,28/09/2021,"-6,327.22",6541-Residential EMI,THIRD PARTY PAYMENTS,PRIVATE CONTRACTOR,REVENUE
Walsall Council,http://opendatacommunities.org/id/metropolitan-district-council/walsall ,WC130-341,30.09.2021,ADULT SOCIAL CARE,ALPHA HEALTH CARE LTD,28/09/2021,"2,722.96",6541-Nursing EMI,THIRD PARTY PAYMENTS,PRIVATE CONTRACTOR,REVENUE
Walsall Council,http://opendatacommunities.org/id/metropolitan-district-council/walsall ,WC130-342,30.09.2021,ADULT SOCIAL CARE,ALPHA HEALTH CARE LTD,28/09/2021,"2,854.56",6541-Residential EMI,THIRD PARTY PAYMENTS,PRIVATE CONTRACTOR,REVENUE
Walsall Council,http://opendatacommunities.org/id/metropolitan-district-council/walsall ,WC130-343,30.09.2021,ADULT SOCIAL CARE,ALPHA HEALTH CARE LTD,28/09/2021,"2,722.96",6541-Nursing EMI,THIRD PARTY PAYMENTS,PRIVATE CONTRACTOR,REVENUE
Walsall Council,http://opendatacommunities.org/id/metropolitan-district-council/walsall ,WC130-344,30.09.2021,ADULT SOCIAL CARE,ALPHA HEALTH CARE LTD,28/09/2021,"3,626.96",6541-Nursing EMI,THIRD PARTY PAYMENTS,PRIVATE CONTRACTOR,REVENUE
Walsall Council,http://opendatacommunities.org/id/metropolitan-district-council/walsall ,WC130-345,30.09.2021,ADULT SOCIAL CARE,ALPHA HEALTH CARE LTD,28/09/2021,"2,600.00",6541-Residential,THIRD PARTY PAYMENTS,PRIVATE CONTRACTOR,REVENUE
Walsall Council,http://opendatacommunities.org/id/metropolitan-district-council/walsall ,WC130-346,30.09.2021,ADULT SOCIAL CARE,ALPHA HEALTH CARE LTD,28/09/2021,"2,331.08",6541-Residential EMI,THIRD PARTY PAYMENTS,PRIVATE CONTRACTOR,REVENUE
Walsall Council,http://opendatacommunities.org/id/metropolitan-district-council/walsall ,WC130-347,30.09.2021,ADULT SOCIAL CARE,ALPHA HEALTH CARE LTD,28/09/2021,"3,091.28",6541-Nursing EMI,THIRD PARTY PAYMENTS,PRIVATE CONTRACTOR,REVENUE
Walsall Council,http://opendatacommunities.org/id/metropolitan-district-council/walsall ,WC130-348,30.09.2021,ADULT SOCIAL CARE,ALPHA HEALTH CARE LTD,28/09/2021,"2,331.08",6541-Residential EMI,THIRD PARTY PAYMENTS,PRIVATE CONTRACTOR,REVENUE
Walsall Council,http://opendatacommunities.org/id/metropolitan-district-council/walsall ,WC130-349,30.09.2021,ADULT SOCIAL CARE,ALPHA HEALTH CARE LTD,28/09/2021,"3,083.08",6541-Residential EMI,THIRD PARTY PAYMENTS,PRIVATE CONTRACTOR,REVENUE
Walsall Council,http://opendatacommunities.org/id/metropolitan-district-council/walsall ,WC130-350,30.09.2021,ADULT SOCIAL CARE,ALPHA HEALTH CARE LTD,28/09/2021,"3,363.08",6541-Residential EMI,THIRD PARTY PAYMENTS,PRIVATE CONTRACTOR,REVENUE
Walsall Council,http://opendatacommunities.org/id/metropolitan-district-council/walsall ,WC130-351,30.09.2021,ADULT SOCIAL CARE,ALPHA HEALTH CARE LTD,28/09/2021,"2,331.08",6541-Residential EMI,THIRD PARTY PAYMENTS,PRIVATE CONTRACTOR,REVENUE
Walsall Council,http://opendatacommunities.org/id/metropolitan-district-council/walsall ,WC130-352,30.09.2021,ADULT SOCIAL CARE,ALPHA HEALTH CARE LTD,28/09/2021,"6,249.60",6541-Residential,THIRD PARTY PAYMENTS,PRIVATE CONTRACTOR,REVENUE
Walsall Council,http://opendatacommunities.org/id/metropolitan-district-council/walsall ,WC130-353,30.09.2021,ADULT SOCIAL CARE,ALPHA HEALTH CARE LTD,28/09/2021,"7,026.96",6541-Nursing EMI,THIRD PARTY PAYMENTS,PRIVATE CONTRACTOR,REVENUE
Walsall Council,http://opendatacommunities.org/id/metropolitan-district-council/walsall ,WC130-354,30.09.2021,ADULT SOCIAL CARE,ALPHA HEALTH CARE LTD,28/09/2021,"3,049.60",6541-Nursing EMI,THIRD PARTY PAYMENTS,PRIVATE CONTRACTOR,REVENUE
Walsall Council,http://opendatacommunities.org/id/metropolitan-district-council/walsall ,WC130-355,30.09.2021,ADULT SOCIAL CARE,ALPHA HEALTH CARE LTD,28/09/2021,"3,091.28",6541-Nursing EMI,THIRD PARTY PAYMENTS,PRIVATE CONTRACTOR,REVENUE
Walsall Council,http://opendatacommunities.org/id/metropolitan-district-council/walsall ,WC130-356,30.09.2021,ADULT SOCIAL CARE,ALPHA HEALTH CARE LTD,28/09/2021,"3,091.28",6541-Nursing EMI,THIRD PARTY PAYMENTS,PRIVATE CONTRACTOR,REVENUE
Walsall Council,http://opendatacommunities.org/id/metropolitan-district-council/walsall ,WC130-357,30.09.2021,ADULT SOCIAL CARE,ALPHA HEALTH CARE LTD,28/09/2021,"7,000.00",6541-Residential,THIRD PARTY PAYMENTS,PRIVATE CONTRACTOR,REVENUE
Walsall Council,http://opendatacommunities.org/id/metropolitan-district-council/walsall ,WC130-358,30.09.2021,ADULT SOCIAL CARE,ALPHA HEALTH CARE LTD,28/09/2021,"1,550.72",6541-Residential EMI,THIRD PARTY PAYMENTS,PRIVATE CONTRACTOR,REVENUE
Walsall Council,http://opendatacommunities.org/id/metropolitan-district-council/walsall ,WC130-359,30.09.2021,ADULT SOCIAL CARE,ALPHA HEALTH CARE LTD,28/09/2021,"10,206.00",6541-Nursing,THIRD PARTY PAYMENTS,PRIVATE CONTRACTOR,REVENUE
Walsall Council,http://opendatacommunities.org/id/metropolitan-district-council/walsall ,WC130-360,30.09.2021,ADULT SOCIAL CARE,ALPHA HEALTH CARE LTD,28/09/2021,"13,371.43",6541-Residential,THIRD PARTY PAYMENTS,PRIVATE CONTRACTOR,REVENUE
Walsall Council,http://opendatacommunities.org/id/metropolitan-district-council/walsall ,WC130-361,30.09.2021,ADULT SOCIAL CARE,ALPHA HEALTH CARE LTD,28/09/2021,"2,731.08",6541-Residential EMI,THIRD PARTY PAYMENTS,PRIVATE CONTRACTOR,REVENUE
Walsall Council,http://opendatacommunities.org/id/metropolitan-district-council/walsall ,WC130-362,30.09.2021,ADULT SOCIAL CARE,ALPHA HEALTH CARE LTD,28/09/2021,"5,670.00",6541-Nursing,THIRD PARTY PAYMENTS,PRIVATE CONTRACTOR,REVENUE
Walsall Council,http://opendatacommunities.org/id/metropolitan-district-council/walsall ,WC130-363,30.09.2021,ADULT SOCIAL CARE,ALPHA HEALTH CARE LTD,28/09/2021,"20,500.00",6541-Residential,THIRD PARTY PAYMENTS,PRIVATE CONTRACTOR,REVENUE
Walsall Council,http://opendatacommunities.org/id/metropolitan-district-council/walsall ,WC130-364,30.09.2021,ADULT SOCIAL CARE,ALPHA HEALTH CARE LTD,28/09/2021,"2,331.08",6541-Residential EMI,THIRD PARTY PAYMENTS,PRIVATE CONTRACTOR,REVENUE
Walsall Council,http://opendatacommunities.org/id/metropolitan-district-council/walsall ,WC130-365,30.09.2021,ADULT SOCIAL CARE,ALPHA HEALTH CARE LTD,28/09/2021,"3,083.08",6541-Residential EMI,THIRD PARTY PAYMENTS,PRIVATE CONTRACTOR,REVENUE
Walsall Council,http://opendatacommunities.org/id/metropolitan-district-council/walsall ,WC130-366,30.09.2021,ADULT SOCIAL CARE,ALPHA HEALTH CARE LTD,28/09/2021,"3,091.28",6541-Nursing EMI,THIRD PARTY PAYMENTS,PRIVATE CONTRACTOR,REVENUE
Walsall Council,http://opendatacommunities.org/id/metropolitan-district-council/walsall ,WC130-367,30.09.2021,ADULT SOCIAL CARE,ALPHA HEALTH CARE LTD,28/09/2021,"5,656.00",6541-Residential,THIRD PARTY PAYMENTS,PRIVATE CONTRACTOR,REVENUE
Walsall Council,http://opendatacommunities.org/id/metropolitan-district-council/walsall ,WC130-368,30.09.2021,ADULT SOCIAL CARE,ALPHA HEALTH CARE LTD,28/09/2021,"3,064.32",6541-Nursing EMI,THIRD PARTY PAYMENTS,PRIVATE CONTRACTOR,REVENUE
Walsall Council,http://opendatacommunities.org/id/metropolitan-district-council/walsall ,WC130-369,30.09.2021,CHILDRENS,ALPHA TRAINING ACADEMY UK LTD,15/09/2021,"21,265.00",1220-Top Up Funding -Grants to Schools,SUPPLIES & SERVICES,GRANTS (EXP) & SUBSCRIPTIONS,REVENUE
Walsall Council,http://opendatacommunities.org/id/metropolitan-district-council/walsall ,WC130-370,30.09.2021,CHILDRENS,ALPHA TRAINING ACADEMY UK LTD,21/09/2021,"3,333.00",1220-Top Up Funding -Grants to Schools,SUPPLIES & SERVICES,GRANTS (EXP) & SUBSCRIPTIONS,REVENUE
Walsall Council,http://opendatacommunities.org/id/metropolitan-district-council/walsall ,WC130-371,30.09.2021,CHILDRENS,ALPHABIOLABS,02/09/2021,470.00,6220-School Only Payments - Catering,THIRD PARTY PAYMENTS,INDEPENDENT UNIT WITHIN COUNCIL,REVENUE
Walsall Council,http://opendatacommunities.org/id/metropolitan-district-council/walsall ,WC130-372,30.09.2021,RESOURCES AND TRANSFORMATION,ALTAIR ENGINEERING LTD,28/09/2021,"1,329.21",6623-Computer Equipment,SUPPLIES & SERVICES,COMMUNICATIONS & COMPUTING,REVENUE
Walsall Council,http://opendatacommunities.org/id/metropolitan-district-council/walsall ,WC130-373,30.09.2021,CHILDRENS,AMAH NURSERIES LIMITED T/A BANANA MOON WALSALL,03/09/2021,"13,608.00",1184-Other-Grants to Other Orgs,SUPPLIES & SERVICES,GRANTS (EXP) & SUBSCRIPTIONS,REVENUE
Walsall Council,http://opendatacommunities.org/id/metropolitan-district-council/walsall ,WC130-374,30.09.2021,CHILDRENS,AMAH NURSERIES LIMITED T/A BANANA MOON WALSALL,03/09/2021,"33,037.20",1184-Other-Grants to Other Orgs,SUPPLIES & SERVICES,GRANTS (EXP) & SUBSCRIPTIONS,REVENUE
Walsall Council,http://opendatacommunities.org/id/metropolitan-district-council/walsall ,WC130-375,30.09.2021,ADULT SOCIAL CARE,REDACTED,08/09/2021,"2,033.70",6541-Direct Payment,THIRD PARTY PAYMENTS,PRIVATE CONTRACTOR,REVENUE
Walsall Council,http://opendatacommunities.org/id/metropolitan-district-council/walsall ,WC130-376,30.09.2021,"ECONOMY, ENVIRONMENT & COMMUNITIES",AMETHYST HORTICULTURE LTD,07/09/2021,"23,275.00",6411-Professional Services-Priv Contractor & Other Agencies,THIRD PARTY PAYMENTS,PRIVATE CONTRACTOR,REVENUE
Walsall Council,http://opendatacommunities.org/id/metropolitan-district-council/walsall ,WC130-377,30.09.2021,ECONOMY & ENVIRONMENT CAPITAL,AMEY LG LIMITED,02/09/2021,"17,119.71",7200-Site Works Contractors,CAPITAL,"NEW CONSTRUCTION,CONVERSION & RENOVATION",CAPITAL
Walsall Council,http://opendatacommunities.org/id/metropolitan-district-council/walsall ,WC130-378,30.09.2021,ECONOMY & ENVIRONMENT CAPITAL,AMEY LG LIMITED,02/09/2021,"1,867.45",7200-Project Fees,CAPITAL,"NEW CONSTRUCTION,CONVERSION & RENOVATION",CAPITAL
Walsall Council,http://opendatacommunities.org/id/metropolitan-district-council/walsall ,WC130-379,30.09.2021,"ECONOMY, ENVIRONMENT & COMMUNITIES",AMEY LG LIMITED,09/09/2021,792.45,6430-Repair & Maintenance of Furniture & Equipment,SUPPLIES & SERVICES,EQUIPMENT FURNITURE & MATERIALS,REVENUE
Walsall Council,http://opendatacommunities.org/id/metropolitan-district-council/walsall ,WC130-380,30.09.2021,ECONOMY & ENVIRONMENT CAPITAL,AMEY LG LIMITED,02/09/2021,"8,373.93",7200-Project Fees,CAPITAL,"NEW CONSTRUCTION,CONVERSION & RENOVATION",CAPITAL
Walsall Council,http://opendatacommunities.org/id/metropolitan-district-council/walsall ,WC130-381,30.09.2021,"ECONOMY, ENVIRONMENT & COMMUNITIES",AMEY LG LIMITED,09/09/2021,739.26,6430-Repair & Maintenance of Furniture & Equipment,SUPPLIES & SERVICES,EQUIPMENT FURNITURE & MATERIALS,REVENUE
Walsall Council,http://opendatacommunities.org/id/metropolitan-district-council/walsall ,WC130-382,30.09.2021,"ECONOMY, ENVIRONMENT & COMMUNITIES",AMEY LG LIMITED,29/09/2021,"15,423.18",6411-Materials,SUPPLIES & SERVICES,EQUIPMENT FURNITURE & MATERIALS,REVENUE
Walsall Council,http://opendatacommunities.org/id/metropolitan-district-council/walsall ,WC130-383,30.09.2021,ECONOMY & ENVIRONMENT CAPITAL,AMEY LG LIMITED,29/09/2021,335.23,7200-Site Works Contractors,CAPITAL,"NEW CONSTRUCTION,CONVERSION & RENOVATION",CAPITAL
Walsall Council,http://opendatacommunities.org/id/metropolitan-district-council/walsall ,WC130-384,30.09.2021,ECONOMY & ENVIRONMENT CAPITAL,AMEY OW LTD,08/09/2021,"3,571.54",7200-Consultants Fees,CAPITAL,"NEW CONSTRUCTION,CONVERSION & RENOVATION",CAPITAL
Walsall Council,http://opendatacommunities.org/id/metropolitan-district-council/walsall ,WC130-385,30.09.2021,ECONOMY & ENVIRONMENT CAPITAL,AMEY OW LTD,08/09/2021,"1,595.00",7200-Consultants Fees,CAPITAL,"NEW CONSTRUCTION,CONVERSION & RENOVATION",CAPITAL
Walsall Council,http://opendatacommunities.org/id/metropolitan-district-council/walsall ,WC130-386,30.09.2021,ADULT SOCIAL CARE,AMG NURSING CARE SERVICES,23/09/2021,"15,479.33",6541-Community Supported Living/Supported Accommodation,THIRD PARTY PAYMENTS,PRIVATE CONTRACTOR,REVENUE
Walsall Council,http://opendatacommunities.org/id/metropolitan-district-council/walsall ,WC130-387,30.09.2021,ADULT SOCIAL CARE,AMG NURSING CARE SERVICES,23/09/2021,"3,923.10",6541-Community Supported Living/Supported Accommodation,THIRD PARTY PAYMENTS,PRIVATE CONTRACTOR,REVENUE
Walsall Council,http://opendatacommunities.org/id/metropolitan-district-council/walsall ,WC130-388,30.09.2021,CHILDRENS,AMG NURSING CARE SERVICES,27/09/2021,"1,322.36",6220-Accommodation and Related Costs-Assistance to S/S Clients,TRANSFER PAYMENTS,ADULT SOCIAL SERVICES CLIENT,REVENUE
Walsall Council,http://opendatacommunities.org/id/metropolitan-district-council/walsall ,WC130-389,30.09.2021,CHILDRENS,AMG NURSING CARE SERVICES,28/09/2021,"1,322.36",6220-Accommodation and Related Costs-Assistance to S/S Clients,TRANSFER PAYMENTS,ADULT SOCIAL SERVICES CLIENT,REVENUE
Walsall Council,http://opendatacommunities.org/id/metropolitan-district-council/walsall ,WC130-390,30.09.2021,CHILDRENS,AMG NURSING CARE SERVICES,27/09/2021,548.24,6220-Accommodation and Related Costs-Assistance to S/S Clients,TRANSFER PAYMENTS,ADULT SOCIAL SERVICES CLIENT,REVENUE
Walsall Council,http://opendatacommunities.org/id/metropolitan-district-council/walsall ,WC130-391,30.09.2021,CHILDRENS,AMG NURSING CARE SERVICES,27/09/2021,938.86,6220-Accommodation and Related Costs-Assistance to S/S Clients,TRANSFER PAYMENTS,ADULT SOCIAL SERVICES CLIENT,REVENUE
Walsall Council,http://opendatacommunities.org/id/metropolitan-district-council/walsall ,WC130-392,30.09.2021,CHILDRENS,AMG NURSING CARE SERVICES,27/09/2021,929.72,6220-Accommodation and Related Costs-Assistance to S/S Clients,TRANSFER PAYMENTS,ADULT SOCIAL SERVICES CLIENT,REVENUE
Walsall Council,http://opendatacommunities.org/id/metropolitan-district-council/walsall ,WC130-393,30.09.2021,CHILDRENS,REDACTED,23/09/2021,340.00,6223-Internal Foster Carers-Carer Fees,TRANSFER PAYMENTS,CHILDREN SOCIAL SERVICES CLIENT,REVENUE
Walsall Council,http://opendatacommunities.org/id/metropolitan-district-council/walsall ,WC130-394,30.09.2021,CHILDRENS,REDACTED,23/09/2021,607.52,6223-Foster Carers Maintenance Allowance,TRANSFER PAYMENTS,CHILDREN SOCIAL SERVICES CLIENT,REVENUE
Walsall Council,http://opendatacommunities.org/id/metropolitan-district-council/walsall ,WC130-395,30.09.2021,ADULT SOCIAL CARE,ANCHOR CAREHOMES LTD - HARDEN HALL,03/09/2021,"9,926.28",6550-ASC Rapid Testing Fund Round 3 (70%),TRANSFER PAYMENTS,COVID TRANSFER PAYMENT,REVENUE
Walsall Council,http://opendatacommunities.org/id/metropolitan-district-council/walsall ,WC130-396,30.09.2021,ADULT SOCIAL CARE,ANCHOR CAREHOMES LTD - HARDEN HALL,28/09/2021,"2,331.08",6541-Residential EMI,THIRD PARTY PAYMENTS,PRIVATE CONTRACTOR,REVENUE
Walsall Council,http://opendatacommunities.org/id/metropolitan-district-council/walsall ,WC130-397,30.09.2021,ADULT SOCIAL CARE,ANCHOR CAREHOMES LTD - HARDEN HALL,28/09/2021,"2,064.44",6541-Residential,THIRD PARTY PAYMENTS,PRIVATE CONTRACTOR,REVENUE
Walsall Council,http://opendatacommunities.org/id/metropolitan-district-council/walsall ,WC130-398,30.09.2021,ADULT SOCIAL CARE,ANCHOR CAREHOMES LTD - HARDEN HALL,28/09/2021,"2,294.56",6541-Residential EMI,THIRD PARTY PAYMENTS,PRIVATE CONTRACTOR,REVENUE
Walsall Council,http://opendatacommunities.org/id/metropolitan-district-council/walsall ,WC130-399,30.09.2021,ADULT SOCIAL CARE,ANCHOR CAREHOMES LTD - HARDEN HALL,28/09/2021,"2,335.32",6541-Residential EMI,THIRD PARTY PAYMENTS,PRIVATE CONTRACTOR,REVENUE
Walsall Council,http://opendatacommunities.org/id/metropolitan-district-council/walsall ,WC130-400,30.09.2021,ADULT SOCIAL CARE,ANCHOR CAREHOMES LTD - HARDEN HALL,28/09/2021,"2,331.08",6541-Residential EMI,THIRD PARTY PAYMENTS,PRIVATE CONTRACTOR,REVENUE
Walsall Council,http://opendatacommunities.org/id/metropolitan-district-council/walsall ,WC130-401,30.09.2021,ADULT SOCIAL CARE,ANCHOR CAREHOMES LTD - HARDEN HALL,28/09/2021,"2,691.08",6541-Residential EMI,THIRD PARTY PAYMENTS,PRIVATE CONTRACTOR,REVENUE
Walsall Council,http://opendatacommunities.org/id/metropolitan-district-council/walsall ,WC130-402,30.09.2021,ADULT SOCIAL CARE,ANCHOR CAREHOMES LTD - HARDEN HALL,28/09/2021,"2,331.08",6541-Residential EMI,THIRD PARTY PAYMENTS,PRIVATE CONTRACTOR,REVENUE
Walsall Council,http://opendatacommunities.org/id/metropolitan-district-council/walsall ,WC130-403,30.09.2021,ADULT SOCIAL CARE,ANCHOR CAREHOMES LTD - HARDEN HALL,28/09/2021,"2,331.08",6541-Residential EMI,THIRD PARTY PAYMENTS,PRIVATE CONTRACTOR,REVENUE
Walsall Council,http://opendatacommunities.org/id/metropolitan-district-council/walsall ,WC130-404,30.09.2021,ADULT SOCIAL CARE,ANCHOR CAREHOMES LTD - HARDEN HALL,28/09/2021,"2,331.08",6541-Residential EMI,THIRD PARTY PAYMENTS,PRIVATE CONTRACTOR,REVENUE
Walsall Council,http://opendatacommunities.org/id/metropolitan-district-council/walsall ,WC130-405,30.09.2021,ADULT SOCIAL CARE,ANCHOR CAREHOMES LTD - HARDEN HALL,28/09/2021,"2,355.32",6541-Residential EMI,THIRD PARTY PAYMENTS,PRIVATE CONTRACTOR,REVENUE
Walsall Council,http://opendatacommunities.org/id/metropolitan-district-council/walsall ,WC130-406,30.09.2021,ADULT SOCIAL CARE,ANCHOR CAREHOMES LTD - HARDEN HALL,28/09/2021,"2,335.32",6541-Residential EMI,THIRD PARTY PAYMENTS,PRIVATE CONTRACTOR,REVENUE
Walsall Council,http://opendatacommunities.org/id/metropolitan-district-council/walsall ,WC130-407,30.09.2021,ADULT SOCIAL CARE,ANCHOR CAREHOMES LTD - HARDEN HALL,28/09/2021,"2,331.08",6541-Residential EMI,THIRD PARTY PAYMENTS,PRIVATE CONTRACTOR,REVENUE
Walsall Council,http://opendatacommunities.org/id/metropolitan-district-council/walsall ,WC130-408,30.09.2021,ADULT SOCIAL CARE,ANCHOR CAREHOMES LTD - HARDEN HALL,28/09/2021,"2,355.32",6541-Residential EMI,THIRD PARTY PAYMENTS,PRIVATE CONTRACTOR,REVENUE
Walsall Council,http://opendatacommunities.org/id/metropolitan-district-council/walsall ,WC130-409,30.09.2021,ADULT SOCIAL CARE,ANCHOR CAREHOMES LTD - HARDEN HALL,28/09/2021,"2,331.08",6541-Residential EMI,THIRD PARTY PAYMENTS,PRIVATE CONTRACTOR,REVENUE
Walsall Council,http://opendatacommunities.org/id/metropolitan-district-council/walsall ,WC130-410,30.09.2021,ADULT SOCIAL CARE,ANCHOR CAREHOMES LTD - HARDEN HALL,28/09/2021,"2,355.32",6541-Residential EMI,THIRD PARTY PAYMENTS,PRIVATE CONTRACTOR,REVENUE
Walsall Council,http://opendatacommunities.org/id/metropolitan-district-council/walsall ,WC130-411,30.09.2021,ADULT SOCIAL CARE,ANCHOR CAREHOMES LTD - HARDEN HALL,28/09/2021,"2,331.08",6541-Residential EMI,THIRD PARTY PAYMENTS,PRIVATE CONTRACTOR,REVENUE
Walsall Council,http://opendatacommunities.org/id/metropolitan-district-council/walsall ,WC130-412,30.09.2021,ADULT SOCIAL CARE,ANCHOR CAREHOMES LTD - HARDEN HALL,28/09/2021,"2,331.08",6541-Residential EMI,THIRD PARTY PAYMENTS,PRIVATE CONTRACTOR,REVENUE
Walsall Council,http://opendatacommunities.org/id/metropolitan-district-council/walsall ,WC130-413,30.09.2021,ADULT SOCIAL CARE,ANCHOR CAREHOMES LTD - HARDEN HALL,28/09/2021,"2,331.08",6541-Residential EMI,THIRD PARTY PAYMENTS,PRIVATE CONTRACTOR,REVENUE
Walsall Council,http://opendatacommunities.org/id/metropolitan-district-council/walsall ,WC130-414,30.09.2021,ADULT SOCIAL CARE,ANCHOR CAREHOMES LTD - HARDEN HALL,28/09/2021,"2,331.08",6541-Residential EMI,THIRD PARTY PAYMENTS,PRIVATE CONTRACTOR,REVENUE
Walsall Council,http://opendatacommunities.org/id/metropolitan-district-council/walsall ,WC130-415,30.09.2021,ADULT SOCIAL CARE,ANCHOR CAREHOMES LTD - HARDEN HALL,28/09/2021,"2,331.08",6541-Residential EMI,THIRD PARTY PAYMENTS,PRIVATE CONTRACTOR,REVENUE
Walsall Council,http://opendatacommunities.org/id/metropolitan-district-council/walsall ,WC130-416,30.09.2021,ADULT SOCIAL CARE,ANCHOR CAREHOMES LTD - HARDEN HALL,28/09/2021,"2,331.08",6541-Residential EMI,THIRD PARTY PAYMENTS,PRIVATE CONTRACTOR,REVENUE
Walsall Council,http://opendatacommunities.org/id/metropolitan-district-council/walsall ,WC130-417,30.09.2021,ADULT SOCIAL CARE,ANCHOR CAREHOMES LTD - HARDEN HALL,28/09/2021,"2,382.04",6541-Residential EMI,THIRD PARTY PAYMENTS,PRIVATE CONTRACTOR,REVENUE
Walsall Council,http://opendatacommunities.org/id/metropolitan-district-council/walsall ,WC130-418,30.09.2021,ADULT SOCIAL CARE,ANCHOR CAREHOMES LTD - HARDEN HALL,28/09/2021,"2,064.44",6541-Residential,THIRD PARTY PAYMENTS,PRIVATE CONTRACTOR,REVENUE
Walsall Council,http://opendatacommunities.org/id/metropolitan-district-council/walsall ,WC130-419,30.09.2021,ADULT SOCIAL CARE,ANCHOR CAREHOMES LTD - HARDEN HALL,28/09/2021,"2,331.08",6541-Residential EMI,THIRD PARTY PAYMENTS,PRIVATE CONTRACTOR,REVENUE
Walsall Council,http://opendatacommunities.org/id/metropolitan-district-council/walsall ,WC130-420,30.09.2021,ADULT SOCIAL CARE,ANCHOR CAREHOMES LTD - HARDEN HALL,28/09/2021,"2,331.08",6541-Residential EMI,THIRD PARTY PAYMENTS,PRIVATE CONTRACTOR,REVENUE
Walsall Council,http://opendatacommunities.org/id/metropolitan-district-council/walsall ,WC130-421,30.09.2021,ADULT SOCIAL CARE,ANCHOR CAREHOMES LTD - HARDEN HALL,28/09/2021,"2,064.44",6541-Residential,THIRD PARTY PAYMENTS,PRIVATE CONTRACTOR,REVENUE
Walsall Council,http://opendatacommunities.org/id/metropolitan-district-council/walsall ,WC130-422,30.09.2021,ADULT SOCIAL CARE,ANCHOR CAREHOMES LTD - HARDEN HALL,28/09/2021,"2,691.08",6541-Residential EMI,THIRD PARTY PAYMENTS,PRIVATE CONTRACTOR,REVENUE
Walsall Council,http://opendatacommunities.org/id/metropolitan-district-council/walsall ,WC130-423,30.09.2021,ADULT SOCIAL CARE,ANCHOR CAREHOMES LTD - HARDEN HALL,28/09/2021,"2,331.08",6541-Residential EMI,THIRD PARTY PAYMENTS,PRIVATE CONTRACTOR,REVENUE
Walsall Council,http://opendatacommunities.org/id/metropolitan-district-council/walsall ,WC130-424,30.09.2021,ADULT SOCIAL CARE,ANCHOR CAREHOMES LTD - HARDEN HALL,28/09/2021,"-1,415.30",6541-Residential EMI,THIRD PARTY PAYMENTS,PRIVATE CONTRACTOR,REVENUE
Walsall Council,http://opendatacommunities.org/id/metropolitan-district-council/walsall ,WC130-425,30.09.2021,ADULT SOCIAL CARE,ANCHOR CAREHOMES LTD - HARDEN HALL,28/09/2021,"2,691.08",6541-Residential EMI,THIRD PARTY PAYMENTS,PRIVATE CONTRACTOR,REVENUE
Walsall Council,http://opendatacommunities.org/id/metropolitan-district-council/walsall ,WC130-426,30.09.2021,ADULT SOCIAL CARE,ANCHOR CAREHOMES LTD - HARDEN HALL,03/09/2021,"9,754.56",6550-ASC Infection Control Fund Round 4 (30% Grants),THIRD PARTY PAYMENTS,COVID THIRD PARTY PAYMENTS,REVENUE
Walsall Council,http://opendatacommunities.org/id/metropolitan-district-council/walsall ,WC130-427,30.09.2021,CHILDRENS,REDACTED,23/09/2021,314.48,6223-Special Guardianship Orders,TRANSFER PAYMENTS,CHILDREN SOCIAL SERVICES CLIENT,REVENUE
Walsall Council,http://opendatacommunities.org/id/metropolitan-district-council/walsall ,WC130-428,30.09.2021,ADULT SOCIAL CARE,REDACTED,08/09/2021,647.50,6541-Direct Payment,THIRD PARTY PAYMENTS,PRIVATE CONTRACTOR,REVENUE
Walsall Council,http://opendatacommunities.org/id/metropolitan-district-council/walsall ,WC130-429,30.09.2021,ADULT SOCIAL CARE,REDACTED,08/09/2021,"3,387.70",6541-Direct Payment,THIRD PARTY PAYMENTS,PRIVATE CONTRACTOR,REVENUE
Walsall Council,http://opendatacommunities.org/id/metropolitan-district-council/walsall ,WC130-430,30.09.2021,CHILDRENS CAPITAL,ANDREWS ELECTRICAL LTD,08/09/2021,"2,450.00",7155-Purchase of Vehicles & Plant,CAPITAL,"VEHICLES,PLANT,EQUIPMENT & MACHINERY",CAPITAL
Walsall Council,http://opendatacommunities.org/id/metropolitan-district-council/walsall ,WC130-431,30.09.2021,CHILDRENS,REDACTED,23/09/2021,376.88,6223-Special Guardianship Orders,TRANSFER PAYMENTS,CHILDREN SOCIAL SERVICES CLIENT,REVENUE
Walsall Council,http://opendatacommunities.org/id/metropolitan-district-council/walsall ,WC130-432,30.09.2021,CHILDRENS,REDACTED,23/09/2021,510.28,6223-Special Guardianship Orders,TRANSFER PAYMENTS,CHILDREN SOCIAL SERVICES CLIENT,REVENUE
Walsall Council,http://opendatacommunities.org/id/metropolitan-district-council/walsall ,WC130-433,30.09.2021,CHILDRENS,REDACTED,23/09/2021,318.36,6223-Special Guardianship Orders,TRANSFER PAYMENTS,CHILDREN SOCIAL SERVICES CLIENT,REVENUE
Walsall Council,http://opendatacommunities.org/id/metropolitan-district-council/walsall ,WC130-434,30.09.2021,CHILDRENS,ANGELS AND BUTTERFLIES CHILDMINDING,03/09/2021,850.50,1184-Other-Grants to Other Orgs,SUPPLIES & SERVICES,GRANTS (EXP) & SUBSCRIPTIONS,REVENUE
Walsall Council,http://opendatacommunities.org/id/metropolitan-district-council/walsall ,WC130-435,30.09.2021,CHILDRENS,ANGELS AND BUTTERFLIES CHILDMINDING,03/09/2021,"1,436.40",1184-Other-Grants to Other Orgs,SUPPLIES & SERVICES,GRANTS (EXP) & SUBSCRIPTIONS,REVENUE
Walsall Council,http://opendatacommunities.org/id/metropolitan-district-council/walsall ,WC130-436,30.09.2021,"ECONOMY, ENVIRONMENT & COMMUNITIES",REDACTED,23/09/2021,"2,000.00",6414-Events & Visual Arts,SUPPLIES & SERVICES,SERVICES,REVENUE
Walsall Council,http://opendatacommunities.org/id/metropolitan-district-council/walsall ,WC130-437,30.09.2021,ADULT SOCIAL CARE,REDACTED,30/09/2021,352.00,6541-Shared Lives,THIRD PARTY PAYMENTS,PRIVATE CONTRACTOR,REVENUE
Walsall Council,http://opendatacommunities.org/id/metropolitan-district-council/walsall ,WC130-438,30.09.2021,ADULT SOCIAL CARE,REDACTED,09/09/2021,352.00,6541-Shared Lives,THIRD PARTY PAYMENTS,PRIVATE CONTRACTOR,REVENUE
Walsall Council,http://opendatacommunities.org/id/metropolitan-district-council/walsall ,WC130-439,30.09.2021,ADULT SOCIAL CARE,REDACTED,09/09/2021,424.20,6541-Shared Lives,THIRD PARTY PAYMENTS,PRIVATE CONTRACTOR,REVENUE
Walsall Council,http://opendatacommunities.org/id/metropolitan-district-council/walsall ,WC130-440,30.09.2021,CHILDRENS,REDACTED,23/09/2021,448.84,6223-Special Guardianship Orders,TRANSFER PAYMENTS,CHILDREN SOCIAL SERVICES CLIENT,REVENUE
Walsall Council,http://opendatacommunities.org/id/metropolitan-district-council/walsall ,WC130-441,30.09.2021,ADULT SOCIAL CARE,ANSON COURT RESIDENTIAL HOME,03/09/2021,"6,066.06",6550-ASC Rapid Testing Fund Round 3 (70%),TRANSFER PAYMENTS,COVID TRANSFER PAYMENT,REVENUE
Walsall Council,http://opendatacommunities.org/id/metropolitan-district-council/walsall ,WC130-442,30.09.2021,ADULT SOCIAL CARE,ANSON COURT RESIDENTIAL HOME,28/09/2021,"2,331.08",6541-Residential EMI,THIRD PARTY PAYMENTS,PRIVATE CONTRACTOR,REVENUE
Walsall Council,http://opendatacommunities.org/id/metropolitan-district-council/walsall ,WC130-443,30.09.2021,ADULT SOCIAL CARE,ANSON COURT RESIDENTIAL HOME,28/09/2021,"2,331.08",6541-Residential EMI,THIRD PARTY PAYMENTS,PRIVATE CONTRACTOR,REVENUE
Walsall Council,http://opendatacommunities.org/id/metropolitan-district-council/walsall ,WC130-444,30.09.2021,ADULT SOCIAL CARE,ANSON COURT RESIDENTIAL HOME,28/09/2021,"2,064.44",6541-Residential,THIRD PARTY PAYMENTS,PRIVATE CONTRACTOR,REVENUE
Walsall Council,http://opendatacommunities.org/id/metropolitan-district-council/walsall ,WC130-445,30.09.2021,ADULT SOCIAL CARE,ANSON COURT RESIDENTIAL HOME,28/09/2021,"2,331.08",6541-Residential EMI,THIRD PARTY PAYMENTS,PRIVATE CONTRACTOR,REVENUE
Walsall Council,http://opendatacommunities.org/id/metropolitan-district-council/walsall ,WC130-446,30.09.2021,ADULT SOCIAL CARE,ANSON COURT RESIDENTIAL HOME,28/09/2021,"2,331.08",6541-Residential EMI,THIRD PARTY PAYMENTS,PRIVATE CONTRACTOR,REVENUE
Walsall Council,http://opendatacommunities.org/id/metropolitan-district-council/walsall ,WC130-447,30.09.2021,ADULT SOCIAL CARE,ANSON COURT RESIDENTIAL HOME,28/09/2021,"2,331.08",6541-Residential EMI,THIRD PARTY PAYMENTS,PRIVATE CONTRACTOR,REVENUE
Walsall Council,http://opendatacommunities.org/id/metropolitan-district-council/walsall ,WC130-448,30.09.2021,ADULT SOCIAL CARE,ANSON COURT RESIDENTIAL HOME,28/09/2021,"2,331.08",6541-Residential EMI,THIRD PARTY PAYMENTS,PRIVATE CONTRACTOR,REVENUE
Walsall Council,http://opendatacommunities.org/id/metropolitan-district-council/walsall ,WC130-449,30.09.2021,ADULT SOCIAL CARE,ANSON COURT RESIDENTIAL HOME,28/09/2021,"4,911.92",6541-Residential EMI,THIRD PARTY PAYMENTS,PRIVATE CONTRACTOR,REVENUE
Walsall Council,http://opendatacommunities.org/id/metropolitan-district-council/walsall ,WC130-450,30.09.2021,ADULT SOCIAL CARE,ANSON COURT RESIDENTIAL HOME,28/09/2021,"7,815.38",6541-Short Stay Residential,THIRD PARTY PAYMENTS,PRIVATE CONTRACTOR,REVENUE
Walsall Council,http://opendatacommunities.org/id/metropolitan-district-council/walsall ,WC130-451,30.09.2021,ADULT SOCIAL CARE,ANSON COURT RESIDENTIAL HOME,28/09/2021,"2,184.44",6541-Residential,THIRD PARTY PAYMENTS,PRIVATE CONTRACTOR,REVENUE
Walsall Council,http://opendatacommunities.org/id/metropolitan-district-council/walsall ,WC130-452,30.09.2021,ADULT SOCIAL CARE,ANSON COURT RESIDENTIAL HOME,28/09/2021,"2,331.08",6541-Residential EMI,THIRD PARTY PAYMENTS,PRIVATE CONTRACTOR,REVENUE
Walsall Council,http://opendatacommunities.org/id/metropolitan-district-council/walsall ,WC130-453,30.09.2021,ADULT SOCIAL CARE,ANSON COURT RESIDENTIAL HOME,28/09/2021,"2,331.08",6541-Residential EMI,THIRD PARTY PAYMENTS,PRIVATE CONTRACTOR,REVENUE
Walsall Council,http://opendatacommunities.org/id/metropolitan-district-council/walsall ,WC130-454,30.09.2021,ADULT SOCIAL CARE,ANSON COURT RESIDENTIAL HOME,28/09/2021,"2,331.08",6541-Residential EMI,THIRD PARTY PAYMENTS,PRIVATE CONTRACTOR,REVENUE
Walsall Council,http://opendatacommunities.org/id/metropolitan-district-council/walsall ,WC130-455,30.09.2021,ADULT SOCIAL CARE,ANSON COURT RESIDENTIAL HOME,28/09/2021,"2,331.08",6541-Residential EMI,THIRD PARTY PAYMENTS,PRIVATE CONTRACTOR,REVENUE
Walsall Council,http://opendatacommunities.org/id/metropolitan-district-council/walsall ,WC130-456,30.09.2021,ADULT SOCIAL CARE,ANSON COURT RESIDENTIAL HOME,28/09/2021,"2,064.44",6541-Residential,THIRD PARTY PAYMENTS,PRIVATE CONTRACTOR,REVENUE
Walsall Council,http://opendatacommunities.org/id/metropolitan-district-council/walsall ,WC130-457,30.09.2021,ADULT SOCIAL CARE,ANSON COURT RESIDENTIAL HOME,28/09/2021,"2,331.08",6541-Residential EMI,THIRD PARTY PAYMENTS,PRIVATE CONTRACTOR,REVENUE
Walsall Council,http://opendatacommunities.org/id/metropolitan-district-council/walsall ,WC130-458,30.09.2021,ADULT SOCIAL CARE,ANSON COURT RESIDENTIAL HOME,28/09/2021,"5,577.94",6541-Residential EMI,THIRD PARTY PAYMENTS,PRIVATE CONTRACTOR,REVENUE
Walsall Council,http://opendatacommunities.org/id/metropolitan-district-council/walsall ,WC130-459,30.09.2021,ADULT SOCIAL CARE,ANSON COURT RESIDENTIAL HOME,03/09/2021,"5,961.12",6550-ASC Infection Control Fund Round 4 (30% Grants),THIRD PARTY PAYMENTS,COVID THIRD PARTY PAYMENTS,REVENUE
Walsall Council,http://opendatacommunities.org/id/metropolitan-district-council/walsall ,WC130-460,30.09.2021,CHILDRENS,REDACTED,23/09/2021,341.24,6223-Special Guardianship Orders,TRANSFER PAYMENTS,CHILDREN SOCIAL SERVICES CLIENT,REVENUE
Walsall Council,http://opendatacommunities.org/id/metropolitan-district-council/walsall ,WC130-461,30.09.2021,"ECONOMY, ENVIRONMENT & COMMUNITIES",APCOA PARKING SERVICES (UK) LTD,08/09/2021,"52,103.91",6411-Professional Services-Priv Contractor & Other Agencies,THIRD PARTY PAYMENTS,PRIVATE CONTRACTOR,REVENUE
Walsall Council,http://opendatacommunities.org/id/metropolitan-district-council/walsall ,WC130-462,30.09.2021,CHILDRENS,APP CARZ,21/09/2021,545.00,6314-Hire of Vehicle with Driver,TRANSPORT,DIRECT TRANSPORT COSTS,REVENUE
Walsall Council,http://opendatacommunities.org/id/metropolitan-district-council/walsall ,WC130-463,30.09.2021,CHILDRENS,APP CARZ,22/09/2021,313.50,6314-Hire of Vehicle with Driver,TRANSPORT,DIRECT TRANSPORT COSTS,REVENUE
Walsall Council,http://opendatacommunities.org/id/metropolitan-district-council/walsall ,WC130-464,30.09.2021,CHILDRENS,APP CARZ,22/09/2021,391.00,6314-Hire of Vehicle with Driver,TRANSPORT,DIRECT TRANSPORT COSTS,REVENUE
Walsall Council,http://opendatacommunities.org/id/metropolitan-district-council/walsall ,WC130-465,30.09.2021,CHILDRENS,APP CARZ,24/09/2021,402.00,6314-Hire of Vehicle with Driver,TRANSPORT,DIRECT TRANSPORT COSTS,REVENUE
Walsall Council,http://opendatacommunities.org/id/metropolitan-district-council/walsall ,WC130-466,30.09.2021,CHILDRENS,APP CARZ,24/09/2021,351.00,6314-Hire of Vehicle with Driver,TRANSPORT,DIRECT TRANSPORT COSTS,REVENUE
Walsall Council,http://opendatacommunities.org/id/metropolitan-district-council/walsall ,WC130-467,30.09.2021,CHILDRENS,APP CARZ,27/09/2021,417.00,6314-Hire of Vehicle with Driver,TRANSPORT,DIRECT TRANSPORT COSTS,REVENUE
Walsall Council,http://opendatacommunities.org/id/metropolitan-district-council/walsall ,WC130-468,30.09.2021,CHILDRENS,APP CARZ,29/09/2021,449.00,6314-Hire of Vehicle with Driver,TRANSPORT,DIRECT TRANSPORT COSTS,REVENUE
Walsall Council,http://opendatacommunities.org/id/metropolitan-district-council/walsall ,WC130-469,30.09.2021,CHILDRENS,APP CARZ,29/09/2021,273.00,6314-Hire of Vehicle with Driver,TRANSPORT,DIRECT TRANSPORT COSTS,REVENUE
Walsall Council,http://opendatacommunities.org/id/metropolitan-district-council/walsall ,WC130-470,30.09.2021,CHILDRENS,APP CARZ,29/09/2021,294.00,6314-Hire of Vehicle with Driver,TRANSPORT,DIRECT TRANSPORT COSTS,REVENUE
Walsall Council,http://opendatacommunities.org/id/metropolitan-district-council/walsall ,WC130-471,30.09.2021,CHILDRENS,APP CARZ,29/09/2021,371.00,6314-Hire of Vehicle with Driver,TRANSPORT,DIRECT TRANSPORT COSTS,REVENUE
Walsall Council,http://opendatacommunities.org/id/metropolitan-district-council/walsall ,WC130-472,30.09.2021,CHILDRENS,APP CARZ,13/09/2021,716.88,6241-Hire of Vehicle with Driver,TRANSPORT,DIRECT TRANSPORT COSTS,REVENUE
Walsall Council,http://opendatacommunities.org/id/metropolitan-district-council/walsall ,WC130-473,30.09.2021,"ECONOMY, ENVIRONMENT & COMMUNITIES",APSE 001,16/09/2021,488.00,6430-External Training,INDIRECT EMPLOYEES,EXTERNAL TRAINING,REVENUE
Walsall Council,http://opendatacommunities.org/id/metropolitan-district-council/walsall ,WC130-474,30.09.2021,CHILDRENS,AQUAID (BIRMINGHAM CENTRAL),20/09/2021,555.00,1206-Food & Drink Supplies,SUPPLIES & SERVICES,CATERING,REVENUE
Walsall Council,http://opendatacommunities.org/id/metropolitan-district-council/walsall ,WC130-475,30.09.2021,"ECONOMY, ENVIRONMENT & COMMUNITIES",AQUALYMPIC,17/09/2021,"2,182.50",6413-Events & Visual Arts,SUPPLIES & SERVICES,SERVICES,REVENUE
Walsall Council,http://opendatacommunities.org/id/metropolitan-district-council/walsall ,WC130-476,30.09.2021,"ECONOMY, ENVIRONMENT & COMMUNITIES",AQUALYMPIC,17/09/2021,870.00,6413-Events & Visual Arts,SUPPLIES & SERVICES,SERVICES,REVENUE
Walsall Council,http://opendatacommunities.org/id/metropolitan-district-council/walsall ,WC130-477,30.09.2021,ADULT SOCIAL CARE,ARBORETUM NURSING HOME.,03/09/2021,"9,926.28",6550-ASC Rapid Testing Fund Round 3 (70%),TRANSFER PAYMENTS,COVID TRANSFER PAYMENT,REVENUE
Walsall Council,http://opendatacommunities.org/id/metropolitan-district-council/walsall ,WC130-478,30.09.2021,ADULT SOCIAL CARE,ARBORETUM NURSING HOME.,28/09/2021,"2,419.96",6541-Nursing,THIRD PARTY PAYMENTS,PRIVATE CONTRACTOR,REVENUE
Walsall Council,http://opendatacommunities.org/id/metropolitan-district-council/walsall ,WC130-479,30.09.2021,ADULT SOCIAL CARE,ARBORETUM NURSING HOME.,28/09/2021,"2,419.96",6541-Nursing,THIRD PARTY PAYMENTS,PRIVATE CONTRACTOR,REVENUE
Walsall Council,http://opendatacommunities.org/id/metropolitan-district-council/walsall ,WC130-480,30.09.2021,ADULT SOCIAL CARE,ARBORETUM NURSING HOME.,28/09/2021,"2,419.96",6541-Nursing,THIRD PARTY PAYMENTS,PRIVATE CONTRACTOR,REVENUE
Walsall Council,http://opendatacommunities.org/id/metropolitan-district-council/walsall ,WC130-481,30.09.2021,ADULT SOCIAL CARE,ARBORETUM NURSING HOME.,28/09/2021,"2,419.96",6541-Nursing,THIRD PARTY PAYMENTS,PRIVATE CONTRACTOR,REVENUE
Walsall Council,http://opendatacommunities.org/id/metropolitan-district-council/walsall ,WC130-482,30.09.2021,ADULT SOCIAL CARE,ARBORETUM NURSING HOME.,28/09/2021,"2,599.96",6541-Nursing,THIRD PARTY PAYMENTS,PRIVATE CONTRACTOR,REVENUE
Walsall Council,http://opendatacommunities.org/id/metropolitan-district-council/walsall ,WC130-483,30.09.2021,ADULT SOCIAL CARE,ARBORETUM NURSING HOME.,28/09/2021,"2,599.96",6541-Nursing,THIRD PARTY PAYMENTS,PRIVATE CONTRACTOR,REVENUE
Walsall Council,http://opendatacommunities.org/id/metropolitan-district-council/walsall ,WC130-484,30.09.2021,ADULT SOCIAL CARE,ARBORETUM NURSING HOME.,28/09/2021,"2,599.96",6541-Nursing,THIRD PARTY PAYMENTS,PRIVATE CONTRACTOR,REVENUE
Walsall Council,http://opendatacommunities.org/id/metropolitan-district-council/walsall ,WC130-485,30.09.2021,ADULT SOCIAL CARE,ARBORETUM NURSING HOME.,28/09/2021,"2,599.96",6541-Nursing,THIRD PARTY PAYMENTS,PRIVATE CONTRACTOR,REVENUE
Walsall Council,http://opendatacommunities.org/id/metropolitan-district-council/walsall ,WC130-486,30.09.2021,ADULT SOCIAL CARE,ARBORETUM NURSING HOME.,28/09/2021,"2,599.96",6541-Nursing,THIRD PARTY PAYMENTS,PRIVATE CONTRACTOR,REVENUE
Walsall Council,http://opendatacommunities.org/id/metropolitan-district-council/walsall ,WC130-487,30.09.2021,ADULT SOCIAL CARE,ARBORETUM NURSING HOME.,28/09/2021,"2,419.96",6541-Nursing,THIRD PARTY PAYMENTS,PRIVATE CONTRACTOR,REVENUE
Walsall Council,http://opendatacommunities.org/id/metropolitan-district-council/walsall ,WC130-488,30.09.2021,ADULT SOCIAL CARE,ARBORETUM NURSING HOME.,28/09/2021,"2,599.96",6541-Nursing,THIRD PARTY PAYMENTS,PRIVATE CONTRACTOR,REVENUE
Walsall Council,http://opendatacommunities.org/id/metropolitan-district-council/walsall ,WC130-489,30.09.2021,ADULT SOCIAL CARE,ARBORETUM NURSING HOME.,28/09/2021,"1,809.29",6541-Residential & Nursing Care Placements,THIRD PARTY PAYMENTS,PRIVATE CONTRACTOR,REVENUE
Walsall Council,http://opendatacommunities.org/id/metropolitan-district-council/walsall ,WC130-490,30.09.2021,ADULT SOCIAL CARE,ARBORETUM NURSING HOME.,28/09/2021,"2,419.96",6541-Nursing,THIRD PARTY PAYMENTS,PRIVATE CONTRACTOR,REVENUE
Walsall Council,http://opendatacommunities.org/id/metropolitan-district-council/walsall ,WC130-491,30.09.2021,ADULT SOCIAL CARE,ARBORETUM NURSING HOME.,28/09/2021,"2,419.96",6541-Nursing,THIRD PARTY PAYMENTS,PRIVATE CONTRACTOR,REVENUE
Walsall Council,http://opendatacommunities.org/id/metropolitan-district-council/walsall ,WC130-492,30.09.2021,ADULT SOCIAL CARE,ARBORETUM NURSING HOME.,28/09/2021,"2,419.96",6541-Nursing,THIRD PARTY PAYMENTS,PRIVATE CONTRACTOR,REVENUE
Walsall Council,http://opendatacommunities.org/id/metropolitan-district-council/walsall ,WC130-493,30.09.2021,ADULT SOCIAL CARE,ARBORETUM NURSING HOME.,28/09/2021,"2,575.96",6541-Nursing,THIRD PARTY PAYMENTS,PRIVATE CONTRACTOR,REVENUE
Walsall Council,http://opendatacommunities.org/id/metropolitan-district-council/walsall ,WC130-494,30.09.2021,ADULT SOCIAL CARE,ARBORETUM NURSING HOME.,28/09/2021,"2,599.96",6541-Nursing,THIRD PARTY PAYMENTS,PRIVATE CONTRACTOR,REVENUE
Walsall Council,http://opendatacommunities.org/id/metropolitan-district-council/walsall ,WC130-495,30.09.2021,ADULT SOCIAL CARE,ARBORETUM NURSING HOME.,28/09/2021,"2,599.96",6541-Nursing,THIRD PARTY PAYMENTS,PRIVATE CONTRACTOR,REVENUE
Walsall Council,http://opendatacommunities.org/id/metropolitan-district-council/walsall ,WC130-496,30.09.2021,ADULT SOCIAL CARE,ARBORETUM NURSING HOME.,28/09/2021,"1,064.29",6541-Residential & Nursing Care Placements,THIRD PARTY PAYMENTS,PRIVATE CONTRACTOR,REVENUE
Walsall Council,http://opendatacommunities.org/id/metropolitan-district-council/walsall ,WC130-497,30.09.2021,ADULT SOCIAL CARE,ARBORETUM NURSING HOME.,28/09/2021,"2,235.00",6541-Residential & Nursing Care Placements,THIRD PARTY PAYMENTS,PRIVATE CONTRACTOR,REVENUE
Walsall Council,http://opendatacommunities.org/id/metropolitan-district-council/walsall ,WC130-498,30.09.2021,ADULT SOCIAL CARE,ARBORETUM NURSING HOME.,28/09/2021,"12,999.80",6541-Nursing,THIRD PARTY PAYMENTS,PRIVATE CONTRACTOR,REVENUE
Walsall Council,http://opendatacommunities.org/id/metropolitan-district-council/walsall ,WC130-499,30.09.2021,ADULT SOCIAL CARE,ARBORETUM NURSING HOME.,28/09/2021,"3,512.14",6541-Residential & Nursing Care Placements,THIRD PARTY PAYMENTS,PRIVATE CONTRACTOR,REVENUE
Walsall Council,http://opendatacommunities.org/id/metropolitan-district-council/walsall ,WC130-500,30.09.2021,ADULT SOCIAL CARE,ARBORETUM NURSING HOME.,28/09/2021,"2,419.96",6541-Nursing,THIRD PARTY PAYMENTS,PRIVATE CONTRACTOR,REVENUE
Walsall Council,http://opendatacommunities.org/id/metropolitan-district-council/walsall ,WC130-501,30.09.2021,ADULT SOCIAL CARE,ARBORETUM NURSING HOME.,03/09/2021,"9,754.56",6550-ASC Infection Control Fund Round 4 (30% Grants),THIRD PARTY PAYMENTS,COVID THIRD PARTY PAYMENTS,REVENUE
Walsall Council,http://opendatacommunities.org/id/metropolitan-district-council/walsall ,WC130-502,30.09.2021,"ECONOMY, ENVIRONMENT & COMMUNITIES",ARCADIS,17/09/2021,"4,636.83",6411-Professional Services-Priv Contractor & Other Agencies,THIRD PARTY PAYMENTS,PRIVATE CONTRACTOR,REVENUE
Walsall Council,http://opendatacommunities.org/id/metropolitan-district-council/walsall ,WC130-503,30.09.2021,"ECONOMY, ENVIRONMENT & COMMUNITIES",ARCADIS,17/09/2021,"-4,636.83",6411-Professional Services-Priv Contractor & Other Agencies,THIRD PARTY PAYMENTS,PRIVATE CONTRACTOR,REVENUE
Walsall Council,http://opendatacommunities.org/id/metropolitan-district-council/walsall ,WC130-504,30.09.2021,"ECONOMY, ENVIRONMENT & COMMUNITIES",ARCADIS,17/09/2021,"4,636.83",6411-Professional Services-Priv Contractor & Other Agencies,THIRD PARTY PAYMENTS,PRIVATE CONTRACTOR,REVENUE
Walsall Council,http://opendatacommunities.org/id/metropolitan-district-council/walsall ,WC130-505,30.09.2021,"ECONOMY, ENVIRONMENT & COMMUNITIES",ARCADIS,17/09/2021,"-19,870.70",6411-Professional Services-Priv Contractor & Other Agencies,THIRD PARTY PAYMENTS,PRIVATE CONTRACTOR,REVENUE
Walsall Council,http://opendatacommunities.org/id/metropolitan-district-council/walsall ,WC130-506,30.09.2021,"ECONOMY, ENVIRONMENT & COMMUNITIES",ARCADIS,17/09/2021,"19,870.70",6411-Professional Services-Priv Contractor & Other Agencies,THIRD PARTY PAYMENTS,PRIVATE CONTRACTOR,REVENUE
Walsall Council,http://opendatacommunities.org/id/metropolitan-district-council/walsall ,WC130-507,30.09.2021,ECONOMY & ENVIRONMENT CAPITAL,ARCADIS,09/09/2021,"28,000.00",7200-Project Fees,CAPITAL,"NEW CONSTRUCTION,CONVERSION & RENOVATION",CAPITAL
Walsall Council,http://opendatacommunities.org/id/metropolitan-district-council/walsall ,WC130-508,30.09.2021,"ECONOMY, ENVIRONMENT & COMMUNITIES",ARCHWAY TCS LTD,06/09/2021,-306.14,6410-Vehicle Wash Plant Materials,SUPPLIES & SERVICES,EQUIPMENT FURNITURE & MATERIALS,REVENUE
Walsall Council,http://opendatacommunities.org/id/metropolitan-district-council/walsall ,WC130-509,30.09.2021,"ECONOMY, ENVIRONMENT & COMMUNITIES",ARCHWAY TCS LTD,06/09/2021,306.14,6410-Vehicle Wash Plant Materials,SUPPLIES & SERVICES,EQUIPMENT FURNITURE & MATERIALS,REVENUE
Walsall Council,http://opendatacommunities.org/id/metropolitan-district-council/walsall ,WC130-510,30.09.2021,ADULT SOCIAL CARE,ASH GRANGE CARE HOME,03/09/2021,"7,720.44",6550-ASC Rapid Testing Fund Round 3 (70%),TRANSFER PAYMENTS,COVID TRANSFER PAYMENT,REVENUE
Walsall Council,http://opendatacommunities.org/id/metropolitan-district-council/walsall ,WC130-511,30.09.2021,ADULT SOCIAL CARE,ASH GRANGE CARE HOME,28/09/2021,"2,722.96",6541-Nursing EMI,THIRD PARTY PAYMENTS,PRIVATE CONTRACTOR,REVENUE
Walsall Council,http://opendatacommunities.org/id/metropolitan-district-council/walsall ,WC130-512,30.09.2021,ADULT SOCIAL CARE,ASH GRANGE CARE HOME,28/09/2021,"2,064.44",6541-Residential,THIRD PARTY PAYMENTS,PRIVATE CONTRACTOR,REVENUE
Walsall Council,http://opendatacommunities.org/id/metropolitan-district-council/walsall ,WC130-513,30.09.2021,ADULT SOCIAL CARE,ASH GRANGE CARE HOME,28/09/2021,"2,419.96",6541-Nursing,THIRD PARTY PAYMENTS,PRIVATE CONTRACTOR,REVENUE
Walsall Council,http://opendatacommunities.org/id/metropolitan-district-council/walsall ,WC130-514,30.09.2021,ADULT SOCIAL CARE,ASH GRANGE CARE HOME,28/09/2021,"2,419.96",6541-Nursing,THIRD PARTY PAYMENTS,PRIVATE CONTRACTOR,REVENUE
Walsall Council,http://opendatacommunities.org/id/metropolitan-district-council/walsall ,WC130-515,30.09.2021,ADULT SOCIAL CARE,ASH GRANGE CARE HOME,28/09/2021,428.57,6541-Residential & Nursing Care Placements,THIRD PARTY PAYMENTS,PRIVATE CONTRACTOR,REVENUE
Walsall Council,http://opendatacommunities.org/id/metropolitan-district-council/walsall ,WC130-516,30.09.2021,ADULT SOCIAL CARE,ASH GRANGE CARE HOME,28/09/2021,"2,722.96",6541-Nursing EMI,THIRD PARTY PAYMENTS,PRIVATE CONTRACTOR,REVENUE
Walsall Council,http://opendatacommunities.org/id/metropolitan-district-council/walsall ,WC130-517,30.09.2021,ADULT SOCIAL CARE,ASH GRANGE CARE HOME,28/09/2021,"2,819.96",6541-Nursing,THIRD PARTY PAYMENTS,PRIVATE CONTRACTOR,REVENUE
Walsall Council,http://opendatacommunities.org/id/metropolitan-district-council/walsall ,WC130-518,30.09.2021,ADULT SOCIAL CARE,ASH GRANGE CARE HOME,28/09/2021,"2,785.72",6541-Residential & Nursing Care Placements,THIRD PARTY PAYMENTS,PRIVATE CONTRACTOR,REVENUE
Walsall Council,http://opendatacommunities.org/id/metropolitan-district-council/walsall ,WC130-519,30.09.2021,ADULT SOCIAL CARE,ASH GRANGE CARE HOME,28/09/2021,321.43,6541-Residential & Nursing Care Placements,THIRD PARTY PAYMENTS,PRIVATE CONTRACTOR,REVENUE
Walsall Council,http://opendatacommunities.org/id/metropolitan-district-council/walsall ,WC130-520,30.09.2021,ADULT SOCIAL CARE,ASH GRANGE CARE HOME,28/09/2021,"2,464.29",6541-Residential & Nursing Care Placements,THIRD PARTY PAYMENTS,PRIVATE CONTRACTOR,REVENUE
Walsall Council,http://opendatacommunities.org/id/metropolitan-district-council/walsall ,WC130-521,30.09.2021,ADULT SOCIAL CARE,ASH GRANGE CARE HOME,28/09/2021,"1,209.98",6541-Nursing,THIRD PARTY PAYMENTS,PRIVATE CONTRACTOR,REVENUE
Walsall Council,http://opendatacommunities.org/id/metropolitan-district-council/walsall ,WC130-522,30.09.2021,ADULT SOCIAL CARE,ASH GRANGE CARE HOME,28/09/2021,"1,928.57",6541-Residential & Nursing Care Placements,THIRD PARTY PAYMENTS,PRIVATE CONTRACTOR,REVENUE
Walsall Council,http://opendatacommunities.org/id/metropolitan-district-council/walsall ,WC130-523,30.09.2021,ADULT SOCIAL CARE,ASH GRANGE CARE HOME,28/09/2021,964.29,6541-Residential & Nursing Care Placements,THIRD PARTY PAYMENTS,PRIVATE CONTRACTOR,REVENUE
Walsall Council,http://opendatacommunities.org/id/metropolitan-district-council/walsall ,WC130-524,30.09.2021,ADULT SOCIAL CARE,ASH GRANGE CARE HOME,28/09/2021,"1,500.00",6541-Residential & Nursing Care Placements,THIRD PARTY PAYMENTS,PRIVATE CONTRACTOR,REVENUE
Walsall Council,http://opendatacommunities.org/id/metropolitan-district-council/walsall ,WC130-525,30.09.2021,ADULT SOCIAL CARE,ASH GRANGE CARE HOME,28/09/2021,857.14,6541-Residential & Nursing Care Placements,THIRD PARTY PAYMENTS,PRIVATE CONTRACTOR,REVENUE
Walsall Council,http://opendatacommunities.org/id/metropolitan-district-council/walsall ,WC130-526,30.09.2021,ADULT SOCIAL CARE,ASH GRANGE CARE HOME,28/09/2021,"2,678.57",6541-Residential & Nursing Care Placements,THIRD PARTY PAYMENTS,PRIVATE CONTRACTOR,REVENUE
Walsall Council,http://opendatacommunities.org/id/metropolitan-district-council/walsall ,WC130-527,30.09.2021,ADULT SOCIAL CARE,ASH GRANGE CARE HOME,28/09/2021,857.15,6541-Residential & Nursing Care Placements,THIRD PARTY PAYMENTS,PRIVATE CONTRACTOR,REVENUE
Walsall Council,http://opendatacommunities.org/id/metropolitan-district-council/walsall ,WC130-528,30.09.2021,ADULT SOCIAL CARE,ASH GRANGE CARE HOME,28/09/2021,"2,819.96",6541-Nursing,THIRD PARTY PAYMENTS,PRIVATE CONTRACTOR,REVENUE
Walsall Council,http://opendatacommunities.org/id/metropolitan-district-council/walsall ,WC130-529,30.09.2021,ADULT SOCIAL CARE,ASH GRANGE CARE HOME,28/09/2021,"1,500.00",6541-Residential & Nursing Care Placements,THIRD PARTY PAYMENTS,PRIVATE CONTRACTOR,REVENUE
Walsall Council,http://opendatacommunities.org/id/metropolitan-district-council/walsall ,WC130-530,30.09.2021,ADULT SOCIAL CARE,ASH GRANGE CARE HOME,28/09/2021,428.57,6541-Residential & Nursing Care Placements,THIRD PARTY PAYMENTS,PRIVATE CONTRACTOR,REVENUE
Walsall Council,http://opendatacommunities.org/id/metropolitan-district-council/walsall ,WC130-531,30.09.2021,ADULT SOCIAL CARE,ASH GRANGE CARE HOME,28/09/2021,"2,722.96",6541-Nursing EMI,THIRD PARTY PAYMENTS,PRIVATE CONTRACTOR,REVENUE
Walsall Council,http://opendatacommunities.org/id/metropolitan-district-council/walsall ,WC130-532,30.09.2021,ADULT SOCIAL CARE,ASH GRANGE CARE HOME,28/09/2021,"2,419.96",6541-Nursing,THIRD PARTY PAYMENTS,PRIVATE CONTRACTOR,REVENUE
Walsall Council,http://opendatacommunities.org/id/metropolitan-district-council/walsall ,WC130-533,30.09.2021,ADULT SOCIAL CARE,ASH GRANGE CARE HOME,28/09/2021,"2,798.92",6541-Nursing,THIRD PARTY PAYMENTS,PRIVATE CONTRACTOR,REVENUE
Walsall Council,http://opendatacommunities.org/id/metropolitan-district-council/walsall ,WC130-534,30.09.2021,ADULT SOCIAL CARE,ASH GRANGE CARE HOME,28/09/2021,"2,606.96",6541-Residential,THIRD PARTY PAYMENTS,PRIVATE CONTRACTOR,REVENUE
Walsall Council,http://opendatacommunities.org/id/metropolitan-district-council/walsall ,WC130-535,30.09.2021,ADULT SOCIAL CARE,ASH GRANGE CARE HOME,28/09/2021,571.43,6541-Residential & Nursing Care Placements,THIRD PARTY PAYMENTS,PRIVATE CONTRACTOR,REVENUE
Walsall Council,http://opendatacommunities.org/id/metropolitan-district-council/walsall ,WC130-536,30.09.2021,ADULT SOCIAL CARE,ASH GRANGE CARE HOME,28/09/2021,"12,912.66",6541-Nursing,THIRD PARTY PAYMENTS,PRIVATE CONTRACTOR,REVENUE
Walsall Council,http://opendatacommunities.org/id/metropolitan-district-council/walsall ,WC130-537,30.09.2021,ADULT SOCIAL CARE,ASH GRANGE CARE HOME,03/09/2021,"3,666.24",6550-ASC Infection Control Fund Round 4 (30% Grants),THIRD PARTY PAYMENTS,COVID THIRD PARTY PAYMENTS,REVENUE
Walsall Council,http://opendatacommunities.org/id/metropolitan-district-council/walsall ,WC130-538,30.09.2021,"ECONOMY, ENVIRONMENT & COMMUNITIES",ASHDOWN SUPPLIES,01/09/2021,299.52,6413-Plaques Memorials-Materials,SUPPLIES & SERVICES,EQUIPMENT FURNITURE & MATERIALS,REVENUE
Walsall Council,http://opendatacommunities.org/id/metropolitan-district-council/walsall ,WC130-539,30.09.2021,"ECONOMY, ENVIRONMENT & COMMUNITIES",ASHDOWN SUPPLIES,02/09/2021,299.52,6413-Plaques Memorials-Materials,SUPPLIES & SERVICES,EQUIPMENT FURNITURE & MATERIALS,REVENUE
Walsall Council,http://opendatacommunities.org/id/metropolitan-district-council/walsall ,WC130-540,30.09.2021,ADULT SOCIAL CARE,REDACTED,08/09/2021,"1,782.55",6541-Direct Payment,THIRD PARTY PAYMENTS,PRIVATE CONTRACTOR,REVENUE
Walsall Council,http://opendatacommunities.org/id/metropolitan-district-council/walsall ,WC130-541,30.09.2021,CHILDRENS,ASK RETROFIT-UK LTD,17/09/2021,500.00,6314-Consultant Fees,SUPPLIES & SERVICES,SERVICES,REVENUE
Walsall Council,http://opendatacommunities.org/id/metropolitan-district-council/walsall ,WC130-542,30.09.2021,"ECONOMY, ENVIRONMENT & COMMUNITIES",ASKEWS AND HOLTS LIBRARY SERVICES LTD,08/09/2021,554.84,6414-Library Books,SUPPLIES & SERVICES,EQUIPMENT FURNITURE & MATERIALS,REVENUE
Walsall Council,http://opendatacommunities.org/id/metropolitan-district-council/walsall ,WC130-543,30.09.2021,"ECONOMY, ENVIRONMENT & COMMUNITIES",ASKEWS AND HOLTS LIBRARY SERVICES LTD,15/09/2021,"1,926.15",6414-Library Books,SUPPLIES & SERVICES,EQUIPMENT FURNITURE & MATERIALS,REVENUE
Walsall Council,http://opendatacommunities.org/id/metropolitan-district-council/walsall ,WC130-544,30.09.2021,"ECONOMY, ENVIRONMENT & COMMUNITIES",ASKEWS AND HOLTS LIBRARY SERVICES LTD,29/09/2021,"2,303.29",6414-Library Books,SUPPLIES & SERVICES,EQUIPMENT FURNITURE & MATERIALS,REVENUE
Walsall Council,http://opendatacommunities.org/id/metropolitan-district-council/walsall ,WC130-545,30.09.2021,"ECONOMY, ENVIRONMENT & COMMUNITIES",ASKEWS AND HOLTS LIBRARY SERVICES LTD,29/09/2021,"1,245.82",6414-Library Books,SUPPLIES & SERVICES,EQUIPMENT FURNITURE & MATERIALS,REVENUE
Walsall Council,http://opendatacommunities.org/id/metropolitan-district-council/walsall ,WC130-546,30.09.2021,ADULT SOCIAL CARE,REDACTED,08/09/2021,938.40,6541-Direct Payment,THIRD PARTY PAYMENTS,PRIVATE CONTRACTOR,REVENUE
Walsall Council,http://opendatacommunities.org/id/metropolitan-district-council/walsall ,WC130-547,30.09.2021,ADULT SOCIAL CARE,ASPECTS CARE LTD,22/09/2021,319.80,6541-Community Supported Living/Supported Accommodation,THIRD PARTY PAYMENTS,PRIVATE CONTRACTOR,REVENUE
Walsall Council,http://opendatacommunities.org/id/metropolitan-district-council/walsall ,WC130-548,30.09.2021,ADULT SOCIAL CARE,ASPECTS CARE LTD,22/09/2021,523.12,6541-Community Supported Living/Supported Accommodation,THIRD PARTY PAYMENTS,PRIVATE CONTRACTOR,REVENUE
Walsall Council,http://opendatacommunities.org/id/metropolitan-district-council/walsall ,WC130-549,30.09.2021,ADULT SOCIAL CARE,ASPECTS CARE LTD,22/09/2021,566.68,6541-Community Supported Living/Supported Accommodation,THIRD PARTY PAYMENTS,PRIVATE CONTRACTOR,REVENUE
Walsall Council,http://opendatacommunities.org/id/metropolitan-district-council/walsall ,WC130-550,30.09.2021,ADULT SOCIAL CARE,ASPECTS CARE LTD,22/09/2021,421.44,6541-Community Supported Living/Supported Accommodation,THIRD PARTY PAYMENTS,PRIVATE CONTRACTOR,REVENUE
Walsall Council,http://opendatacommunities.org/id/metropolitan-district-council/walsall ,WC130-551,30.09.2021,ADULT SOCIAL CARE,ASPECTS CARE LTD,22/09/2021,523.16,6541-Community Supported Living/Supported Accommodation,THIRD PARTY PAYMENTS,PRIVATE CONTRACTOR,REVENUE
Walsall Council,http://opendatacommunities.org/id/metropolitan-district-council/walsall ,WC130-552,30.09.2021,ADULT SOCIAL CARE,ASPECTS CARE LTD,22/09/2021,799.12,6541-Community Supported Living/Supported Accommodation,THIRD PARTY PAYMENTS,PRIVATE CONTRACTOR,REVENUE
Walsall Council,http://opendatacommunities.org/id/metropolitan-district-council/walsall ,WC130-553,30.09.2021,ADULT SOCIAL CARE,ASPECTS CARE LTD,22/09/2021,348.64,6541-Community Supported Living/Supported Accommodation,THIRD PARTY PAYMENTS,PRIVATE CONTRACTOR,REVENUE
Walsall Council,http://opendatacommunities.org/id/metropolitan-district-council/walsall ,WC130-554,30.09.2021,ADULT SOCIAL CARE,ASPECTS CARE LTD,22/09/2021,"1,089.80",6541-Community Supported Living/Supported Accommodation,THIRD PARTY PAYMENTS,PRIVATE CONTRACTOR,REVENUE
Walsall Council,http://opendatacommunities.org/id/metropolitan-district-council/walsall ,WC130-555,30.09.2021,ADULT SOCIAL CARE,ASPECTS CARE LTD,22/09/2021,464.96,6541-Community Supported Living/Supported Accommodation,THIRD PARTY PAYMENTS,PRIVATE CONTRACTOR,REVENUE
Walsall Council,http://opendatacommunities.org/id/metropolitan-district-council/walsall ,WC130-556,30.09.2021,ADULT SOCIAL CARE,ASPECTS CARE LTD,22/09/2021,508.48,6541-Community Supported Living/Supported Accommodation,THIRD PARTY PAYMENTS,PRIVATE CONTRACTOR,REVENUE
Walsall Council,http://opendatacommunities.org/id/metropolitan-district-council/walsall ,WC130-557,30.09.2021,ADULT SOCIAL CARE,ASPECTS CARE LTD,22/09/2021,799.24,6541-Community Supported Living/Supported Accommodation,THIRD PARTY PAYMENTS,PRIVATE CONTRACTOR,REVENUE
Walsall Council,http://opendatacommunities.org/id/metropolitan-district-council/walsall ,WC130-558,30.09.2021,"ECONOMY, ENVIRONMENT & COMMUNITIES",ASSOCIATE EVENTS LTD,23/09/2021,"7,500.00",6313-Professional Services-Priv Contractor & Other Agencies,THIRD PARTY PAYMENTS,PRIVATE CONTRACTOR,REVENUE
Walsall Council,http://opendatacommunities.org/id/metropolitan-district-council/walsall ,WC130-559,30.09.2021,RESOURCES AND TRANSFORMATION,ASSOCIATION OF ELECTORAL ADMINISTRATORS,29/09/2021,686.00,6610-External Training,INDIRECT EMPLOYEES,EXTERNAL TRAINING,REVENUE
Walsall Council,http://opendatacommunities.org/id/metropolitan-district-council/walsall ,WC130-560,30.09.2021,RESOURCES AND TRANSFORMATION CAPITAL,ASTUN TECHNOLOGY LIMITED,07/09/2021,"4,250.00",7300-Consultants Fees,CAPITAL,"NEW CONSTRUCTION,CONVERSION & RENOVATION",CAPITAL
Walsall Council,http://opendatacommunities.org/id/metropolitan-district-council/walsall ,WC130-561,30.09.2021,"ECONOMY, ENVIRONMENT & COMMUNITIES",ATLAS TEACHERS,07/09/2021,902.88,6313-Grants to Other Orgs,SUPPLIES & SERVICES,GRANTS (EXP) & SUBSCRIPTIONS,REVENUE
Walsall Council,http://opendatacommunities.org/id/metropolitan-district-council/walsall ,WC130-562,30.09.2021,"ECONOMY, ENVIRONMENT & COMMUNITIES",ATLAS TEACHERS,07/09/2021,962.28,6313-Grants to Other Orgs,SUPPLIES & SERVICES,GRANTS (EXP) & SUBSCRIPTIONS,REVENUE
Walsall Council,http://opendatacommunities.org/id/metropolitan-district-council/walsall ,WC130-563,30.09.2021,"ECONOMY, ENVIRONMENT & COMMUNITIES",AUDIENCE SYSTEMS LTD,02/09/2021,"3,034.96",6414-Repair & Maintenance of Furniture & Equipment,SUPPLIES & SERVICES,EQUIPMENT FURNITURE & MATERIALS,REVENUE
Walsall Council,http://opendatacommunities.org/id/metropolitan-district-council/walsall ,WC130-564,30.09.2021,ADULT SOCIAL CARE,AURORA GRAPHICS & DISPLAYS LTD,01/09/2021,476.10,6623-Outwork Print & Design,SUPPLIES & SERVICES,PRINTING STATIONERY & GENERAL OFFICE,REVENUE
Walsall Council,http://opendatacommunities.org/id/metropolitan-district-council/walsall ,WC130-565,30.09.2021,ADULT SOCIAL CARE,AURORA GRAPHICS & DISPLAYS LTD,01/09/2021,885.50,6623-Outwork Print & Design,SUPPLIES & SERVICES,PRINTING STATIONERY & GENERAL OFFICE,REVENUE
Walsall Council,http://opendatacommunities.org/id/metropolitan-district-council/walsall ,WC130-566,30.09.2021,ADULT SOCIAL CARE,AURORA GRAPHICS & DISPLAYS LTD,03/09/2021,"1,432.00",6623-Outwork Print & Design,SUPPLIES & SERVICES,PRINTING STATIONERY & GENERAL OFFICE,REVENUE
Walsall Council,http://opendatacommunities.org/id/metropolitan-district-council/walsall ,WC130-567,30.09.2021,ADULT SOCIAL CARE,AURORA GRAPHICS & DISPLAYS LTD,14/09/2021,655.20,6623-Outwork Print & Design,SUPPLIES & SERVICES,PRINTING STATIONERY & GENERAL OFFICE,REVENUE
Walsall Council,http://opendatacommunities.org/id/metropolitan-district-council/walsall ,WC130-568,30.09.2021,ADULT SOCIAL CARE,AUTISM WEST MIDLANDS,28/09/2021,"7,418.04",6541-Residential,THIRD PARTY PAYMENTS,PRIVATE CONTRACTOR,REVENUE
Walsall Council,http://opendatacommunities.org/id/metropolitan-district-council/walsall ,WC130-569,30.09.2021,ADULT SOCIAL CARE,AUTISM WEST MIDLANDS,28/09/2021,"20,821.68",6541-Residential,THIRD PARTY PAYMENTS,PRIVATE CONTRACTOR,REVENUE
Walsall Council,http://opendatacommunities.org/id/metropolitan-district-council/walsall ,WC130-570,30.09.2021,ADULT SOCIAL CARE,AUTISM WEST MIDLANDS,28/09/2021,"5,732.64",6541-Residential,THIRD PARTY PAYMENTS,PRIVATE CONTRACTOR,REVENUE
Walsall Council,http://opendatacommunities.org/id/metropolitan-district-council/walsall ,WC130-571,30.09.2021,ADULT SOCIAL CARE,AVERY HOMES NELSON LIMITED,03/09/2021,"8,823.36",6550-ASC Rapid Testing Fund Round 3 (70%),TRANSFER PAYMENTS,COVID TRANSFER PAYMENT,REVENUE
Walsall Council,http://opendatacommunities.org/id/metropolitan-district-council/walsall ,WC130-572,30.09.2021,ADULT SOCIAL CARE,AVERY HOMES NELSON LIMITED,28/09/2021,"2,064.44",6541-Residential,THIRD PARTY PAYMENTS,PRIVATE CONTRACTOR,REVENUE
Walsall Council,http://opendatacommunities.org/id/metropolitan-district-council/walsall ,WC130-573,30.09.2021,ADULT SOCIAL CARE,AVERY HOMES NELSON LIMITED,28/09/2021,"2,064.44",6541-Residential,THIRD PARTY PAYMENTS,PRIVATE CONTRACTOR,REVENUE
Walsall Council,http://opendatacommunities.org/id/metropolitan-district-council/walsall ,WC130-574,30.09.2021,ADULT SOCIAL CARE,AVERY HOMES NELSON LIMITED,28/09/2021,"3,400.00",6541-Residential,THIRD PARTY PAYMENTS,PRIVATE CONTRACTOR,REVENUE
Walsall Council,http://opendatacommunities.org/id/metropolitan-district-council/walsall ,WC130-575,30.09.2021,ADULT SOCIAL CARE,AVERY HOMES NELSON LIMITED,03/09/2021,"8,670.72",6550-ASC Infection Control Fund Round 4 (30% Grants),THIRD PARTY PAYMENTS,COVID THIRD PARTY PAYMENTS,REVENUE
Walsall Council,http://opendatacommunities.org/id/metropolitan-district-council/walsall ,WC130-576,30.09.2021,ADULT SOCIAL CARE,REDACTED,08/09/2021,"4,243.20",6541-Direct Payment,THIRD PARTY PAYMENTS,PRIVATE CONTRACTOR,REVENUE
Walsall Council,http://opendatacommunities.org/id/metropolitan-district-council/walsall ,WC130-577,30.09.2021,CHILDRENS CAPITAL,AZTEC CONSTRUCTION (MIDLANDS) LTD,07/09/2021,"9,103.33",7300-Private Grants,CAPITAL,CAPITAL GRANTS,CAPITAL GRANTS
Walsall Council,http://opendatacommunities.org/id/metropolitan-district-council/walsall ,WC130-578,30.09.2021,"ECONOMY, ENVIRONMENT & COMMUNITIES",BAKER HALL PARTNERSHIP,27/09/2021,"1,356.00",6413-Professional Fees & Services,SUPPLIES & SERVICES,SERVICES,REVENUE
Walsall Council,http://opendatacommunities.org/id/metropolitan-district-council/walsall ,WC130-579,30.09.2021,ADULT SOCIAL CARE,REDACTED,08/09/2021,"4,749.90",6541-Direct Payment,THIRD PARTY PAYMENTS,PRIVATE CONTRACTOR,REVENUE
Walsall Council,http://opendatacommunities.org/id/metropolitan-district-council/walsall ,WC130-580,30.09.2021,CHILDRENS,BANYA FAMILY PLACEMENT AGENCY LTD,07/09/2021,"4,588.60",6223-Independent Foster Care-Oth Agency Provision,THIRD PARTY PAYMENTS,PRIVATE CONTRACTOR,REVENUE
Walsall Council,http://opendatacommunities.org/id/metropolitan-district-council/walsall ,WC130-581,30.09.2021,CHILDRENS,REDACTED,23/09/2021,340.00,6223-Internal Foster Carers-Carer Fees,TRANSFER PAYMENTS,CHILDREN SOCIAL SERVICES CLIENT,REVENUE
Walsall Council,http://opendatacommunities.org/id/metropolitan-district-council/walsall ,WC130-582,30.09.2021,CHILDRENS,REDACTED,23/09/2021,325.46,6223-Foster Carers Maintenance Allowance,TRANSFER PAYMENTS,CHILDREN SOCIAL SERVICES CLIENT,REVENUE
Walsall Council,http://opendatacommunities.org/id/metropolitan-district-council/walsall ,WC130-583,30.09.2021,"ECONOMY, ENVIRONMENT & COMMUNITIES",BARHALE CONSTRUCTION SERVICES LTD,13/09/2021,929.95,6313-Grants to Other Orgs,SUPPLIES & SERVICES,GRANTS (EXP) & SUBSCRIPTIONS,REVENUE
Walsall Council,http://opendatacommunities.org/id/metropolitan-district-council/walsall ,WC130-584,30.09.2021,"ECONOMY, ENVIRONMENT & COMMUNITIES",BARHALE CONSTRUCTION SERVICES LTD,13/09/2021,"1,046.68",6313-Grants to Other Orgs,SUPPLIES & SERVICES,GRANTS (EXP) & SUBSCRIPTIONS,REVENUE
Walsall Council,http://opendatacommunities.org/id/metropolitan-district-council/walsall ,WC130-585,30.09.2021,"ECONOMY, ENVIRONMENT & COMMUNITIES",BARHALE CONSTRUCTION SERVICES LTD,02/09/2021,-395.33,6313-Grants to Other Orgs,SUPPLIES & SERVICES,GRANTS (EXP) & SUBSCRIPTIONS,REVENUE
Walsall Council,http://opendatacommunities.org/id/metropolitan-district-council/walsall ,WC130-586,30.09.2021,"ECONOMY, ENVIRONMENT & COMMUNITIES",BARHALE CONSTRUCTION SERVICES LTD,02/09/2021,395.33,6313-Grants to Other Orgs,SUPPLIES & SERVICES,GRANTS (EXP) & SUBSCRIPTIONS,REVENUE
Walsall Council,http://opendatacommunities.org/id/metropolitan-district-council/walsall ,WC130-587,30.09.2021,CHILDRENS,BASE 25,22/09/2021,346.00,6241-Professional Fees & Services,SUPPLIES & SERVICES,SERVICES,REVENUE
Walsall Council,http://opendatacommunities.org/id/metropolitan-district-council/walsall ,WC130-588,30.09.2021,"ECONOMY, ENVIRONMENT & COMMUNITIES",BATLEYS,24/09/2021,602.85,6414-Catering & Refreshments,SUPPLIES & SERVICES,CATERING,REVENUE
Walsall Council,http://opendatacommunities.org/id/metropolitan-district-council/walsall ,WC130-589,30.09.2021,"ECONOMY, ENVIRONMENT & COMMUNITIES",BATLEYS,24/09/2021,"-1,084.25",6414-Catering & Refreshments,SUPPLIES & SERVICES,CATERING,REVENUE
Walsall Council,http://opendatacommunities.org/id/metropolitan-district-council/walsall ,WC130-590,30.09.2021,"ECONOMY, ENVIRONMENT & COMMUNITIES",BATLEYS,24/09/2021,"1,026.97",6414-Catering & Refreshments,SUPPLIES & SERVICES,CATERING,REVENUE
Walsall Council,http://opendatacommunities.org/id/metropolitan-district-council/walsall ,WC130-591,30.09.2021,"ECONOMY, ENVIRONMENT & COMMUNITIES",BATLEYS,24/09/2021,"1,084.25",6414-Catering & Refreshments,SUPPLIES & SERVICES,CATERING,REVENUE
Walsall Council,http://opendatacommunities.org/id/metropolitan-district-council/walsall ,WC130-592,30.09.2021,CHILDRENS,BAUER CORPORATE SERVICES - BAUER RADIO LTD,08/09/2021,"1,010.00",6223-Advertising-Foster Carer,INDIRECT EMPLOYEES,ADVERTISING FOSTER CARE,REVENUE
Walsall Council,http://opendatacommunities.org/id/metropolitan-district-council/walsall ,WC130-593,30.09.2021,CHILDRENS,BEACON CHILDCARE LTD,07/09/2021,"12,200.00",6223-External Residential Care-Oth Agency Provision,THIRD PARTY PAYMENTS,PRIVATE CONTRACTOR,REVENUE
Walsall Council,http://opendatacommunities.org/id/metropolitan-district-council/walsall ,WC130-594,30.09.2021,CHILDRENS CAPITAL,BEADEN POWERLEC LIMITED,29/09/2021,"1,079.00",7150-Site Works Contractors,CAPITAL,"NEW CONSTRUCTION,CONVERSION & RENOVATION",CAPITAL
Walsall Council,http://opendatacommunities.org/id/metropolitan-district-council/walsall ,WC130-595,30.09.2021,CHILDRENS CAPITAL,BEADEN POWERLEC LIMITED,29/09/2021,"4,316.00",7150-Site Works Contractors,CAPITAL,"NEW CONSTRUCTION,CONVERSION & RENOVATION",CAPITAL
Walsall Council,http://opendatacommunities.org/id/metropolitan-district-council/walsall ,WC130-596,30.09.2021,CHILDRENS CAPITAL,BEADEN POWERLEC LIMITED,29/09/2021,"1,061.20",7150-Site Works Contractors,CAPITAL,"NEW CONSTRUCTION,CONVERSION & RENOVATION",CAPITAL
Walsall Council,http://opendatacommunities.org/id/metropolitan-district-council/walsall ,WC130-597,30.09.2021,CHILDRENS CAPITAL,BEADEN POWERLEC LIMITED,29/09/2021,"4,244.80",7150-Site Works Contractors,CAPITAL,"NEW CONSTRUCTION,CONVERSION & RENOVATION",CAPITAL
Walsall Council,http://opendatacommunities.org/id/metropolitan-district-council/walsall ,WC130-598,30.09.2021,CHILDRENS CAPITAL,BEADEN POWERLEC LIMITED,29/09/2021,"1,570.60",7150-Site Works Contractors,CAPITAL,"NEW CONSTRUCTION,CONVERSION & RENOVATION",CAPITAL
Walsall Council,http://opendatacommunities.org/id/metropolitan-district-council/walsall ,WC130-599,30.09.2021,CHILDRENS CAPITAL,BEADEN POWERLEC LIMITED,29/09/2021,"6,282.40",7150-Site Works Contractors,CAPITAL,"NEW CONSTRUCTION,CONVERSION & RENOVATION",CAPITAL
Walsall Council,http://opendatacommunities.org/id/metropolitan-district-council/walsall ,WC130-600,30.09.2021,CHILDRENS CAPITAL,BEADEN POWERLEC LIMITED,29/09/2021,394.00,7150-Site Works Contractors,CAPITAL,"NEW CONSTRUCTION,CONVERSION & RENOVATION",CAPITAL
Walsall Council,http://opendatacommunities.org/id/metropolitan-district-council/walsall ,WC130-601,30.09.2021,CHILDRENS,BECKYS CHILDMINDING SERVICE,23/09/2021,718.20,1184-Other-Grants to Other Orgs,SUPPLIES & SERVICES,GRANTS (EXP) & SUBSCRIPTIONS,REVENUE
Walsall Council,http://opendatacommunities.org/id/metropolitan-district-council/walsall ,WC130-602,30.09.2021,CHILDRENS,BECKYS CHILDMINDING SERVICE,23/09/2021,"2,551.50",1184-Other-Grants to Other Orgs,SUPPLIES & SERVICES,GRANTS (EXP) & SUBSCRIPTIONS,REVENUE
Walsall Council,http://opendatacommunities.org/id/metropolitan-district-council/walsall ,WC130-603,30.09.2021,ADULT SOCIAL CARE,BELVIDERE COURT,28/09/2021,"2,419.96",6541-Nursing,THIRD PARTY PAYMENTS,PRIVATE CONTRACTOR,REVENUE
Walsall Council,http://opendatacommunities.org/id/metropolitan-district-council/walsall ,WC130-604,30.09.2021,ADULT SOCIAL CARE,BELVIDERE COURT,28/09/2021,"2,895.88",6541-Residential,THIRD PARTY PAYMENTS,PRIVATE CONTRACTOR,REVENUE
Walsall Council,http://opendatacommunities.org/id/metropolitan-district-council/walsall ,WC130-605,30.09.2021,ADULT SOCIAL CARE,BENEDON HEALTHCARE LTD,22/09/2021,"5,903.24",6541-Community Supported Living/Supported Accommodation,THIRD PARTY PAYMENTS,PRIVATE CONTRACTOR,REVENUE
Walsall Council,http://opendatacommunities.org/id/metropolitan-district-council/walsall ,WC130-606,30.09.2021,ADULT SOCIAL CARE,BENEDON HEALTHCARE LTD,22/09/2021,"1,395.84",6541-Community Supported Living/Supported Accommodation,THIRD PARTY PAYMENTS,PRIVATE CONTRACTOR,REVENUE
Walsall Council,http://opendatacommunities.org/id/metropolitan-district-council/walsall ,WC130-607,30.09.2021,ADULT SOCIAL CARE,REDACTED,08/09/2021,"3,580.90",6541-Direct Payment,THIRD PARTY PAYMENTS,PRIVATE CONTRACTOR,REVENUE
Walsall Council,http://opendatacommunities.org/id/metropolitan-district-council/walsall ,WC130-608,30.09.2021,CHILDRENS,BENTLEY CHILD CARE,07/09/2021,312.00,6241-Professional Fees & Services,SUPPLIES & SERVICES,SERVICES,REVENUE
Walsall Council,http://opendatacommunities.org/id/metropolitan-district-council/walsall ,WC130-609,30.09.2021,HOLDING ACCOUNTS,BERRYMANS LACE MAWER LLP,02/09/2021,871.00,2877-Insurance Payment Claims,SUPPLIES & SERVICES,INSURANCE,REVENUE
Walsall Council,http://opendatacommunities.org/id/metropolitan-district-council/walsall ,WC130-610,30.09.2021,HOLDING ACCOUNTS,BERRYMANS LACE MAWER LLP,02/09/2021,885.50,2877-Insurance Payment Claims,SUPPLIES & SERVICES,INSURANCE,REVENUE
Walsall Council,http://opendatacommunities.org/id/metropolitan-district-council/walsall ,WC130-611,30.09.2021,ADULT SOCIAL CARE,REDACTED,08/09/2021,"2,414.60",6541-Direct Payment,THIRD PARTY PAYMENTS,PRIVATE CONTRACTOR,REVENUE
Walsall Council,http://opendatacommunities.org/id/metropolitan-district-council/walsall ,WC130-612,30.09.2021,"ECONOMY, ENVIRONMENT & COMMUNITIES",BESCOT STADIUM SUNDAY MARKET LTD,13/09/2021,"-3,250.00",6410-Professional Services-Priv Contractor & Other Agencies,THIRD PARTY PAYMENTS,PRIVATE CONTRACTOR,REVENUE
Walsall Council,http://opendatacommunities.org/id/metropolitan-district-council/walsall ,WC130-613,30.09.2021,"ECONOMY, ENVIRONMENT & COMMUNITIES",BESCOT STADIUM SUNDAY MARKET LTD,13/09/2021,"3,250.00",6410-Professional Services-Priv Contractor & Other Agencies,THIRD PARTY PAYMENTS,PRIVATE CONTRACTOR,REVENUE
Walsall Council,http://opendatacommunities.org/id/metropolitan-district-council/walsall ,WC130-614,30.09.2021,"ECONOMY, ENVIRONMENT & COMMUNITIES",BESCOT STADIUM SUNDAY MARKET LTD,07/09/2021,"3,250.00",6410-Professional Services-Priv Contractor & Other Agencies,THIRD PARTY PAYMENTS,PRIVATE CONTRACTOR,REVENUE
Walsall Council,http://opendatacommunities.org/id/metropolitan-district-council/walsall ,WC130-615,30.09.2021,ADULT SOCIAL CARE,BESS CARE LIMITED,09/09/2021,260.91,6541-Domiciliary Care,THIRD PARTY PAYMENTS,PRIVATE CONTRACTOR,REVENUE
Walsall Council,http://opendatacommunities.org/id/metropolitan-district-council/walsall ,WC130-616,30.09.2021,ADULT SOCIAL CARE,BESS CARE LIMITED,09/09/2021,354.29,6541-Domiciliary Care,THIRD PARTY PAYMENTS,PRIVATE CONTRACTOR,REVENUE
Walsall Council,http://opendatacommunities.org/id/metropolitan-district-council/walsall ,WC130-617,30.09.2021,ADULT SOCIAL CARE,BESS CARE LIMITED,09/09/2021,510.17,6541-Domiciliary Care,THIRD PARTY PAYMENTS,PRIVATE CONTRACTOR,REVENUE
Walsall Council,http://opendatacommunities.org/id/metropolitan-district-council/walsall ,WC130-618,30.09.2021,ADULT SOCIAL CARE,BESS CARE LIMITED,23/09/2021,257.02,6541-Domiciliary Care,THIRD PARTY PAYMENTS,PRIVATE CONTRACTOR,REVENUE
Walsall Council,http://opendatacommunities.org/id/metropolitan-district-council/walsall ,WC130-619,30.09.2021,ADULT SOCIAL CARE,BESS CARE LIMITED,23/09/2021,354.29,6541-Domiciliary Care,THIRD PARTY PAYMENTS,PRIVATE CONTRACTOR,REVENUE
Walsall Council,http://opendatacommunities.org/id/metropolitan-district-council/walsall ,WC130-620,30.09.2021,ADULT SOCIAL CARE,BESS CARE LIMITED,23/09/2021,517.96,6541-Domiciliary Care,THIRD PARTY PAYMENTS,PRIVATE CONTRACTOR,REVENUE
Walsall Council,http://opendatacommunities.org/id/metropolitan-district-council/walsall ,WC130-621,30.09.2021,ADULT SOCIAL CARE,BESS CARE LIMITED,23/09/2021,354.29,6541-Domiciliary Care,THIRD PARTY PAYMENTS,PRIVATE CONTRACTOR,REVENUE
Walsall Council,http://opendatacommunities.org/id/metropolitan-district-council/walsall ,WC130-622,30.09.2021,ADULT SOCIAL CARE,BESS CARE LIMITED,23/09/2021,514.07,6541-Domiciliary Care,THIRD PARTY PAYMENTS,PRIVATE CONTRACTOR,REVENUE
Walsall Council,http://opendatacommunities.org/id/metropolitan-district-council/walsall ,WC130-623,30.09.2021,ADULT SOCIAL CARE,BESS CARE LIMITED,22/09/2021,"1,786.87",6541-Domiciliary Care,THIRD PARTY PAYMENTS,PRIVATE CONTRACTOR,REVENUE
Walsall Council,http://opendatacommunities.org/id/metropolitan-district-council/walsall ,WC130-624,30.09.2021,ADULT SOCIAL CARE,BESS CARE LIMITED,22/09/2021,350.35,6541-Domiciliary Care,THIRD PARTY PAYMENTS,PRIVATE CONTRACTOR,REVENUE
Walsall Council,http://opendatacommunities.org/id/metropolitan-district-council/walsall ,WC130-625,30.09.2021,ADULT SOCIAL CARE,BESS CARE LIMITED,22/09/2021,630.66,6541-Domiciliary Care,THIRD PARTY PAYMENTS,PRIVATE CONTRACTOR,REVENUE
Walsall Council,http://opendatacommunities.org/id/metropolitan-district-council/walsall ,WC130-626,30.09.2021,ADULT SOCIAL CARE,BESS CARE LIMITED,23/09/2021,261.36,6550-ASC Rapid Testing Fund Round 3 (30%),TRANSFER PAYMENTS,COVID TRANSFER PAYMENT,REVENUE
Walsall Council,http://opendatacommunities.org/id/metropolitan-district-council/walsall ,WC130-627,30.09.2021,ADULT SOCIAL CARE,BESS CARE LIMITED,03/09/2021,931.32,6550-ASC Infection Control Fund Round 4 (30% Grants),THIRD PARTY PAYMENTS,COVID THIRD PARTY PAYMENTS,REVENUE
Walsall Council,http://opendatacommunities.org/id/metropolitan-district-council/walsall ,WC130-628,30.09.2021,ADULT SOCIAL CARE,BETHPHAGE.,22/09/2021,610.42,6541-Community Supported Living/Supported Accommodation,THIRD PARTY PAYMENTS,PRIVATE CONTRACTOR,REVENUE
Walsall Council,http://opendatacommunities.org/id/metropolitan-district-council/walsall ,WC130-629,30.09.2021,ADULT SOCIAL CARE,BETHPHAGE.,22/09/2021,"2,661.96",6541-Community Supported Living/Supported Accommodation,THIRD PARTY PAYMENTS,PRIVATE CONTRACTOR,REVENUE
Walsall Council,http://opendatacommunities.org/id/metropolitan-district-council/walsall ,WC130-630,30.09.2021,ADULT SOCIAL CARE,BETHPHAGE.,22/09/2021,"1,667.64",6541-Community Supported Living/Supported Accommodation,THIRD PARTY PAYMENTS,PRIVATE CONTRACTOR,REVENUE
Walsall Council,http://opendatacommunities.org/id/metropolitan-district-council/walsall ,WC130-631,30.09.2021,ADULT SOCIAL CARE,BETHPHAGE.,22/09/2021,923.32,6541-Community Supported Living/Supported Accommodation,THIRD PARTY PAYMENTS,PRIVATE CONTRACTOR,REVENUE
Walsall Council,http://opendatacommunities.org/id/metropolitan-district-council/walsall ,WC130-632,30.09.2021,ADULT SOCIAL CARE,BETHPHAGE.,22/09/2021,"1,548.68",6541-Community Supported Living/Supported Accommodation,THIRD PARTY PAYMENTS,PRIVATE CONTRACTOR,REVENUE
Walsall Council,http://opendatacommunities.org/id/metropolitan-district-council/walsall ,WC130-633,30.09.2021,ADULT SOCIAL CARE,BETHPHAGE.,22/09/2021,"5,836.88",6541-Community Supported Living/Supported Accommodation,THIRD PARTY PAYMENTS,PRIVATE CONTRACTOR,REVENUE
Walsall Council,http://opendatacommunities.org/id/metropolitan-district-council/walsall ,WC130-634,30.09.2021,ADULT SOCIAL CARE,BETHPHAGE.,22/09/2021,"1,608.16",6541-Community Supported Living/Supported Accommodation,THIRD PARTY PAYMENTS,PRIVATE CONTRACTOR,REVENUE
Walsall Council,http://opendatacommunities.org/id/metropolitan-district-council/walsall ,WC130-635,30.09.2021,ADULT SOCIAL CARE,BETHPHAGE.,28/09/2021,565.75,6541-Domiciliary Care,THIRD PARTY PAYMENTS,PRIVATE CONTRACTOR,REVENUE
Walsall Council,http://opendatacommunities.org/id/metropolitan-district-council/walsall ,WC130-636,30.09.2021,ADULT SOCIAL CARE,BETHPHAGE.,28/09/2021,654.05,6541-Domiciliary Care,THIRD PARTY PAYMENTS,PRIVATE CONTRACTOR,REVENUE
Walsall Council,http://opendatacommunities.org/id/metropolitan-district-council/walsall ,WC130-637,30.09.2021,ADULT SOCIAL CARE,BETHPHAGE.,28/09/2021,654.00,6541-Domiciliary Care,THIRD PARTY PAYMENTS,PRIVATE CONTRACTOR,REVENUE
Walsall Council,http://opendatacommunities.org/id/metropolitan-district-council/walsall ,WC130-638,30.09.2021,ADULT SOCIAL CARE,BETHPHAGE.,28/09/2021,654.00,6541-Domiciliary Care,THIRD PARTY PAYMENTS,PRIVATE CONTRACTOR,REVENUE
Walsall Council,http://opendatacommunities.org/id/metropolitan-district-council/walsall ,WC130-639,30.09.2021,ADULT SOCIAL CARE,BETHPHAGE.,28/09/2021,565.75,6541-Domiciliary Care,THIRD PARTY PAYMENTS,PRIVATE CONTRACTOR,REVENUE
Walsall Council,http://opendatacommunities.org/id/metropolitan-district-council/walsall ,WC130-640,30.09.2021,ADULT SOCIAL CARE,BETHPHAGE.,28/09/2021,654.05,6541-Domiciliary Care,THIRD PARTY PAYMENTS,PRIVATE CONTRACTOR,REVENUE
Walsall Council,http://opendatacommunities.org/id/metropolitan-district-council/walsall ,WC130-641,30.09.2021,ADULT SOCIAL CARE,BETHPHAGE.,14/09/2021,"3,802.40",6541-Domiciliary Care,THIRD PARTY PAYMENTS,PRIVATE CONTRACTOR,REVENUE
Walsall Council,http://opendatacommunities.org/id/metropolitan-district-council/walsall ,WC130-642,30.09.2021,ADULT SOCIAL CARE,BETHPHAGE.,23/09/2021,290.40,6550-ASC Rapid Testing Fund Round 3 (30%),TRANSFER PAYMENTS,COVID TRANSFER PAYMENT,REVENUE
Walsall Council,http://opendatacommunities.org/id/metropolitan-district-council/walsall ,WC130-643,30.09.2021,ADULT SOCIAL CARE,BETHPHAGE.,03/09/2021,"1,034.80",6550-ASC Infection Control Fund Round 4 (30% Grants),THIRD PARTY PAYMENTS,COVID THIRD PARTY PAYMENTS,REVENUE
Walsall Council,http://opendatacommunities.org/id/metropolitan-district-council/walsall ,WC130-644,30.09.2021,ADULT SOCIAL CARE,BETHPHAGE.,23/09/2021,"2,976.48",6550-ASC Rapid Testing Fund Round 3 (30%),TRANSFER PAYMENTS,COVID TRANSFER PAYMENT,REVENUE
Walsall Council,http://opendatacommunities.org/id/metropolitan-district-council/walsall ,WC130-645,30.09.2021,ADULT SOCIAL CARE,REDACTED,08/09/2021,"1,128.80",6541-Direct Payment,THIRD PARTY PAYMENTS,PRIVATE CONTRACTOR,REVENUE
Walsall Council,http://opendatacommunities.org/id/metropolitan-district-council/walsall ,WC130-646,30.09.2021,"ECONOMY, ENVIRONMENT & COMMUNITIES",BIFFA WASTE SERVICES LTD,17/09/2021,390.67,6410-Landfill Tax-Priv Contractor Fees,THIRD PARTY PAYMENTS,GOVERNMENT DEPARTMENT,REVENUE
Walsall Council,http://opendatacommunities.org/id/metropolitan-district-council/walsall ,WC130-647,30.09.2021,ADULT SOCIAL CARE,REDACTED,08/09/2021,"1,422.75",6541-Direct Payment,THIRD PARTY PAYMENTS,PRIVATE CONTRACTOR,REVENUE
Walsall Council,http://opendatacommunities.org/id/metropolitan-district-council/walsall ,WC130-648,30.09.2021,CHILDRENS,BIRCHILLS C OF E COMMUNITY ACADEMY,07/09/2021,"35,431.20",1184-Other-Grants to Other Orgs,SUPPLIES & SERVICES,GRANTS (EXP) & SUBSCRIPTIONS,REVENUE
Walsall Council,http://opendatacommunities.org/id/metropolitan-district-council/walsall ,WC130-649,30.09.2021,CHILDRENS,BIRCHILLS C OF E COMMUNITY ACADEMY,01/09/2021,"2,445.38",1220-Top Up Funding -Grants to Schools,SUPPLIES & SERVICES,GRANTS (EXP) & SUBSCRIPTIONS,REVENUE
Walsall Council,http://opendatacommunities.org/id/metropolitan-district-council/walsall ,WC130-650,30.09.2021,CHILDRENS,BIRCHILLS C OF E COMMUNITY ACADEMY,01/09/2021,"7,850.77",1220-Top Up Funding -Grants to Schools,SUPPLIES & SERVICES,GRANTS (EXP) & SUBSCRIPTIONS,REVENUE
Walsall Council,http://opendatacommunities.org/id/metropolitan-district-council/walsall ,WC130-651,30.09.2021,CHILDRENS,BLACK COUNTRY HEALTHCARE NHS FOUNDATION TRUST,22/09/2021,"7,860.00",6220-Professional Services-Priv Contractor & Other Agencies,THIRD PARTY PAYMENTS,PRIVATE CONTRACTOR,REVENUE
Walsall Council,http://opendatacommunities.org/id/metropolitan-district-council/walsall ,WC130-652,30.09.2021,CHILDRENS,BLACK COUNTRY HEALTHCARE NHS FOUNDATION TRUST,22/09/2021,"46,595.25",6220-Professional Services-Priv Contractor & Other Agencies,THIRD PARTY PAYMENTS,PRIVATE CONTRACTOR,REVENUE
Walsall Council,http://opendatacommunities.org/id/metropolitan-district-council/walsall ,WC130-653,30.09.2021,CHILDRENS,BLACK COUNTRY HEALTHCARE NHS FOUNDATION TRUST,22/09/2021,"3,768.75",6221-Professional Services-Priv Contractor & Other Agencies,THIRD PARTY PAYMENTS,PRIVATE CONTRACTOR,REVENUE
Walsall Council,http://opendatacommunities.org/id/metropolitan-district-council/walsall ,WC130-654,30.09.2021,CHILDRENS,BLACK COUNTRY HEALTHCARE NHS FOUNDATION TRUST,22/09/2021,"58,315.63",6221-Professional Fees & Services,SUPPLIES & SERVICES,SERVICES,REVENUE
Walsall Council,http://opendatacommunities.org/id/metropolitan-district-council/walsall ,WC130-655,30.09.2021,CHILDRENS,BLACK COUNTRY HEALTHCARE NHS FOUNDATION TRUST,22/09/2021,"46,595.25",6220-Professional Services-Priv Contractor & Other Agencies,THIRD PARTY PAYMENTS,PRIVATE CONTRACTOR,REVENUE
Walsall Council,http://opendatacommunities.org/id/metropolitan-district-council/walsall ,WC130-656,30.09.2021,CHILDRENS,BLACK COUNTRY HEALTHCARE NHS FOUNDATION TRUST,22/09/2021,"3,768.75",6221-Professional Services-Priv Contractor & Other Agencies,THIRD PARTY PAYMENTS,PRIVATE CONTRACTOR,REVENUE
Walsall Council,http://opendatacommunities.org/id/metropolitan-district-council/walsall ,WC130-657,30.09.2021,CHILDRENS,BLACK COUNTRY HEALTHCARE NHS FOUNDATION TRUST,22/09/2021,"58,315.63",6221-Professional Fees & Services,SUPPLIES & SERVICES,SERVICES,REVENUE
Walsall Council,http://opendatacommunities.org/id/metropolitan-district-council/walsall ,WC130-658,30.09.2021,ADULT SOCIAL CARE,BLACK COUNTRY MANAGEMENT LTD T/A BLUEBIRD CARE WALSALL,22/09/2021,"1,961.96",6541-Domiciliary Care,THIRD PARTY PAYMENTS,PRIVATE CONTRACTOR,REVENUE
Walsall Council,http://opendatacommunities.org/id/metropolitan-district-council/walsall ,WC130-659,30.09.2021,ADULT SOCIAL CARE,BLACK COUNTRY MANAGEMENT LTD T/A BLUEBIRD CARE WALSALL,23/09/2021,726.00,6550-ASC Rapid Testing Fund Round 3 (30%),TRANSFER PAYMENTS,COVID TRANSFER PAYMENT,REVENUE
Walsall Council,http://opendatacommunities.org/id/metropolitan-district-council/walsall ,WC130-660,30.09.2021,ADULT SOCIAL CARE,BLACK COUNTRY MANAGEMENT LTD T/A BLUEBIRD CARE WALSALL,03/09/2021,"2,587.00",6550-ASC Infection Control Fund Round 4 (30% Grants),THIRD PARTY PAYMENTS,COVID THIRD PARTY PAYMENTS,REVENUE
Walsall Council,http://opendatacommunities.org/id/metropolitan-district-council/walsall ,WC130-661,30.09.2021,"ECONOMY, ENVIRONMENT & COMMUNITIES",BLACK COUNTRY TRAINING LTD T/A BRITISH HGV TRAINING GROUP,23/09/2021,510.00,6410-External Training,INDIRECT EMPLOYEES,EXTERNAL TRAINING,REVENUE
Walsall Council,http://opendatacommunities.org/id/metropolitan-district-council/walsall ,WC130-662,30.09.2021,CHILDRENS,BLACK COUNTRY WOMENS AID,16/09/2021,"18,466.27",6211-Professional Fees & Services,SUPPLIES & SERVICES,SERVICES,REVENUE
Walsall Council,http://opendatacommunities.org/id/metropolitan-district-council/walsall ,WC130-663,30.09.2021,CHILDRENS,BLACK COUNTRY WOMENS AID,16/09/2021,"18,466.27",6211-Professional Fees & Services,SUPPLIES & SERVICES,SERVICES,REVENUE
Walsall Council,http://opendatacommunities.org/id/metropolitan-district-council/walsall ,WC130-664,30.09.2021,CHILDRENS,BLACK COUNTRY WOMENS AID,16/09/2021,"18,466.27",6211-Professional Fees & Services,SUPPLIES & SERVICES,SERVICES,REVENUE
Walsall Council,http://opendatacommunities.org/id/metropolitan-district-council/walsall ,WC130-665,30.09.2021,CHILDRENS,BLACK COUNTRY WOMENS AID,22/09/2021,"18,466.27",6211-Professional Fees & Services,SUPPLIES & SERVICES,SERVICES,REVENUE
Walsall Council,http://opendatacommunities.org/id/metropolitan-district-council/walsall ,WC130-666,30.09.2021,CHILDRENS,BLACK COUNTRY WOMENS AID,22/09/2021,"18,466.27",6211-Professional Fees & Services,SUPPLIES & SERVICES,SERVICES,REVENUE
Walsall Council,http://opendatacommunities.org/id/metropolitan-district-council/walsall ,WC130-667,30.09.2021,CHILDRENS,BLACK COUNTRY WOMENS AID,15/09/2021,"34,590.44",6220-Professional Services-Priv Contractor & Other Agencies,THIRD PARTY PAYMENTS,PRIVATE CONTRACTOR,REVENUE
Walsall Council,http://opendatacommunities.org/id/metropolitan-district-council/walsall ,WC130-668,30.09.2021,CHILDRENS,BLOSSOMS ON THE COMMON DAY NURSERY LTD,03/09/2021,"6,804.00",1184-Other-Grants to Other Orgs,SUPPLIES & SERVICES,GRANTS (EXP) & SUBSCRIPTIONS,REVENUE
Walsall Council,http://opendatacommunities.org/id/metropolitan-district-council/walsall ,WC130-669,30.09.2021,CHILDRENS,BLOSSOMS ON THE COMMON DAY NURSERY LTD,03/09/2021,"51,623.26",1184-Other-Grants to Other Orgs,SUPPLIES & SERVICES,GRANTS (EXP) & SUBSCRIPTIONS,REVENUE
Walsall Council,http://opendatacommunities.org/id/metropolitan-district-council/walsall ,WC130-670,30.09.2021,CHILDRENS,BLOSSOMS ON THE COMMON DAY NURSERY LTD,06/09/2021,"1,001.70",6223-Creche Facilities,SUPPLIES & SERVICES,SERVICES,REVENUE
Walsall Council,http://opendatacommunities.org/id/metropolitan-district-council/walsall ,WC130-671,30.09.2021,CHILDRENS,BLOSSOMS ON THE COMMON DAY NURSERY LTD,07/09/2021,"1,049.40",6223-Creche Facilities,SUPPLIES & SERVICES,SERVICES,REVENUE
Walsall Council,http://opendatacommunities.org/id/metropolitan-district-council/walsall ,WC130-672,30.09.2021,CHILDRENS,BLOXWICH ACADEMY,07/09/2021,"29,685.60",1184-Other-Grants to Other Orgs,SUPPLIES & SERVICES,GRANTS (EXP) & SUBSCRIPTIONS,REVENUE
Walsall Council,http://opendatacommunities.org/id/metropolitan-district-council/walsall ,WC130-673,30.09.2021,CHILDRENS,BLOXWICH ACADEMY,01/09/2021,"21,544.63",1220-Top Up Funding -Grants to Schools,SUPPLIES & SERVICES,GRANTS (EXP) & SUBSCRIPTIONS,REVENUE
Walsall Council,http://opendatacommunities.org/id/metropolitan-district-council/walsall ,WC130-674,30.09.2021,"ECONOMY, ENVIRONMENT & COMMUNITIES",BLOXWICH COMMUNITY PARTNERSHIP.,14/09/2021,"6,000.00",6430-Professional Services-Priv Contractor & Other Agencies,THIRD PARTY PAYMENTS,PRIVATE CONTRACTOR,REVENUE
Walsall Council,http://opendatacommunities.org/id/metropolitan-district-council/walsall ,WC130-675,30.09.2021,ADULT SOCIAL CARE,BLOXWICH COMMUNITY PARTNERSHIP.,13/09/2021,"13,153.30",6550-Professional Fees & Services,SUPPLIES & SERVICES,SERVICES,REVENUE
Walsall Council,http://opendatacommunities.org/id/metropolitan-district-council/walsall ,WC130-676,30.09.2021,ADULT SOCIAL CARE,BLOXWICH COMMUNITY PARTNERSHIP.,13/09/2021,"13,153.30",6550-Professional Fees & Services,SUPPLIES & SERVICES,SERVICES,REVENUE
Walsall Council,http://opendatacommunities.org/id/metropolitan-district-council/walsall ,WC130-677,30.09.2021,ADULT SOCIAL CARE,BLOXWICH COMMUNITY PARTNERSHIP.,13/09/2021,"12,256.00",6550-Professional Fees & Services,SUPPLIES & SERVICES,SERVICES,REVENUE
Walsall Council,http://opendatacommunities.org/id/metropolitan-district-council/walsall ,WC130-678,30.09.2021,ADULT SOCIAL CARE,BLOXWICH COMMUNITY PARTNERSHIP.,29/09/2021,"12,174.00",6550-Professional Fees & Services,SUPPLIES & SERVICES,SERVICES,REVENUE
Walsall Council,http://opendatacommunities.org/id/metropolitan-district-council/walsall ,WC130-679,30.09.2021,RESOURCES AND TRANSFORMATION,BLUETOWNONLINE LTD,27/09/2021,"6,140.00",6625-Recruitment Expenses,INDIRECT EMPLOYEES,RECRUITMENT EXPENSES,REVENUE
Walsall Council,http://opendatacommunities.org/id/metropolitan-district-council/walsall ,WC130-680,30.09.2021,ADULT SOCIAL CARE,BME UNITED LTD,02/09/2021,"10,231.20",6420-Consultant Fees,SUPPLIES & SERVICES,SERVICES,REVENUE
Walsall Council,http://opendatacommunities.org/id/metropolitan-district-council/walsall ,WC130-681,30.09.2021,CHILDRENS,BORSHCH LTD,01/09/2021,475.00,6314-Repair & Maintenance of Furniture & Equipment,SUPPLIES & SERVICES,EQUIPMENT FURNITURE & MATERIALS,REVENUE
Walsall Council,http://opendatacommunities.org/id/metropolitan-district-council/walsall ,WC130-682,30.09.2021,CHILDRENS,BORSHCH LTD,07/09/2021,475.00,6633-Purchase of Furniture & Equipment,SUPPLIES & SERVICES,EQUIPMENT FURNITURE & MATERIALS,REVENUE
Walsall Council,http://opendatacommunities.org/id/metropolitan-district-council/walsall ,WC130-683,30.09.2021,CHILDRENS,BORSHCH LTD,01/09/2021,329.17,6314-Repair & Maintenance of Furniture & Equipment,SUPPLIES & SERVICES,EQUIPMENT FURNITURE & MATERIALS,REVENUE
Walsall Council,http://opendatacommunities.org/id/metropolitan-district-council/walsall ,WC130-684,30.09.2021,CHILDRENS,BORSHCH LTD,01/09/2021,420.83,6633-Purchase of Furniture & Equipment,SUPPLIES & SERVICES,EQUIPMENT FURNITURE & MATERIALS,REVENUE
Walsall Council,http://opendatacommunities.org/id/metropolitan-district-council/walsall ,WC130-685,30.09.2021,CHILDRENS,BORSHCH LTD,01/09/2021,-465.00,6633-Purchase of Furniture & Equipment,SUPPLIES & SERVICES,EQUIPMENT FURNITURE & MATERIALS,REVENUE
Walsall Council,http://opendatacommunities.org/id/metropolitan-district-council/walsall ,WC130-686,30.09.2021,CHILDRENS,BORSHCH LTD,01/09/2021,465.00,6633-Purchase of Furniture & Equipment,SUPPLIES & SERVICES,EQUIPMENT FURNITURE & MATERIALS,REVENUE
Walsall Council,http://opendatacommunities.org/id/metropolitan-district-council/walsall ,WC130-687,30.09.2021,CHILDRENS,BORSHCH LTD,01/09/2021,475.00,6633-Purchase of Furniture & Equipment,SUPPLIES & SERVICES,EQUIPMENT FURNITURE & MATERIALS,REVENUE
Walsall Council,http://opendatacommunities.org/id/metropolitan-district-council/walsall ,WC130-688,30.09.2021,CHILDRENS,BORSHCH LTD,01/09/2021,329.17,6633-Purchase of Furniture & Equipment,SUPPLIES & SERVICES,EQUIPMENT FURNITURE & MATERIALS,REVENUE
Walsall Council,http://opendatacommunities.org/id/metropolitan-district-council/walsall ,WC130-689,30.09.2021,CHILDRENS,BORSHCH LTD,01/09/2021,316.66,6633-Purchase of Furniture & Equipment,SUPPLIES & SERVICES,EQUIPMENT FURNITURE & MATERIALS,REVENUE
Walsall Council,http://opendatacommunities.org/id/metropolitan-district-council/walsall ,WC130-690,30.09.2021,CHILDRENS,BORSHCH LTD,01/09/2021,374.99,6633-Purchase of Furniture & Equipment,SUPPLIES & SERVICES,EQUIPMENT FURNITURE & MATERIALS,REVENUE
Walsall Council,http://opendatacommunities.org/id/metropolitan-district-council/walsall ,WC130-691,30.09.2021,CHILDRENS,BORSHCH LTD,07/09/2021,475.00,6633-Purchase of Furniture & Equipment,SUPPLIES & SERVICES,EQUIPMENT FURNITURE & MATERIALS,REVENUE
Walsall Council,http://opendatacommunities.org/id/metropolitan-district-council/walsall ,WC130-692,30.09.2021,CHILDRENS,BORSHCH LTD,01/09/2021,475.00,6314-Repair & Maintenance of Furniture & Equipment,SUPPLIES & SERVICES,EQUIPMENT FURNITURE & MATERIALS,REVENUE
Walsall Council,http://opendatacommunities.org/id/metropolitan-district-council/walsall ,WC130-693,30.09.2021,CHILDRENS,BORSHCH LTD,02/09/2021,475.00,6314-Repair & Maintenance of Furniture & Equipment,SUPPLIES & SERVICES,EQUIPMENT FURNITURE & MATERIALS,REVENUE
Walsall Council,http://opendatacommunities.org/id/metropolitan-district-council/walsall ,WC130-694,30.09.2021,CHILDRENS,BORSHCH LTD,07/09/2021,312.50,6633-Purchase of Furniture & Equipment,SUPPLIES & SERVICES,EQUIPMENT FURNITURE & MATERIALS,REVENUE
Walsall Council,http://opendatacommunities.org/id/metropolitan-district-council/walsall ,WC130-695,30.09.2021,CHILDRENS,BORSHCH LTD,09/09/2021,287.49,6633-Purchase of Furniture & Equipment,SUPPLIES & SERVICES,EQUIPMENT FURNITURE & MATERIALS,REVENUE
Walsall Council,http://opendatacommunities.org/id/metropolitan-district-council/walsall ,WC130-696,30.09.2021,CHILDRENS,BORSHCH LTD,24/09/2021,475.00,6633-Purchase of Furniture & Equipment,SUPPLIES & SERVICES,EQUIPMENT FURNITURE & MATERIALS,REVENUE
Walsall Council,http://opendatacommunities.org/id/metropolitan-district-council/walsall ,WC130-697,30.09.2021,CHILDRENS,BORSHCH LTD,24/09/2021,316.66,6633-Purchase of Furniture & Equipment,SUPPLIES & SERVICES,EQUIPMENT FURNITURE & MATERIALS,REVENUE
Walsall Council,http://opendatacommunities.org/id/metropolitan-district-council/walsall ,WC130-698,30.09.2021,CHILDRENS,BORSHCH LTD,24/09/2021,262.49,6633-Purchase of Furniture & Equipment,SUPPLIES & SERVICES,EQUIPMENT FURNITURE & MATERIALS,REVENUE
Walsall Council,http://opendatacommunities.org/id/metropolitan-district-council/walsall ,WC130-699,30.09.2021,CHILDRENS,BORSHCH LTD,24/09/2021,312.50,6633-Purchase of Furniture & Equipment,SUPPLIES & SERVICES,EQUIPMENT FURNITURE & MATERIALS,REVENUE
Walsall Council,http://opendatacommunities.org/id/metropolitan-district-council/walsall ,WC130-700,30.09.2021,CHILDRENS,BORSHCH LTD,29/09/2021,316.66,6633-Purchase of Furniture & Equipment,SUPPLIES & SERVICES,EQUIPMENT FURNITURE & MATERIALS,REVENUE
Walsall Council,http://opendatacommunities.org/id/metropolitan-district-council/walsall ,WC130-701,30.09.2021,CHILDRENS,BORSHCH LTD,24/09/2021,475.00,6633-Purchase of Furniture & Equipment,SUPPLIES & SERVICES,EQUIPMENT FURNITURE & MATERIALS,REVENUE
Walsall Council,http://opendatacommunities.org/id/metropolitan-district-council/walsall ,WC130-702,30.09.2021,CHILDRENS,BORSHCH LTD,24/09/2021,454.16,6633-Purchase of Furniture & Equipment,SUPPLIES & SERVICES,EQUIPMENT FURNITURE & MATERIALS,REVENUE
Walsall Council,http://opendatacommunities.org/id/metropolitan-district-council/walsall ,WC130-703,30.09.2021,CHILDRENS,BORSHCH LTD,29/09/2021,454.17,6633-Purchase of Furniture & Equipment,SUPPLIES & SERVICES,EQUIPMENT FURNITURE & MATERIALS,REVENUE
Walsall Council,http://opendatacommunities.org/id/metropolitan-district-council/walsall ,WC130-704,30.09.2021,CHILDRENS,BORSHCH LTD,29/09/2021,475.00,6633-Purchase of Furniture & Equipment,SUPPLIES & SERVICES,EQUIPMENT FURNITURE & MATERIALS,REVENUE
Walsall Council,http://opendatacommunities.org/id/metropolitan-district-council/walsall ,WC130-705,30.09.2021,CHILDRENS,BORSHCH LTD,29/09/2021,295.83,6633-Purchase of Furniture & Equipment,SUPPLIES & SERVICES,EQUIPMENT FURNITURE & MATERIALS,REVENUE
Walsall Council,http://opendatacommunities.org/id/metropolitan-district-council/walsall ,WC130-706,30.09.2021,CHILDRENS,BORSHCH LTD,29/09/2021,279.16,6633-Purchase of Furniture & Equipment,SUPPLIES & SERVICES,EQUIPMENT FURNITURE & MATERIALS,REVENUE
Walsall Council,http://opendatacommunities.org/id/metropolitan-district-council/walsall ,WC130-707,30.09.2021,CHILDRENS,BORSHCH LTD,29/09/2021,475.00,6633-Purchase of Furniture & Equipment,SUPPLIES & SERVICES,EQUIPMENT FURNITURE & MATERIALS,REVENUE
Walsall Council,http://opendatacommunities.org/id/metropolitan-district-council/walsall ,WC130-708,30.09.2021,CHILDRENS,BORSHCH LTD,29/09/2021,475.00,6633-Purchase of Furniture & Equipment,SUPPLIES & SERVICES,EQUIPMENT FURNITURE & MATERIALS,REVENUE
Walsall Council,http://opendatacommunities.org/id/metropolitan-district-council/walsall ,WC130-709,30.09.2021,CHILDRENS CAPITAL,BOURNVILLE CATERING EQUIPMENT LTD,28/09/2021,"1,062.50",7155-Purchase of Vehicles & Plant,CAPITAL,"VEHICLES,PLANT,EQUIPMENT & MACHINERY",CAPITAL
Walsall Council,http://opendatacommunities.org/id/metropolitan-district-council/walsall ,WC130-710,30.09.2021,CHILDRENS CAPITAL,BOURNVILLE CATERING EQUIPMENT LTD,16/09/2021,"2,806.02",7155-Purchase of Vehicles & Plant,CAPITAL,"VEHICLES,PLANT,EQUIPMENT & MACHINERY",CAPITAL
Walsall Council,http://opendatacommunities.org/id/metropolitan-district-council/walsall ,WC130-711,30.09.2021,CHILDRENS CAPITAL,BOURNVILLE CATERING EQUIPMENT LTD,16/09/2021,"4,244.20",7155-Purchase of Vehicles & Plant,CAPITAL,"VEHICLES,PLANT,EQUIPMENT & MACHINERY",CAPITAL
Walsall Council,http://opendatacommunities.org/id/metropolitan-district-council/walsall ,WC130-712,30.09.2021,CHILDRENS CAPITAL,BOURNVILLE CATERING EQUIPMENT LTD,16/09/2021,"3,571.21",7155-Purchase of Vehicles & Plant,CAPITAL,"VEHICLES,PLANT,EQUIPMENT & MACHINERY",CAPITAL
Walsall Council,http://opendatacommunities.org/id/metropolitan-district-council/walsall ,WC130-713,30.09.2021,ADULT SOCIAL CARE,BOWDEN DERRA PARK,28/09/2021,"11,533.36",6541-Residential,THIRD PARTY PAYMENTS,PRIVATE CONTRACTOR,REVENUE
Walsall Council,http://opendatacommunities.org/id/metropolitan-district-council/walsall ,WC130-714,30.09.2021,"ECONOMY, ENVIRONMENT & COMMUNITIES",BRADVALE LTD T/A INSPIRE HEALTHCARE SERVICES,10/09/2021,381.35,6413-Professional Services-Priv Contractor & Other Agencies,THIRD PARTY PAYMENTS,PRIVATE CONTRACTOR,REVENUE
Walsall Council,http://opendatacommunities.org/id/metropolitan-district-council/walsall ,WC130-715,30.09.2021,CHILDRENS,BRAMBLE TECHNOLOGIES LTD,28/09/2021,360.00,6241-Professional Fees & Services,SUPPLIES & SERVICES,SERVICES,REVENUE
Walsall Council,http://opendatacommunities.org/id/metropolitan-district-council/walsall ,WC130-716,30.09.2021,CHILDRENS CAPITAL,BRELMAYNE LTD,30/09/2021,"26,463.90",7150-Site Works Contractors,CAPITAL,"NEW CONSTRUCTION,CONVERSION & RENOVATION",CAPITAL
Walsall Council,http://opendatacommunities.org/id/metropolitan-district-council/walsall ,WC130-717,30.09.2021,ADULT SOCIAL CARE,REDACTED,08/09/2021,275.00,6541-Direct Payment,THIRD PARTY PAYMENTS,PRIVATE CONTRACTOR,REVENUE
Walsall Council,http://opendatacommunities.org/id/metropolitan-district-council/walsall ,WC130-718,30.09.2021,"ECONOMY, ENVIRONMENT & COMMUNITIES",BRENNTAG UK LIMITED,01/09/2021,767.68,6410-Fuel for Vehicles,TRANSPORT,DIRECT TRANSPORT COSTS,REVENUE
Walsall Council,http://opendatacommunities.org/id/metropolitan-district-council/walsall ,WC130-719,30.09.2021,"ECONOMY, ENVIRONMENT & COMMUNITIES",BRETT QUINTON FUNERAL DIRECTORS LTD T/A LASTING MEMORIALS,14/09/2021,290.00,6413-Plaques Memorials-Materials,SUPPLIES & SERVICES,EQUIPMENT FURNITURE & MATERIALS,REVENUE
Walsall Council,http://opendatacommunities.org/id/metropolitan-district-council/walsall ,WC130-720,30.09.2021,ADULT SOCIAL CARE,REDACTED,08/09/2021,"-22,059.31",6541-Shared Lives,THIRD PARTY PAYMENTS,PRIVATE CONTRACTOR,REVENUE
Walsall Council,http://opendatacommunities.org/id/metropolitan-district-council/walsall ,WC130-721,30.09.2021,ADULT SOCIAL CARE,REDACTED,08/09/2021,"1,712.20",6541-Shared Lives,THIRD PARTY PAYMENTS,PRIVATE CONTRACTOR,REVENUE
Walsall Council,http://opendatacommunities.org/id/metropolitan-district-council/walsall ,WC130-722,30.09.2021,ADULT SOCIAL CARE,REDACTED,08/09/2021,"34,296.73",6541-Shared Lives,THIRD PARTY PAYMENTS,PRIVATE CONTRACTOR,REVENUE
Walsall Council,http://opendatacommunities.org/id/metropolitan-district-council/walsall ,WC130-723,30.09.2021,ADULT SOCIAL CARE,BRIDGEWOOD HEALTH CARE LTD,28/09/2021,"6,054.76",6541-Residential,THIRD PARTY PAYMENTS,PRIVATE CONTRACTOR,REVENUE
Walsall Council,http://opendatacommunities.org/id/metropolitan-district-council/walsall ,WC130-724,30.09.2021,RESOURCES AND TRANSFORMATION,BRITISH TELECOM 003,15/09/2021,538.89,6623-Landline Phones,SUPPLIES & SERVICES,COMMUNICATIONS & COMPUTING,REVENUE
Walsall Council,http://opendatacommunities.org/id/metropolitan-district-council/walsall ,WC130-725,30.09.2021,RESOURCES AND TRANSFORMATION,BRITISH TELECOMMUNICATIONS LTD,15/09/2021,506.53,6623-Landline Phones,SUPPLIES & SERVICES,COMMUNICATIONS & COMPUTING,REVENUE
Walsall Council,http://opendatacommunities.org/id/metropolitan-district-council/walsall ,WC130-726,30.09.2021,CHILDRENS,BRITISH TELECOMMUNICATIONS LTD,15/09/2021,341.15,6211-Landline Phones,SUPPLIES & SERVICES,COMMUNICATIONS & COMPUTING,REVENUE
Walsall Council,http://opendatacommunities.org/id/metropolitan-district-council/walsall ,WC130-727,30.09.2021,CHILDRENS,BRITISH TELECOMMUNICATIONS LTD,16/09/2021,-517.06,6211-Landline Phones,SUPPLIES & SERVICES,COMMUNICATIONS & COMPUTING,REVENUE
Walsall Council,http://opendatacommunities.org/id/metropolitan-district-council/walsall ,WC130-728,30.09.2021,CHILDRENS,BRITISH TELECOMMUNICATIONS LTD,16/09/2021,477.06,6211-Landline Phones,SUPPLIES & SERVICES,COMMUNICATIONS & COMPUTING,REVENUE
Walsall Council,http://opendatacommunities.org/id/metropolitan-district-council/walsall ,WC130-729,30.09.2021,CHILDRENS,BRITISH TELECOMMUNICATIONS LTD,16/09/2021,517.06,6211-Landline Phones,SUPPLIES & SERVICES,COMMUNICATIONS & COMPUTING,REVENUE
Walsall Council,http://opendatacommunities.org/id/metropolitan-district-council/walsall ,WC130-730,30.09.2021,"ECONOMY, ENVIRONMENT & COMMUNITIES",BRITTONS FORK LIFT LIMITED,09/09/2021,"5,270.00",6411-Materials,SUPPLIES & SERVICES,EQUIPMENT FURNITURE & MATERIALS,REVENUE
Walsall Council,http://opendatacommunities.org/id/metropolitan-district-council/walsall ,WC130-731,30.09.2021,"ECONOMY, ENVIRONMENT & COMMUNITIES",BRITTONS FORK LIFT LIMITED,17/09/2021,700.00,6410-Events & Visual Arts,SUPPLIES & SERVICES,SERVICES,REVENUE
Walsall Council,http://opendatacommunities.org/id/metropolitan-district-council/walsall ,WC130-732,30.09.2021,"ECONOMY, ENVIRONMENT & COMMUNITIES",BRITTONS FORK LIFT LIMITED,17/09/2021,"1,330.00",6410-Events & Visual Arts,SUPPLIES & SERVICES,SERVICES,REVENUE
Walsall Council,http://opendatacommunities.org/id/metropolitan-district-council/walsall ,WC130-733,30.09.2021,ADULT SOCIAL CARE,BROADWAY HALLS CARE HOME,28/09/2021,"2,328.44",6541-Residential,THIRD PARTY PAYMENTS,PRIVATE CONTRACTOR,REVENUE
Walsall Council,http://opendatacommunities.org/id/metropolitan-district-council/walsall ,WC130-734,30.09.2021,CHILDRENS,BRODIES SOLICITORS,15/09/2021,"11,000.00",6220-External Legal Fees,SUPPLIES & SERVICES,SERVICES,REVENUE
Walsall Council,http://opendatacommunities.org/id/metropolitan-district-council/walsall ,WC130-735,30.09.2021,CENTRALLY HELD,BROWNE JACOBSON SOLICITORS,10/09/2021,"4,178.50",6635-School Only Payments - Catering,THIRD PARTY PAYMENTS,INDEPENDENT UNIT WITHIN COUNCIL,REVENUE
Walsall Council,http://opendatacommunities.org/id/metropolitan-district-council/walsall ,WC130-736,30.09.2021,HOLDING ACCOUNTS,BROWNE JACOBSON SOLICITORS,10/09/2021,"1,032.50",2877-Insurance Payment Claims,SUPPLIES & SERVICES,INSURANCE,REVENUE
Walsall Council,http://opendatacommunities.org/id/metropolitan-district-council/walsall ,WC130-737,30.09.2021,HOLDING ACCOUNTS,BROWNE JACOBSON SOLICITORS,10/09/2021,500.50,2877-Insurance Payment Claims,SUPPLIES & SERVICES,INSURANCE,REVENUE
Walsall Council,http://opendatacommunities.org/id/metropolitan-district-council/walsall ,WC130-738,30.09.2021,HOLDING ACCOUNTS,BROWNE JACOBSON SOLICITORS,07/09/2021,"1,830.00",2877-Insurance Payment Claims,SUPPLIES & SERVICES,INSURANCE,REVENUE
Walsall Council,http://opendatacommunities.org/id/metropolitan-district-council/walsall ,WC130-739,30.09.2021,CENTRALLY HELD,BROWNE JACOBSON SOLICITORS,03/09/2021,367.50,6635-School Only Payments - Catering,THIRD PARTY PAYMENTS,INDEPENDENT UNIT WITHIN COUNCIL,REVENUE
Walsall Council,http://opendatacommunities.org/id/metropolitan-district-council/walsall ,WC130-740,30.09.2021,HOLDING ACCOUNTS,BROWNE JACOBSON SOLICITORS,08/09/2021,"1,379.50",2877-Insurance Payment Claims,SUPPLIES & SERVICES,INSURANCE,REVENUE
Walsall Council,http://opendatacommunities.org/id/metropolitan-district-council/walsall ,WC130-741,30.09.2021,HOLDING ACCOUNTS,BROWNE JACOBSON SOLICITORS,08/09/2021,788.50,2877-Insurance Payment Claims,SUPPLIES & SERVICES,INSURANCE,REVENUE
Walsall Council,http://opendatacommunities.org/id/metropolitan-district-council/walsall ,WC130-742,30.09.2021,HOLDING ACCOUNTS,BROWNE JACOBSON SOLICITORS,14/09/2021,"20,470.69",2877-Insurance Payment Claims,SUPPLIES & SERVICES,INSURANCE,REVENUE
Walsall Council,http://opendatacommunities.org/id/metropolitan-district-council/walsall ,WC130-743,30.09.2021,CHILDRENS CAPITAL,BROWNHILLS ASPHALT & TARMAC LIMITED,08/09/2021,"5,737.50",7150-Site Works Contractors,CAPITAL,"NEW CONSTRUCTION,CONVERSION & RENOVATION",CAPITAL
Walsall Council,http://opendatacommunities.org/id/metropolitan-district-council/walsall ,WC130-744,30.09.2021,CHILDRENS CAPITAL,BROWNHILLS ASPHALT & TARMAC LIMITED,29/09/2021,"14,527.20",7155-Site Works Contractors,CAPITAL,"NEW CONSTRUCTION,CONVERSION & RENOVATION",CAPITAL
Walsall Council,http://opendatacommunities.org/id/metropolitan-district-council/walsall ,WC130-745,30.09.2021,"ECONOMY, ENVIRONMENT & COMMUNITIES",BROWNHILLS COMMUNITY ASSOCIATION,01/09/2021,"20,000.00",6430-Professional Services-Priv Contractor & Other Agencies,THIRD PARTY PAYMENTS,PRIVATE CONTRACTOR,REVENUE
Walsall Council,http://opendatacommunities.org/id/metropolitan-district-council/walsall ,WC130-746,30.09.2021,CHILDRENS,BROWNHILLS COMMUNITY ASSOCIATION,03/09/2021,"2,551.50",1184-Other-Grants to Other Orgs,SUPPLIES & SERVICES,GRANTS (EXP) & SUBSCRIPTIONS,REVENUE
Walsall Council,http://opendatacommunities.org/id/metropolitan-district-council/walsall ,WC130-747,30.09.2021,CHILDRENS,BROWNHILLS COMMUNITY ASSOCIATION,03/09/2021,"21,546.00",1184-Other-Grants to Other Orgs,SUPPLIES & SERVICES,GRANTS (EXP) & SUBSCRIPTIONS,REVENUE
Walsall Council,http://opendatacommunities.org/id/metropolitan-district-council/walsall ,WC130-748,30.09.2021,CHILDRENS,BROWNHILLS COMMUNITY ASSOCIATION,03/09/2021,561.00,6223-Creche Facilities,SUPPLIES & SERVICES,SERVICES,REVENUE
Walsall Council,http://opendatacommunities.org/id/metropolitan-district-council/walsall ,WC130-749,30.09.2021,ADULT SOCIAL CARE,REDACTED,08/09/2021,310.00,6541-Direct Payment,THIRD PARTY PAYMENTS,PRIVATE CONTRACTOR,REVENUE
Walsall Council,http://opendatacommunities.org/id/metropolitan-district-council/walsall ,WC130-750,30.09.2021,RESOURCES AND TRANSFORMATION,BT PLC#1,27/09/2021,"1,268.35",6623-Computer Equipment,SUPPLIES & SERVICES,COMMUNICATIONS & COMPUTING,REVENUE
Walsall Council,http://opendatacommunities.org/id/metropolitan-district-council/walsall ,WC130-751,30.09.2021,RESOURCES AND TRANSFORMATION,BT PLC#1,27/09/2021,"1,268.35",6623-Computer Equipment,SUPPLIES & SERVICES,COMMUNICATIONS & COMPUTING,REVENUE
Walsall Council,http://opendatacommunities.org/id/metropolitan-district-council/walsall ,WC130-752,30.09.2021,RESOURCES AND TRANSFORMATION,BT PLC#1,07/09/2021,495.44,6623-Landline Phones,SUPPLIES & SERVICES,COMMUNICATIONS & COMPUTING,REVENUE
Walsall Council,http://opendatacommunities.org/id/metropolitan-district-council/walsall ,WC130-753,30.09.2021,RESOURCES AND TRANSFORMATION,BT PLC#1,02/09/2021,"8,585.29",6623-Landline Phones,SUPPLIES & SERVICES,COMMUNICATIONS & COMPUTING,REVENUE
Walsall Council,http://opendatacommunities.org/id/metropolitan-district-council/walsall ,WC130-754,30.09.2021,"ECONOMY, ENVIRONMENT & COMMUNITIES",BT REDCARE,09/09/2021,"4,803.85",6430-Repair & Maintenance of Furniture & Equipment,SUPPLIES & SERVICES,EQUIPMENT FURNITURE & MATERIALS,REVENUE
Walsall Council,http://opendatacommunities.org/id/metropolitan-district-council/walsall ,WC130-755,30.09.2021,"ECONOMY, ENVIRONMENT & COMMUNITIES",BUCHER MUNICIPAL LTD,15/09/2021,317.72,6410-Materials,SUPPLIES & SERVICES,EQUIPMENT FURNITURE & MATERIALS,REVENUE
Walsall Council,http://opendatacommunities.org/id/metropolitan-district-council/walsall ,WC130-756,30.09.2021,"ECONOMY, ENVIRONMENT & COMMUNITIES",BUCHER MUNICIPAL LTD,15/09/2021,286.74,6410-Materials,SUPPLIES & SERVICES,EQUIPMENT FURNITURE & MATERIALS,REVENUE
Walsall Council,http://opendatacommunities.org/id/metropolitan-district-council/walsall ,WC130-757,30.09.2021,ADULT SOCIAL CARE,BURLINGTON CARE (YORKSHIRE) LTD - YORK HOUSE,28/09/2021,"3,460.00",6541-Residential,THIRD PARTY PAYMENTS,PRIVATE CONTRACTOR,REVENUE
Walsall Council,http://opendatacommunities.org/id/metropolitan-district-council/walsall ,WC130-758,30.09.2021,ADULT SOCIAL CARE,BUSH HOME LTD,03/09/2021,"8,088.08",6550-ASC Rapid Testing Fund Round 3 (70%),TRANSFER PAYMENTS,COVID TRANSFER PAYMENT,REVENUE
Walsall Council,http://opendatacommunities.org/id/metropolitan-district-council/walsall ,WC130-759,30.09.2021,ADULT SOCIAL CARE,BUSH HOME LTD,28/09/2021,"2,331.08",6541-Residential EMI,THIRD PARTY PAYMENTS,PRIVATE CONTRACTOR,REVENUE
Walsall Council,http://opendatacommunities.org/id/metropolitan-district-council/walsall ,WC130-760,30.09.2021,ADULT SOCIAL CARE,BUSH HOME LTD,28/09/2021,"2,331.08",6541-Residential EMI,THIRD PARTY PAYMENTS,PRIVATE CONTRACTOR,REVENUE
Walsall Council,http://opendatacommunities.org/id/metropolitan-district-council/walsall ,WC130-761,30.09.2021,ADULT SOCIAL CARE,BUSH HOME LTD,28/09/2021,"2,064.44",6541-Residential,THIRD PARTY PAYMENTS,PRIVATE CONTRACTOR,REVENUE
Walsall Council,http://opendatacommunities.org/id/metropolitan-district-council/walsall ,WC130-762,30.09.2021,ADULT SOCIAL CARE,BUSH HOME LTD,28/09/2021,"2,331.08",6541-Residential EMI,THIRD PARTY PAYMENTS,PRIVATE CONTRACTOR,REVENUE
Walsall Council,http://opendatacommunities.org/id/metropolitan-district-council/walsall ,WC130-763,30.09.2021,ADULT SOCIAL CARE,BUSH HOME LTD,28/09/2021,"2,331.08",6541-Residential EMI,THIRD PARTY PAYMENTS,PRIVATE CONTRACTOR,REVENUE
Walsall Council,http://opendatacommunities.org/id/metropolitan-district-council/walsall ,WC130-764,30.09.2021,ADULT SOCIAL CARE,BUSH HOME LTD,28/09/2021,"1,831.56",6541-Residential & Nursing Care Placements,THIRD PARTY PAYMENTS,PRIVATE CONTRACTOR,REVENUE
Walsall Council,http://opendatacommunities.org/id/metropolitan-district-council/walsall ,WC130-765,30.09.2021,ADULT SOCIAL CARE,BUSH HOME LTD,28/09/2021,"2,064.44",6541-Residential,THIRD PARTY PAYMENTS,PRIVATE CONTRACTOR,REVENUE
Walsall Council,http://opendatacommunities.org/id/metropolitan-district-council/walsall ,WC130-766,30.09.2021,ADULT SOCIAL CARE,BUSH HOME LTD,28/09/2021,"2,064.44",6541-Residential,THIRD PARTY PAYMENTS,PRIVATE CONTRACTOR,REVENUE
Walsall Council,http://opendatacommunities.org/id/metropolitan-district-council/walsall ,WC130-767,30.09.2021,ADULT SOCIAL CARE,BUSH HOME LTD,28/09/2021,"2,064.44",6541-Residential,THIRD PARTY PAYMENTS,PRIVATE CONTRACTOR,REVENUE
Walsall Council,http://opendatacommunities.org/id/metropolitan-district-council/walsall ,WC130-768,30.09.2021,ADULT SOCIAL CARE,BUSH HOME LTD,28/09/2021,"2,331.08",6541-Residential EMI,THIRD PARTY PAYMENTS,PRIVATE CONTRACTOR,REVENUE
Walsall Council,http://opendatacommunities.org/id/metropolitan-district-council/walsall ,WC130-769,30.09.2021,ADULT SOCIAL CARE,BUSH HOME LTD,28/09/2021,"2,331.08",6541-Residential EMI,THIRD PARTY PAYMENTS,PRIVATE CONTRACTOR,REVENUE
Walsall Council,http://opendatacommunities.org/id/metropolitan-district-council/walsall ,WC130-770,30.09.2021,ADULT SOCIAL CARE,BUSH HOME LTD,28/09/2021,"2,064.44",6541-Residential & Nursing Care Placements,THIRD PARTY PAYMENTS,PRIVATE CONTRACTOR,REVENUE
Walsall Council,http://opendatacommunities.org/id/metropolitan-district-council/walsall ,WC130-771,30.09.2021,ADULT SOCIAL CARE,BUSH HOME LTD,28/09/2021,"2,331.08",6541-Residential EMI,THIRD PARTY PAYMENTS,PRIVATE CONTRACTOR,REVENUE
Walsall Council,http://opendatacommunities.org/id/metropolitan-district-council/walsall ,WC130-772,30.09.2021,ADULT SOCIAL CARE,BUSH HOME LTD,28/09/2021,"2,064.44",6541-Residential,THIRD PARTY PAYMENTS,PRIVATE CONTRACTOR,REVENUE
Walsall Council,http://opendatacommunities.org/id/metropolitan-district-council/walsall ,WC130-773,30.09.2021,ADULT SOCIAL CARE,BUSH HOME LTD,28/09/2021,"2,331.08",6541-Residential EMI,THIRD PARTY PAYMENTS,PRIVATE CONTRACTOR,REVENUE
Walsall Council,http://opendatacommunities.org/id/metropolitan-district-council/walsall ,WC130-774,30.09.2021,ADULT SOCIAL CARE,BUSH HOME LTD,28/09/2021,416.26,6541-Residential & Nursing Care Placements,THIRD PARTY PAYMENTS,PRIVATE CONTRACTOR,REVENUE
Walsall Council,http://opendatacommunities.org/id/metropolitan-district-council/walsall ,WC130-775,30.09.2021,ADULT SOCIAL CARE,BUSH HOME LTD,28/09/2021,582.77,6541-Residential EMI,THIRD PARTY PAYMENTS,PRIVATE CONTRACTOR,REVENUE
Walsall Council,http://opendatacommunities.org/id/metropolitan-district-council/walsall ,WC130-776,30.09.2021,ADULT SOCIAL CARE,BUSH HOME LTD,28/09/2021,"2,064.44",6541-Residential,THIRD PARTY PAYMENTS,PRIVATE CONTRACTOR,REVENUE
Walsall Council,http://opendatacommunities.org/id/metropolitan-district-council/walsall ,WC130-777,30.09.2021,ADULT SOCIAL CARE,BUSH HOME LTD,28/09/2021,"2,064.44",6541-Residential,THIRD PARTY PAYMENTS,PRIVATE CONTRACTOR,REVENUE
Walsall Council,http://opendatacommunities.org/id/metropolitan-district-council/walsall ,WC130-778,30.09.2021,ADULT SOCIAL CARE,BUSH HOME LTD,28/09/2021,"2,331.08",6541-Residential EMI,THIRD PARTY PAYMENTS,PRIVATE CONTRACTOR,REVENUE
Walsall Council,http://opendatacommunities.org/id/metropolitan-district-council/walsall ,WC130-779,30.09.2021,ADULT SOCIAL CARE,BUSH HOME LTD,28/09/2021,"2,331.08",6541-Residential EMI,THIRD PARTY PAYMENTS,PRIVATE CONTRACTOR,REVENUE
Walsall Council,http://opendatacommunities.org/id/metropolitan-district-council/walsall ,WC130-780,30.09.2021,ADULT SOCIAL CARE,BUSH HOME LTD,28/09/2021,"2,331.08",6541-Residential EMI,THIRD PARTY PAYMENTS,PRIVATE CONTRACTOR,REVENUE
Walsall Council,http://opendatacommunities.org/id/metropolitan-district-council/walsall ,WC130-781,30.09.2021,ADULT SOCIAL CARE,BUSH HOME LTD,28/09/2021,"2,331.08",6541-Residential EMI,THIRD PARTY PAYMENTS,PRIVATE CONTRACTOR,REVENUE
Walsall Council,http://opendatacommunities.org/id/metropolitan-district-council/walsall ,WC130-782,30.09.2021,ADULT SOCIAL CARE,BUSH HOME LTD,28/09/2021,"4,662.16",6541-Residential EMI,THIRD PARTY PAYMENTS,PRIVATE CONTRACTOR,REVENUE
Walsall Council,http://opendatacommunities.org/id/metropolitan-district-council/walsall ,WC130-783,30.09.2021,ADULT SOCIAL CARE,BUSH HOME LTD,03/09/2021,"7,896.87",6550-ASC Infection Control Fund Round 4 (30% Grants),THIRD PARTY PAYMENTS,COVID THIRD PARTY PAYMENTS,REVENUE
Walsall Council,http://opendatacommunities.org/id/metropolitan-district-council/walsall ,WC130-784,30.09.2021,CHILDRENS,BUSILL JONES PRIMARY SCHOOL,07/09/2021,"15,321.60",1184-Other-Grants to Other Orgs,SUPPLIES & SERVICES,GRANTS (EXP) & SUBSCRIPTIONS,REVENUE
Walsall Council,http://opendatacommunities.org/id/metropolitan-district-council/walsall ,WC130-785,30.09.2021,CHILDRENS,BUSILL JONES PRIMARY SCHOOL,01/09/2021,"31,950.02",1220-Top Up Funding -Grants to Schools,SUPPLIES & SERVICES,GRANTS (EXP) & SUBSCRIPTIONS,REVENUE
Walsall Council,http://opendatacommunities.org/id/metropolitan-district-council/walsall ,WC130-786,30.09.2021,CHILDRENS,BUSY BEES CHILDCARE LTD,03/09/2021,850.50,1184-Other-Grants to Other Orgs,SUPPLIES & SERVICES,GRANTS (EXP) & SUBSCRIPTIONS,REVENUE
Walsall Council,http://opendatacommunities.org/id/metropolitan-district-council/walsall ,WC130-787,30.09.2021,CHILDRENS,BUSY BEES CHILDCARE LTD,03/09/2021,"11,491.20",1184-Other-Grants to Other Orgs,SUPPLIES & SERVICES,GRANTS (EXP) & SUBSCRIPTIONS,REVENUE
Walsall Council,http://opendatacommunities.org/id/metropolitan-district-council/walsall ,WC130-788,30.09.2021,CHILDRENS,BY THE BRIDGE,07/09/2021,"3,996.00",6223-Independent Foster Care-Oth Agency Provision,THIRD PARTY PAYMENTS,PRIVATE CONTRACTOR,REVENUE
Walsall Council,http://opendatacommunities.org/id/metropolitan-district-council/walsall ,WC130-789,30.09.2021,CHILDRENS,BY THE BRIDGE,07/09/2021,"4,060.00",6223-Independent Foster Care-Oth Agency Provision,THIRD PARTY PAYMENTS,PRIVATE CONTRACTOR,REVENUE
Walsall Council,http://opendatacommunities.org/id/metropolitan-district-council/walsall ,WC130-790,30.09.2021,CHILDRENS,BY THE BRIDGE,07/09/2021,"3,640.40",6223-Independent Foster Care-Oth Agency Provision,THIRD PARTY PAYMENTS,PRIVATE CONTRACTOR,REVENUE
Walsall Council,http://opendatacommunities.org/id/metropolitan-district-council/walsall ,WC130-791,30.09.2021,CHILDRENS,REDACTED,07/09/2021,274.36,6223-Special Guardianship Orders,TRANSFER PAYMENTS,CHILDREN SOCIAL SERVICES CLIENT,REVENUE
Walsall Council,http://opendatacommunities.org/id/metropolitan-district-council/walsall ,WC130-792,30.09.2021,"ECONOMY, ENVIRONMENT & COMMUNITIES",C P DAVIDSON & SONS LTD,07/09/2021,588.55,6410-Professional Services-Priv Contractor & Other Agencies,THIRD PARTY PAYMENTS,PRIVATE CONTRACTOR,REVENUE
Walsall Council,http://opendatacommunities.org/id/metropolitan-district-council/walsall ,WC130-793,30.09.2021,CHILDRENS,REDACTED,23/09/2021,327.04,6223-Special Guardianship Orders,TRANSFER PAYMENTS,CHILDREN SOCIAL SERVICES CLIENT,REVENUE
